Workbook

Sheet Issues
C4: Not a public penny
C6: Analysis of Subsized Financing
C8: Alternative Solutions

Sheet Summary
B2: Operating and Construction Assumptions | I2: Financial Statistics
E4: Consturction Timing | I4: Equity IRR | K4: =Model!I121 -> 0.1985794135
I5: Project IRR | K5: =Model!I119 -> 0.1230637053
E6: Construction Cost
I7: PLCR | K7: =Model!I132 -> 2.815686183
E8: Revenues | I8: Min DSCR | K8: =Model!I126 -> 1.336633428
E10: Concession Length | I10: Debt/EBITDA 1 | K10: =TRANSPOSE(Model!R133:W133) -> 9.094520205
I11: Debt/EBITDA 2 | K11: 5.082352442
E12: Revenue Senstivity | G12: =Model!G16 -> 1 | I12: Debt/EBITDA 3 | K12: 4.836027215
I13: Debt/EBITDA 4 | K13: 4.315200171
I14: Debt/EBITDA 5 | K14: 3.797590922
B15: Sources and Uses
C16: Construction Expenditures | G16: =Model!J21 -> 3821
C17: Interest During Construction | G17: =Model!J22 -> 507.5947361 | I17: Debt Repayment
C18: Fees | G18: =Model!J23 -> 0
C19: Working Capital | G19: =Model!J24 -> 0 | I19: Debt Tenor | K19: =Inputs!G50 -> 33
D20: Total | G20: =Model!J25 -> 4328.594736
C22: Original Debt | G22: =Model!J27 -> 3558.594736
C23: Second Junior Debt Tranche | G23: =Model!J28 -> 0
C24: Senior Debt | G24: =Model!J29 -> 0
C25: Equity | G25: =Model!J30 -> 770
D26: Total | G26: =Model!J31 -> 4328.594736

Sheet Inputs
B2: Timing Assumptions
C3: Year | K3: 1986 | L3: =K3+1 -> 1987 | M3: 1988 | N3: 1989 | O3: 1990 | P3: 1991 | Q3: 1992 | R3: 1993 | S3: 1994 | T3: 1995 | U3: 1996 | V3: 1997 | W3: 1998 | X3: 1999 | Y3: 2000 | Z3: 2001 | AA3: 2002 | AB3: 2003 | AC3: 2004 | AD3: 2005 | AE3: 2006 | AF3: 2007 | AG3: 2008 | AH3: 2009 | AI3: 2010 | AJ3: 2011 | AK3: 2012 | AL3: 2013 | AM3: 2014 | AN3: 2015 | AO3: 2016 | AP3: 2017 | AQ3: 2018 | AR3: 2019 | AS3: 2020 | AT3: 2021 | AU3: 2022 | AV3: 2023 | AW3: 2024 | AX3: 2025 | AY3: 2026 | AZ3: 2027 | BA3: 2028 | BB3: 2029 | BC3: 2030 | BD3: 2031 | BE3: 2032 | BF3: 2033 | BG3: 2034 | BH3: 2035 | BI3: 2036 | BJ3: 2037 | BK3: 2038 | BL3: 2039 | BM3: 2040 | BN3: 2041 | BO3: 2042 | BP3: 2043 | BQ3: 2044 | BR3: 2045 | BS3: 2046 | BT3: 2047 | BU3: 2048 | BV3: 2049 | BW3: 2050 | BX3: =BW3+1 -> 2051 | BY3: 2052 | BZ3: 2053 | CA3: 2054 | CB3: 2055 | CC3: 2056 | CD3: 2057 | CE3: 2058 | CF3: 2059 | CG3: 2060 | CH3: 2061 | CI3: 2062 | CJ3: 2063 | CK3: 2064 | CL3: 2065 | CM3: 2066 | CN3: 2067 | CO3: 2068 | CP3: 2069 | CQ3: 2070 | CR3: 2071 | CS3: 2072 | CT3: 2073 | CU3: 2074 | CV3: 2075 | CW3: 2076 | CX3: 2077 | CY3: 2078 | CZ3: 2079 | DA3: 2080 | DB3: 2081 | DC3: 2082 | DD3: 2083 | DE3: 2084 | DF3: 2085
C4: General Dates
D5: Construction Start | G5: 1987
D6: Commercial Operation | G6: =IF(G18=1,1992,1994) -> 1992
C8: Construction Period | G8: =Inputs!G6-Inputs!G5+1 -> 6
C9: Period Start | G9: =-G8+1 -> -5
C11: Concession Period | G11: 1
E12: 55 Years | G12: 55
E13: 65 Years | G13: 65
E14: 99 Years | G14: 99
E15: =INDEX(E12:E14,$G$11) -> 55 Years | G15: =INDEX(G12:G14,$G$11) -> 55
B17: Cash Flow
C18: S-Curve | G18: 1
D19: Original Forecast | L19: ='Sources and Uses of Funds'!E46 -> 0.1 | M19: ='Sources and Uses of Funds'!F46 -> 0.2125 | N19: ='Sources and Uses of Funds'!G46 -> 0.2125 | O19: ='Sources and Uses of Funds'!H46 -> 0.2125 | P19: ='Sources and Uses of Funds'!I46 -> 0.2125 | Q19: ='Sources and Uses of Funds'!J46 -> 0.05 | R19: ='Sources and Uses of Funds'!K46 -> 0 | S19: ='Sources and Uses of Funds'!L46 -> 0
D20: Actual Schedule | L20: ='Sources and Uses of Funds'!E43 -> 0.07758377922 | M20: ='Sources and Uses of Funds'!F43 -> 0.08786257392 | N20: ='Sources and Uses of Funds'!G43 -> 0.1423542664 | O20: ='Sources and Uses of Funds'!H43 -> 0.1874119966 | P20: ='Sources and Uses of Funds'!I43 -> 0.1479864827 | Q20: ='Sources and Uses of Funds'!J43 -> 0.1743170938 | R20: ='Sources and Uses of Funds'!K43 -> 0.118698958 | S20: ='Sources and Uses of Funds'!L43 -> 0.06378484934
D21: =INDEX(D19:D20,$G$18) -> Original Forecast | L21: =INDEX(L19:L20,$G$18) -> 0.1 | M21: 0.2125 | N21: 0.2125 | O21: 0.2125 | P21: 0.2125 | Q21: 0.05 | R21: 0 | S21: 0
D23: Original Budget | G23: ='Capital Expenditures'!L18 -> 3821 | H23: 1
D24: Actual Cost | G24: ='Capital Expenditures'!M18 -> 7926
D25: =INDEX(D23:D24,$H$23) -> Original Budget | G25: =INDEX(G23:G24,$H$23) -> 3821
C27: Revenues
D28: Original Forecast | G28: 2 | R28: ='Revenue Forecasts'!O21 -> 488 | S28: ='Revenue Forecasts'!P21 -> 790 | T28: ='Revenue Forecasts'!Q21 -> 820 | U28: ='Revenue Forecasts'!R21 -> 900 | V28: ='Revenue Forecasts'!S21 -> 1000 | W28: ='Revenue Forecasts'!T21 -> 1080 | X28: ='Revenue Forecasts'!U21 -> 1180 | Y28: ='Revenue Forecasts'!V21 -> 1250 | Z28: ='Revenue Forecasts'!W21 -> 1370 | AA28: ='Revenue Forecasts'!X21 -> 1480 | AB28: ='Revenue Forecasts'!Y21 -> 1500 | AC28: ='Revenue Forecasts'!Z21 -> 1590 | AD28: ='Revenue Forecasts'!AA21 -> 1685.4 | AE28: ='Revenue Forecasts'!AB21 -> 1820.232 | AF28: =AE28*1.05 -> 1911.2436 | AG28: 2006.80578 | AH28: 2107.146069 | AI28: 2212.503372 | AJ28: 2323.128541 | AK28: 2439.284968 | AL28: 2561.249217 | AM28: 2689.311677 | AN28: 2823.777261 | AO28: 2964.966124 | AP28: 3113.214431 | AQ28: 3268.875152 | AR28: 3432.31891 | AS28: 3603.934855 | AT28: 3784.131598 | AU28: 3973.338178 | AV28: 4172.005087 | AW28: 4380.605341 | AX28: 4599.635608 | AY28: 4829.617388 | AZ28: 5071.098258 | BA28: 5324.653171 | BB28: 5590.885829 | BC28: 5870.430121 | BD28: 6163.951627 | BE28: 6472.149208 | BF28: 6795.756669 | BG28: 7135.544502 | BH28: 7492.321727 | BI28: 7866.937813 | BJ28: 8260.284704 | BK28: 8673.298939 | BL28: =BK28*1.05 -> 9106.963886 | BM28: 9562.312081 | BN28: 10040.42768 | BO28: 10542.44907 | BP28: 11069.57152 | BQ28: 11623.0501 | BR28: 12204.2026 | BS28: 12814.41273 | BT28: 13455.13337 | BU28: 14127.89004 | BV28: 14834.28454 | BW28: 15575.99877 | BX28: 16354.79871 | BY28: 17172.53864 | BZ28: 18031.16557 | CA28: 18932.72385 | CB28: 19879.36004 | CC28: 20873.32805 | CD28: 21916.99445 | CE28: 23012.84417 | CF28: 24163.48638 | CG28: 25371.6607 | CH28: 26640.24373 | CI28: 27972.25592 | CJ28: 29370.86872 | CK28: 30839.41215 | CL28: 32381.38276 | CM28: 34000.4519 | CN28: 35700.47449 | CO28: 37485.49822 | CP28: 39359.77313 | CQ28: 41327.76179 | CR28: =CQ28*1.05 -> 43394.14987 | CS28: 45563.85737 | CT28: 47842.05024 | CU28: 50234.15275 | CV28: 52745.86039 | CW28: 55383.15341 | CX28: 58152.31108 | CY28: 61059.92663 | CZ28: 64112.92296 | DA28: 67318.56911 | DB28: 70684.49756 | DC28: 74218.72244 | DD28: 77929.65856 | DE28: 81826.14149 | DF28: 85917.44857
D29: Original Forecast Slow Growth | R29: =R28 -> 488 | S29: =S28 -> 790 | T29: =T28 -> 820 | U29: =U28 -> 900 | V29: =V28 -> 1000 | W29: =V29*1.01 -> 1010 | X29: 1020.1 | Y29: 1030.301 | Z29: 1040.60401 | AA29: 1051.01005 | AB29: 1061.520151 | AC29: 1072.135352 | AD29: 1082.856706 | AE29: 1093.685273 | AF29: 1104.622125 | AG29: 1115.668347 | AH29: 1126.82503 | AI29: 1138.09328 | AJ29: 1149.474213 | AK29: 1160.968955 | AL29: 1172.578645 | AM29: 1184.304431 | AN29: 1196.147476 | AO29: 1208.10895 | AP29: 1220.19004 | AQ29: 1232.39194 | AR29: 1244.71586 | AS29: 1257.163018 | AT29: 1269.734649 | AU29: 1282.431995 | AV29: 1295.256315 | AW29: 1308.208878 | AX29: 1321.290967 | AY29: 1334.503877 | AZ29: 1347.848915 | BA29: 1361.327404 | BB29: 1374.940679 | BC29: =BB29*1.01 -> 1388.690085 | BD29: 1402.576986 | BE29: 1416.602756 | BF29: 1430.768784 | BG29: 1445.076471 | BH29: 1459.527236 | BI29: 1474.122509 | BJ29: 1488.863734 | BK29: 1503.752371 | BL29: 1518.789895 | BM29: 1533.977794 | BN29: 1549.317572 | BO29: 1564.810747 | BP29: 1580.458855 | BQ29: 1596.263443 | BR29: 1612.226078 | BS29: 1628.348338 | BT29: 1644.631822 | BU29: 1661.07814 | BV29: 1677.688921 | BW29: 1694.465811 | BX29: 1711.410469 | BY29: 1728.524573 | BZ29: 1745.809819 | CA29: 1763.267917 | CB29: 1780.900597 | CC29: 1798.709603 | CD29: 1816.696699 | CE29: 1834.863666 | CF29: 1853.212302 | CG29: 1871.744425 | CH29: 1890.461869 | CI29: =CH29*1.01 -> 1909.366488 | CJ29: 1928.460153 | CK29: 1947.744755 | CL29: 1967.222202 | CM29: 1986.894424 | CN29: 2006.763368 | CO29: 2026.831002 | CP29: 2047.099312 | CQ29: 2067.570305 | CR29: 2088.246008 | CS29: 2109.128468 | CT29: 2130.219753 | CU29: 2151.521951 | CV29: 2173.03717 | CW29: 2194.767542 | CX29: 2216.715217 | CY29: 2238.882369 | CZ29: 2261.271193 | DA29: 2283.883905 | DB29: 2306.722744 | DC29: 2329.789971 | DD29: 2353.087871 | DE29: 2376.61875 | DF29: 2400.384937
D30: Actual Followed by 1.5% Growth | R30: ='Revenue Forecasts'!O31 -> 0 | S30: ='Revenue Forecasts'!P31 -> 0 | T30: ='Revenue Forecasts'!Q31 -> 304 | U30: ='Revenue Forecasts'!R31 -> 483 | V30: ='Revenue Forecasts'!S31 -> 509 | W30: ='Revenue Forecasts'!T31 -> 641 | X30: ='Revenue Forecasts'!U31 -> 539 | Y30: ='Revenue Forecasts'!V31 -> 599 | Z30: ='Revenue Forecasts'!W31 -> 564 | AA30: ='Revenue Forecasts'!X31 -> 581 | AB30: ='Revenue Forecasts'!Y31 -> 584 | AC30: ='Revenue Forecasts'!Z31 -> 538 | AD30: ='Revenue Forecasts'!AA31 -> 541 | AE30: ='Revenue Forecasts'!AB31 -> 568 | AF30: ='Revenue Forecasts'!AC31 -> 526 | AG30: ='Revenue Forecasts'!AD31 -> 537 | AH30: ='Revenue Forecasts'!AE31 -> 555 | AI30: =AH30*1.015 -> 563.325 | AJ30: 571.774875 | AK30: 580.3514981 | AL30: 589.0567706 | AM30: 597.8926222 | AN30: 606.8610115 | AO30: 615.9639267 | AP30: 625.2033856 | AQ30: 634.5814363 | AR30: 644.1001579 | AS30: 653.7616603 | AT30: 663.5680852 | AU30: 673.5216064 | AV30: 683.6244305 | AW30: 693.878797 | AX30: 704.2869789 | AY30: 714.8512836 | AZ30: 725.5740529 | BA30: 736.4576637 | BB30: 747.5045286 | BC30: 758.7170966 | BD30: 770.097853 | BE30: 781.6493208 | BF30: 793.3740606 | BG30: 805.2746715 | BH30: 817.3537916 | BI30: 829.6140985 | BJ30: 842.05831 | BK30: 854.6891846 | BL30: 867.5095224 | BM30: 880.5221652 | BN30: 893.7299977 | BO30: =BN30*1.015 -> 907.1359477 | BP30: 920.7429869 | BQ30: 934.5541317 | BR30: 948.5724436 | BS30: 962.8010303 | BT30: 977.2430458 | BU30: 991.9016914 | BV30: 1006.780217 | BW30: 1021.88192 | BX30: 1037.210149 | BY30: 1052.768301 | BZ30: 1068.559826 | CA30: 1084.588223 | CB30: 1100.857046 | CC30: 1117.369902 | CD30: 1134.130451 | CE30: 1151.142407 | CF30: 1168.409543 | CG30: 1185.935687 | CH30: 1203.724722 | CI30: 1221.780593 | CJ30: 1240.107302 | CK30: 1258.708911 | CL30: 1277.589545 | CM30: 1296.753388 | CN30: 1316.204689 | CO30: 1335.947759 | CP30: 1355.986976 | CQ30: 1376.32678 | CR30: 1396.971682 | CS30: 1417.926257 | CT30: 1439.195151 | CU30: =CT30*1.015 -> 1460.783078 | CV30: 1482.694824 | CW30: 1504.935247 | CX30: 1527.509275 | CY30: 1550.421915 | CZ30: 1573.678243 | DA30: 1597.283417 | DB30: 1621.242668 | DC30: 1645.561308 | DD30: 1670.244728 | DE30: 1695.298399 | DF30: 1720.727875
D31: =INDEX(D28:D30,$G$28) -> Original Forecast Slow Growth | R31: =INDEX(R28:R30,$G$28) -> 488 | S31: 790 | T31: 820 | U31: 900 | V31: 1000 | W31: 1010 | X31: 1020.1 | Y31: 1030.301 | Z31: 1040.60401 | AA31: 1051.01005 | AB31: 1061.520151 | AC31: 1072.135352 | AD31: 1082.856706 | AE31: 1093.685273 | AF31: 1104.622125 | AG31: 1115.668347 | AH31: 1126.82503 | AI31: 1138.09328 | AJ31: 1149.474213 | AK31: 1160.968955 | AL31: 1172.578645 | AM31: 1184.304431 | AN31: 1196.147476 | AO31: 1208.10895 | AP31: 1220.19004 | AQ31: 1232.39194 | AR31: 1244.71586 | AS31: 1257.163018 | AT31: 1269.734649 | AU31: 1282.431995 | AV31: 1295.256315 | AW31: 1308.208878 | AX31: =INDEX(AX28:AX30,$G$28) -> 1321.290967 | AY31: 1334.503877 | AZ31: 1347.848915 | BA31: 1361.327404 | BB31: 1374.940679 | BC31: 1388.690085 | BD31: 1402.576986 | BE31: 1416.602756 | BF31: 1430.768784 | BG31: 1445.076471 | BH31: 1459.527236 | BI31: 1474.122509 | BJ31: 1488.863734 | BK31: 1503.752371 | BL31: 1518.789895 | BM31: 1533.977794 | BN31: 1549.317572 | BO31: 1564.810747 | BP31: 1580.458855 | BQ31: 1596.263443 | BR31: 1612.226078 | BS31: 1628.348338 | BT31: 1644.631822 | BU31: 1661.07814 | BV31: 1677.688921 | BW31: 1694.465811 | BX31: 1711.410469 | BY31: 1728.524573 | BZ31: 1745.809819 | CA31: 1763.267917 | CB31: 1780.900597 | CC31: 1798.709603 | CD31: =INDEX(CD28:CD30,$G$28) -> 1816.696699 | CE31: 1834.863666 | CF31: 1853.212302 | CG31: 1871.744425 | CH31: 1890.461869 | CI31: 1909.366488 | CJ31: 1928.460153 | CK31: 1947.744755 | CL31: 1967.222202 | CM31: 1986.894424 | CN31: 2006.763368 | CO31: 2026.831002 | CP31: 2047.099312 | CQ31: 2067.570305 | CR31: 2088.246008 | CS31: 2109.128468 | CT31: 2130.219753 | CU31: 2151.521951 | CV31: 2173.03717 | CW31: 2194.767542 | CX31: 2216.715217 | CY31: 2238.882369 | CZ31: 2261.271193 | DA31: 2283.883905 | DB31: 2306.722744 | DC31: 2329.789971 | DD31: 2353.087871 | DE31: 2376.61875 | DF31: 2400.384937
D33: Senstivity | G33: =I33/100 -> 1 | I33: 100
C35: Operating Expenses
D36: Original Forecast | R36: 100 | S36: =R36*1.02 -> 102 | T36: 104.04 | U36: 106.1208 | V36: 108.243216 | W36: 110.4080803 | X36: 112.6162419 | Y36: 114.8685668 | Z36: 117.1659381 | AA36: 119.5092569 | AB36: 121.899442 | AC36: 124.3374308 | AD36: 126.8241795 | AE36: 129.360663 | AF36: 131.9478763 | AG36: 134.5868338 | AH36: 137.2785705 | AI36: 140.0241419 | AJ36: 142.8246248 | AK36: 145.6811173 | AL36: 148.5947396 | AM36: 151.5666344 | AN36: 154.5979671 | AO36: 157.6899264 | AP36: 160.8437249 | AQ36: 164.0605994 | AR36: 167.3418114 | AS36: 170.6886477 | AT36: 174.1024206 | AU36: 177.584469 | AV36: 181.1361584 | AW36: 184.7588816 | AX36: 188.4540592 | AY36: =AX36*1.02 -> 192.2231404 | AZ36: 196.0676032 | BA36: 199.9889553 | BB36: 203.9887344 | BC36: 208.0685091 | BD36: 212.2298792 | BE36: 216.4744768 | BF36: 220.8039664 | BG36: 225.2200457 | BH36: 229.7244466 | BI36: 234.3189355 | BJ36: 239.0053142 | BK36: 243.7854205 | BL36: 248.6611289 | BM36: 253.6343515 | BN36: 258.7070385 | BO36: 263.8811793 | BP36: 269.1588029 | BQ36: 274.541979 | BR36: 280.0328185 | BS36: 285.6334749 | BT36: 291.3461444 | BU36: 297.1730673 | BV36: 303.1165286 | BW36: 309.1788592 | BX36: 315.3624364 | BY36: 321.6696851 | BZ36: 328.1030788 | CA36: 334.6651404 | CB36: 341.3584432 | CC36: 348.1856121 | CD36: 355.1493243 | CE36: =CD36*1.02 -> 362.2523108 | CF36: 369.497357 | CG36: 376.8873042 | CH36: 384.4250503 | CI36: 392.1135513 | CJ36: 399.9558223 | CK36: 407.9549387 | CL36: 416.1140375 | CM36: 424.4363183 | CN36: 432.9250446 | CO36: 441.5835455 | CP36: 450.4152164 | CQ36: 459.4235208 | CR36: 468.6119912 | CS36: 477.984231 | CT36: 487.5439156 | CU36: 497.2947939 | CV36: 507.2406898 | CW36: 517.3855036 | CX36: 527.7332137 | CY36: 538.2878779 | CZ36: 549.0536355 | DA36: 560.0347082 | DB36: 571.2354024 | DC36: 582.6601104 | DD36: 594.3133126 | DE36: 606.1995789 | DF36: 618.3235705
D37: Original Slow Growth | R37: =R36 -> 100 | S37: 102 | T37: 104.04 | U37: 106.1208 | V37: 108.243216 | W37: 110.4080803 | X37: 112.6162419 | Y37: 114.8685668 | Z37: 117.1659381 | AA37: 119.5092569 | AB37: =AA37*1.01 -> 120.7043494 | AC37: 121.9113929 | AD37: 123.1305069 | AE37: 124.3618119 | AF37: 125.60543 | AG37: 126.8614843 | AH37: 128.1300992 | AI37: 129.4114002 | AJ37: 130.7055142 | AK37: 132.0125693 | AL37: 133.332695 | AM37: 134.666022 | AN37: 136.0126822 | AO37: 137.372809 | AP37: 138.7465371 | AQ37: 140.1340025 | AR37: 141.5353425 | AS37: 142.9506959 | AT37: 144.3802029 | AU37: 145.8240049 | AV37: 147.282245 | AW37: 148.7550674 | AX37: 150.2426181 | AY37: 151.7450443 | AZ37: 153.2624947 | BA37: 154.7951196 | BB37: 156.3430708 | BC37: 157.9065016 | BD37: 159.4855666 | BE37: 161.0804222 | BF37: 162.6912265 | BG37: 164.3181387 | BH37: =BG37*1.01 -> 165.9613201 | BI37: 167.6209333 | BJ37: 169.2971426 | BK37: 170.9901141 | BL37: 172.7000152 | BM37: 174.4270154 | BN37: 176.1712855 | BO37: 177.9329984 | BP37: 179.7123284 | BQ37: 181.5094516 | BR37: 183.3245462 | BS37: 185.1577916 | BT37: 187.0093695 | BU37: 188.8794632 | BV37: 190.7682579 | BW37: 192.6759404 | BX37: 194.6026998 | BY37: 196.5487268 | BZ37: 198.5142141 | CA37: 200.4993563 | CB37: 202.5043498 | CC37: 204.5293933 | CD37: 206.5746872 | CE37: 208.6404341 | CF37: 210.7268385 | CG37: 212.8341068 | CH37: 214.9624479 | CI37: 217.1120724 | CJ37: 219.2831931 | CK37: 221.476025 | CL37: 223.6907853 | CM37: 225.9276931 | CN37: =CM37*1.01 -> 228.1869701 | CO37: 230.4688398 | CP37: 232.7735282 | CQ37: 235.1012635 | CR37: 237.4522761 | CS37: 239.8267989 | CT37: 242.2250668 | CU37: 244.6473175 | CV37: 247.0937907 | CW37: 249.5647286 | CX37: 252.0603759 | CY37: 254.5809796 | CZ37: 257.1267894 | DA37: 259.6980573 | DB37: 262.2950379 | DC37: 264.9179883 | DD37: 267.5671682 | DE37: 270.2428398 | DF37: 272.9452682
D38: Actual/1.5% | R38: ='Revenue Forecasts'!O35 -> 0 | S38: ='Revenue Forecasts'!P35 -> 0 | T38: ='Revenue Forecasts'!Q35 -> 0 | U38: ='Revenue Forecasts'!R35 -> 0 | V38: ='Revenue Forecasts'!S35 -> 233 | W38: ='Revenue Forecasts'!T35 -> 201 | X38: ='Revenue Forecasts'!U35 -> 212 | Y38: ='Revenue Forecasts'!V35 -> 186.6 | Z38: ='Revenue Forecasts'!W35 -> 138.6 | AA38: ='Revenue Forecasts'!X35 -> 129 | AB38: ='Revenue Forecasts'!Y35 -> 125 | AC38: ='Revenue Forecasts'!Z35 -> 146 | AD38: ='Revenue Forecasts'!AA35 -> 126 | AE38: ='Revenue Forecasts'!AB35 -> 118 | AF38: =AE38*1.015 -> 119.77 | AG38: 121.56655 | AH38: 123.3900482 | AI38: 125.240899 | AJ38: 127.1195125 | AK38: 129.0263051 | AL38: 130.9616997 | AM38: 132.9261252 | AN38: 134.9200171 | AO38: 136.9438174 | AP38: 138.9979746 | AQ38: 141.0829442 | AR38: 143.1991884 | AS38: 145.3471762 | AT38: 147.5273839 | AU38: 149.7402946 | AV38: 151.986399 | AW38: 154.266195 | AX38: 156.580188 | AY38: 158.9288908 | AZ38: 161.3128241 | BA38: 163.7325165 | BB38: 166.1885042 | BC38: 168.6813318 | BD38: 171.2115518 | BE38: 173.7797251 | BF38: 176.3864209 | BG38: 179.0322173 | BH38: 181.7177005 | BI38: 184.443466 | BJ38: 187.210118 | BK38: 190.0182698 | BL38: =BK38*1.015 -> 192.8685438 | BM38: 195.761572 | BN38: 198.6979956 | BO38: 201.6784655 | BP38: 204.7036425 | BQ38: 207.7741971 | BR38: 210.8908101 | BS38: 214.0541722 | BT38: 217.2649848 | BU38: 220.5239596 | BV38: 223.831819 | BW38: 227.1892963 | BX38: 230.5971357 | BY38: 234.0560927 | BZ38: 237.5669341 | CA38: 241.1304381 | CB38: 244.7473947 | CC38: 248.4186056 | CD38: 252.1448847 | CE38: 255.927058 | CF38: 259.7659639 | CG38: 263.6624533 | CH38: 267.6173901 | CI38: 271.631651 | CJ38: 275.7061257 | CK38: 279.8417176 | CL38: 284.0393434 | CM38: 288.2999335 | CN38: 292.6244325 | CO38: 297.013799 | CP38: 301.469006 | CQ38: 305.9910411 | CR38: =CQ38*1.015 -> 310.5809067 | CS38: 315.2396203 | CT38: 319.9682146 | CU38: 324.7677378 | CV38: 329.6392539 | CW38: 334.5838427 | CX38: 339.6026004 | CY38: 344.6966394 | CZ38: 349.867089 | DA38: 355.1150953 | DB38: 360.4418217 | DC38: 365.848449 | DD38: 371.3361758 | DE38: 376.9062184 | DF38: 382.5598117
D39: =INDEX(D36:D38,$G$28) -> Original Slow Growth | R39: =INDEX(R36:R38,$G$28) -> 100 | S39: 102 | T39: 104.04 | U39: 106.1208 | V39: 108.243216 | W39: 110.4080803 | X39: 112.6162419 | Y39: 114.8685668 | Z39: 117.1659381 | AA39: 119.5092569 | AB39: 120.7043494 | AC39: 121.9113929 | AD39: 123.1305069 | AE39: 124.3618119 | AF39: 125.60543 | AG39: 126.8614843 | AH39: 128.1300992 | AI39: 129.4114002 | AJ39: 130.7055142 | AK39: 132.0125693 | AL39: 133.332695 | AM39: 134.666022 | AN39: 136.0126822 | AO39: 137.372809 | AP39: 138.7465371 | AQ39: 140.1340025 | AR39: 141.5353425 | AS39: 142.9506959 | AT39: 144.3802029 | AU39: 145.8240049 | AV39: 147.282245 | AW39: 148.7550674 | AX39: =INDEX(AX36:AX38,$G$28) -> 150.2426181 | AY39: 151.7450443 | AZ39: 153.2624947 | BA39: 154.7951196 | BB39: 156.3430708 | BC39: 157.9065016 | BD39: 159.4855666 | BE39: 161.0804222 | BF39: 162.6912265 | BG39: 164.3181387 | BH39: 165.9613201 | BI39: 167.6209333 | BJ39: 169.2971426 | BK39: 170.9901141 | BL39: 172.7000152 | BM39: 174.4270154 | BN39: 176.1712855 | BO39: 177.9329984 | BP39: 179.7123284 | BQ39: 181.5094516 | BR39: 183.3245462 | BS39: 185.1577916 | BT39: 187.0093695 | BU39: 188.8794632 | BV39: 190.7682579 | BW39: 192.6759404 | BX39: 194.6026998 | BY39: 196.5487268 | BZ39: 198.5142141 | CA39: 200.4993563 | CB39: 202.5043498 | CC39: 204.5293933 | CD39: =INDEX(CD36:CD38,$G$28) -> 206.5746872 | CE39: 208.6404341 | CF39: 210.7268385 | CG39: 212.8341068 | CH39: 214.9624479 | CI39: 217.1120724 | CJ39: 219.2831931 | CK39: 221.476025 | CL39: 223.6907853 | CM39: 225.9276931 | CN39: 228.1869701 | CO39: 230.4688398 | CP39: 232.7735282 | CQ39: 235.1012635 | CR39: 237.4522761 | CS39: 239.8267989 | CT39: 242.2250668 | CU39: 244.6473175 | CV39: 247.0937907 | CW39: 249.5647286 | CX39: 252.0603759 | CY39: 254.5809796 | CZ39: 257.1267894 | DA39: 259.6980573 | DB39: 262.2950379 | DC39: 264.9179883 | DD39: 267.5671682 | DE39: 270.2428398 | DF39: 272.9452682
C42: Income Tax Rate | K42: 0.25 | L42: 0.25 | M42: 0.25 | N42: 0.25 | O42: 0.25 | P42: 0.25 | Q42: 0.25 | R42: 0.25 | S42: 0.25 | T42: 0.25 | U42: 0.25 | V42: 0.25 | W42: 0.25 | X42: 0.25 | Y42: 0.25 | Z42: 0.25 | AA42: 0.25 | AB42: 0.25 | AC42: 0.25 | AD42: 0.25 | AE42: 0.25 | AF42: 0.25 | AG42: 0.25 | AH42: 0.25 | AI42: 0.25 | AJ42: 0.25 | AK42: 0.25 | AL42: 0.25 | AM42: 0.25 | AN42: 0.25 | AO42: 0.25 | AP42: 0.25 | AQ42: 0.25 | AR42: 0.25 | AS42: 0.25 | AT42: 0.25 | AU42: 0.25 | AV42: 0.25 | AW42: 0.25 | AX42: 0.25 | AY42: 0.25 | AZ42: 0.25 | BA42: 0.25 | BB42: 0.25 | BC42: 0.25 | BD42: 0.25 | BE42: 0.25 | BF42: 0.25 | BG42: 0.25 | BH42: 0.25 | BI42: 0.25 | BJ42: 0.25 | BK42: 0.25 | BL42: 0.25 | BM42: 0.25 | BN42: 0.25 | BO42: 0.25 | BP42: 0.25 | BQ42: 0.25 | BR42: 0.25 | BS42: 0.25 | BT42: 0.25 | BU42: 0.25 | BV42: 0.25 | BW42: 0.25 | BX42: 0.25 | BY42: 0.25 | BZ42: 0.25 | CA42: 0.25 | CB42: 0.25 | CC42: 0.25 | CD42: 0.25 | CE42: 0.25 | CF42: 0.25 | CG42: 0.25 | CH42: 0.25 | CI42: 0.25 | CJ42: 0.25 | CK42: 0.25 | CL42: 0.25 | CM42: 0.25 | CN42: 0.25 | CO42: 0.25 | CP42: 0.25 | CQ42: 0.25 | CR42: 0.25 | CS42: 0.25 | CT42: 0.25 | CU42: 0.25 | CV42: 0.25 | CW42: 0.25 | CX42: 0.25 | CY42: 0.25 | CZ42: 0.25 | DA42: 0.25 | DB42: 0.25 | DC42: 0.25 | DD42: 0.25 | DE42: 0.25 | DF42: 0.25
B44: Financing
D45: Original Bank Loan
E46: Commitment | G46: 5000
E47: Front-end Fee | G47: =7/800+0.0025 -> 0.01125
E48: Credit Spread - Before Completion | G48: 0.0125
E49: Credit Spread - After Completion | G49: 0.01
E50: Term | G50: 33
D52: 1990 Additional Debt
E53: Commitment and EIB | G53: =1800+300 -> 2100
E54: Front-end Fee | G54: 0.0025
E55: Credit Spread - Before Completion | G55: 0.0275
E56: Credit Spread - After Completion | G56: 0.0225
E57: Term | G57: 10
D59: 1994 Senior Debt
E60: Commitment | G60: 693
E61: Front-end Fee | G61: 0.015
E62: Credit Spread - Before Completion | G62: 0.025
E63: Credit Spread - After Completion | G63: 0.025
E64: Term | G64: 6
D66: LIBOR | K66: 0.06 | L66: 0.06 | M66: 0.06 | N66: 0.06 | O66: 0.06 | P66: 0.06 | Q66: 0.06 | R66: 0.06 | S66: 0.06 | T66: 0.06 | U66: 0.06 | V66: 0.06 | W66: 0.06 | X66: 0.06 | Y66: 0.06 | Z66: 0.06 | AA66: 0.06 | AB66: 0.06 | AC66: 0.06 | AD66: 0.06 | AE66: 0.06 | AF66: 0.06 | AG66: 0.06 | AH66: 0.06 | AI66: 0.06 | AJ66: 0.06 | AK66: 0.06 | AL66: 0.06 | AM66: 0.06 | AN66: 0.06 | AO66: 0.06 | AP66: 0.06 | AQ66: 0.06 | AR66: 0.06 | AS66: 0.06 | AT66: 0.06 | AU66: 0.06 | AV66: 0.06 | AW66: 0.06 | AX66: 0.06 | AY66: 0.06 | AZ66: 0.06 | BA66: 0.06 | BB66: 0.06 | BC66: 0.06 | BD66: 0.06 | BE66: 0.06 | BF66: 0.06 | BG66: 0.06 | BH66: 0.06 | BI66: 0.06 | BJ66: 0.06 | BK66: 0.06 | BL66: 0.06 | BM66: 0.06 | BN66: 0.06 | BO66: 0.06 | BP66: 0.06 | BQ66: 0.06 | BR66: 0.06 | BS66: 0.06 | BT66: 0.06 | BU66: 0.06 | BV66: 0.06 | BW66: 0.06 | BX66: 0.06 | BY66: 0.06 | BZ66: 0.06 | CA66: 0.06 | CB66: 0.06 | CC66: 0.06 | CD66: 0.06 | CE66: 0.06 | CF66: 0.06 | CG66: 0.06 | CH66: 0.06 | CI66: 0.06 | CJ66: 0.06 | CK66: 0.06 | CL66: 0.06 | CM66: 0.06 | CN66: 0.06 | CO66: 0.06 | CP66: 0.06 | CQ66: 0.06 | CR66: 0.06 | CS66: 0.06 | CT66: 0.06 | CU66: 0.06 | CV66: 0.06 | CW66: 0.06 | CX66: 0.06 | CY66: 0.06 | CZ66: 0.06 | DA66: 0.06 | DB66: 0.06 | DC66: 0.06 | DD66: 0.06 | DE66: 0.06 | DF66: 0.06
D68: Equity Financing
F69: TML and Bank Financing in 1986 | K69: 46
F70: Institutional Investors - 1986 | K70: 206
F71: IPO 1997 | L71: 770
F72: 1990 Nov IPO (Not Anticipated) | O72: 566
F73: 1994 May IPO (Not Anticipated) | S73: 816

Sheet Model
I1: Delay | O1: Revenues | U1: Equity IRR | V1: =I121 -> 0.1985794135
I3: Cost | O3: Concession
C5: Year | K5: 1986 | L5: =K5+1 -> 1987 | M5: 1988 | N5: 1989 | O5: 1990 | P5: 1991 | Q5: 1992 | R5: 1993 | S5: 1994 | T5: 1995 | U5: 1996 | V5: 1997 | W5: 1998 | X5: 1999 | Y5: 2000 | Z5: 2001 | AA5: 2002 | AB5: 2003 | AC5: 2004 | AD5: 2005 | AE5: 2006 | AF5: 2007 | AG5: 2008 | AH5: 2009 | AI5: 2010 | AJ5: 2011 | AK5: 2012 | AL5: 2013 | AM5: 2014 | AN5: 2015 | AO5: 2016 | AP5: 2017 | AQ5: 2018 | AR5: =AQ5+1 -> 2019 | AS5: 2020 | AT5: 2021 | AU5: 2022 | AV5: 2023 | AW5: 2024 | AX5: 2025 | AY5: 2026 | AZ5: 2027 | BA5: 2028 | BB5: 2029 | BC5: 2030 | BD5: 2031 | BE5: 2032 | BF5: 2033 | BG5: 2034 | BH5: 2035 | BI5: 2036 | BJ5: 2037 | BK5: 2038 | BL5: 2039 | BM5: 2040 | BN5: 2041 | BO5: 2042 | BP5: 2043 | BQ5: 2044 | BR5: 2045 | BS5: 2046 | BT5: 2047 | BU5: 2048 | BV5: 2049 | BW5: 2050 | BX5: =BW5+1 -> 2051 | BY5: 2052 | BZ5: 2053 | CA5: 2054 | CB5: 2055 | CC5: 2056 | CD5: 2057 | CE5: 2058 | CF5: 2059 | CG5: 2060 | CH5: 2061 | CI5: 2062 | CJ5: 2063 | CK5: 2064 | CL5: 2065 | CM5: 2066 | CN5: 2067 | CO5: 2068 | CP5: 2069 | CQ5: 2070 | CR5: 2071 | CS5: 2072 | CT5: 2073 | CU5: 2074 | CV5: 2075 | CW5: 2076 | CX5: 2077 | CY5: 2078 | CZ5: 2079 | DA5: 2080 | DB5: 2081 | DC5: 2082 | DD5: 2083 | DE5: 2084 | DF5: 2085
C7: Concession Period | L7: 1 | M7: =L7+1 -> 2 | N7: 3 | O7: 4 | P7: 5 | Q7: 6 | R7: 7 | S7: 8 | T7: 9 | U7: 10 | V7: 11 | W7: 12 | X7: 13 | Y7: 14 | Z7: 15 | AA7: 16 | AB7: 17 | AC7: 18 | AD7: 19 | AE7: 20 | AF7: 21 | AG7: 22 | AH7: 23 | AI7: 24 | AJ7: 25 | AK7: 26 | AL7: 27 | AM7: 28 | AN7: 29 | AO7: 30 | AP7: 31 | AQ7: 32 | AR7: 33 | AS7: =AR7+1 -> 34 | AT7: 35 | AU7: 36 | AV7: 37 | AW7: 38 | AX7: 39 | AY7: 40 | AZ7: 41 | BA7: 42 | BB7: 43 | BC7: 44 | BD7: 45 | BE7: 46 | BF7: 47 | BG7: 48 | BH7: 49 | BI7: 50 | BJ7: 51 | BK7: 52 | BL7: 53 | BM7: 54 | BN7: 55 | BO7: 56 | BP7: 57 | BQ7: 58 | BR7: 59 | BS7: 60 | BT7: 61 | BU7: 62 | BV7: 63 | BW7: 64 | BX7: 65 | BY7: =BX7+1 -> 66 | BZ7: 67 | CA7: 68 | CB7: 69 | CC7: 70 | CD7: 71 | CE7: 72 | CF7: 73 | CG7: 74 | CH7: 75 | CI7: 76 | CJ7: 77 | CK7: 78 | CL7: 79 | CM7: 80 | CN7: 81 | CO7: 82 | CP7: 83 | CQ7: 84 | CR7: 85 | CS7: 86 | CT7: 87 | CU7: 88 | CV7: 89 | CW7: 90 | CX7: 91 | CY7: 92 | CZ7: 93 | DA7: 94 | DB7: 95 | DC7: 96 | DD7: 97 | DE7: 98 | DF7: 99
C8: Period Counter | L8: =Inputs!G9 -> -5 | M8: =L8+1 -> -4 | N8: -3 | O8: -2 | P8: -1 | Q8: 0 | R8: 1 | S8: 2 | T8: 3 | U8: 4 | V8: 5 | W8: 6 | X8: 7 | Y8: 8 | Z8: 9 | AA8: 10 | AB8: 11 | AC8: 12 | AD8: 13 | AE8: 14 | AF8: 15 | AG8: 16 | AH8: 17 | AI8: 18 | AJ8: 19 | AK8: 20 | AL8: 21 | AM8: 22 | AN8: 23 | AO8: 24 | AP8: 25 | AQ8: 26 | AR8: 27 | AS8: =AR8+1 -> 28 | AT8: 29 | AU8: 30 | AV8: 31 | AW8: 32 | AX8: 33 | AY8: 34 | AZ8: 35 | BA8: 36 | BB8: 37 | BC8: 38 | BD8: 39 | BE8: 40 | BF8: 41 | BG8: 42 | BH8: 43 | BI8: 44 | BJ8: 45 | BK8: 46 | BL8: 47 | BM8: 48 | BN8: 49 | BO8: 50 | BP8: 51 | BQ8: 52 | BR8: 53 | BS8: 54 | BT8: 55 | BU8: 56 | BV8: 57 | BW8: 58 | BX8: 59 | BY8: =BX8+1 -> 60 | BZ8: 61 | CA8: 62 | CB8: 63 | CC8: 64 | CD8: 65 | CE8: 66 | CF8: 67 | CG8: 68 | CH8: 69 | CI8: 70 | CJ8: 71 | CK8: 72 | CL8: 73 | CM8: 74 | CN8: 75 | CO8: 76 | CP8: 77 | CQ8: 78 | CR8: 79 | CS8: 80 | CT8: 81 | CU8: 82 | CV8: 83 | CW8: 84 | CX8: 85 | CY8: 86 | CZ8: 87 | DA8: 88 | DB8: 89 | DC8: 90 | DD8: 91 | DE8: 92 | DF8: 93
C9: Construction Flag | L9: =(L8<1)*1 -> 1 | M9: 1 | N9: 1 | O9: 1 | P9: 1 | Q9: 1 | R9: 0 | S9: 0 | T9: 0 | U9: 0 | V9: 0 | W9: 0 | X9: 0 | Y9: 0 | Z9: 0 | AA9: 0 | AB9: 0 | AC9: 0 | AD9: 0 | AE9: 0 | AF9: 0 | AG9: 0 | AH9: 0 | AI9: 0 | AJ9: 0 | AK9: 0 | AL9: 0 | AM9: 0 | AN9: 0 | AO9: 0 | AP9: 0 | AQ9: 0 | AR9: =(AR8<1)*1 -> 0 | AS9: 0 | AT9: 0 | AU9: 0 | AV9: 0 | AW9: 0 | AX9: 0 | AY9: 0 | AZ9: 0 | BA9: 0 | BB9: 0 | BC9: 0 | BD9: 0 | BE9: 0 | BF9: 0 | BG9: 0 | BH9: 0 | BI9: 0 | BJ9: 0 | BK9: 0 | BL9: 0 | BM9: 0 | BN9: 0 | BO9: 0 | BP9: 0 | BQ9: 0 | BR9: 0 | BS9: 0 | BT9: 0 | BU9: 0 | BV9: 0 | BW9: 0 | BX9: =(BX8<1)*1 -> 0 | BY9: 0 | BZ9: 0 | CA9: 0 | CB9: 0 | CC9: 0 | CD9: 0 | CE9: 0 | CF9: 0 | CG9: 0 | CH9: 0 | CI9: 0 | CJ9: 0 | CK9: 0 | CL9: 0 | CM9: 0 | CN9: 0 | CO9: 0 | CP9: 0 | CQ9: 0 | CR9: 0 | CS9: 0 | CT9: 0 | CU9: 0 | CV9: 0 | CW9: 0 | CX9: 0 | CY9: 0 | CZ9: 0 | DA9: 0 | DB9: 0 | DC9: 0 | DD9: =(DD8<1)*1 -> 0 | DE9: 0 | DF9: 0
C10: Operations Flag | L10: =(AND(L8>0,L7<=Inputs!$G$15))*1 -> 0 | M10: =(AND(M8>0,M7<=Inputs!$G$15))*1 -> 0 | N10: =(AND(N8>0,N7<=Inputs!$G$15))*1 -> 0 | O10: =(AND(O8>0,O7<=Inputs!$G$15))*1 -> 0 | P10: =(AND(P8>0,P7<=Inputs!$G$15))*1 -> 0 | Q10: =(AND(Q8>0,Q7<=Inputs!$G$15))*1 -> 0 | R10: =(AND(R8>0,R7<=Inputs!$G$15))*1 -> 1 | S10: =(AND(S8>0,S7<=Inputs!$G$15))*1 -> 1 | T10: =(AND(T8>0,T7<=Inputs!$G$15))*1 -> 1 | U10: =(AND(U8>0,U7<=Inputs!$G$15))*1 -> 1 | V10: =(AND(V8>0,V7<=Inputs!$G$15))*1 -> 1 | W10: =(AND(W8>0,W7<=Inputs!$G$15))*1 -> 1 | X10: =(AND(X8>0,X7<=Inputs!$G$15))*1 -> 1 | Y10: =(AND(Y8>0,Y7<=Inputs!$G$15))*1 -> 1 | Z10: =(AND(Z8>0,Z7<=Inputs!$G$15))*1 -> 1 | AA10: =(AND(AA8>0,AA7<=Inputs!$G$15))*1 -> 1 | AB10: =(AND(AB8>0,AB7<=Inputs!$G$15))*1 -> 1 | AC10: =(AND(AC8>0,AC7<=Inputs!$G$15))*1 -> 1 | AD10: =(AND(AD8>0,AD7<=Inputs!$G$15))*1 -> 1 | AE10: =(AND(AE8>0,AE7<=Inputs!$G$15))*1 -> 1 | AF10: =(AND(AF8>0,AF7<=Inputs!$G$15))*1 -> 1 | AG10: =(AND(AG8>0,AG7<=Inputs!$G$15))*1 -> 1 | AH10: =(AND(AH8>0,AH7<=Inputs!$G$15))*1 -> 1 | AI10: =(AND(AI8>0,AI7<=Inputs!$G$15))*1 -> 1 | AJ10: =(AND(AJ8>0,AJ7<=Inputs!$G$15))*1 -> 1 | AK10: =(AND(AK8>0,AK7<=Inputs!$G$15))*1 -> 1 | AL10: =(AND(AL8>0,AL7<=Inputs!$G$15))*1 -> 1 | AM10: =(AND(AM8>0,AM7<=Inputs!$G$15))*1 -> 1 | AN10: =(AND(AN8>0,AN7<=Inputs!$G$15))*1 -> 1 | AO10: =(AND(AO8>0,AO7<=Inputs!$G$15))*1 -> 1 | AP10: =(AND(AP8>0,AP7<=Inputs!$G$15))*1 -> 1 | AQ10: =(AND(AQ8>0,AQ7<=Inputs!$G$15))*1 -> 1 | AR10: =(AND(AR8>0,AR7<=Inputs!$G$15))*1 -> 1 | AS10: =(AND(AS8>0,AS7<=Inputs!$G$15))*1 -> 1 | AT10: =(AND(AT8>0,AT7<=Inputs!$G$15))*1 -> 1 | AU10: =(AND(AU8>0,AU7<=Inputs!$G$15))*1 -> 1 | AV10: =(AND(AV8>0,AV7<=Inputs!$G$15))*1 -> 1 | AW10: =(AND(AW8>0,AW7<=Inputs!$G$15))*1 -> 1 | AX10: =(AND(AX8>0,AX7<=Inputs!$G$15))*1 -> 1 | AY10: =(AND(AY8>0,AY7<=Inputs!$G$15))*1 -> 1 | AZ10: =(AND(AZ8>0,AZ7<=Inputs!$G$15))*1 -> 1 | BA10: =(AND(BA8>0,BA7<=Inputs!$G$15))*1 -> 1 | BB10: =(AND(BB8>0,BB7<=Inputs!$G$15))*1 -> 1 | BC10: =(AND(BC8>0,BC7<=Inputs!$G$15))*1 -> 1 | BD10: =(AND(BD8>0,BD7<=Inputs!$G$15))*1 -> 1 | BE10: =(AND(BE8>0,BE7<=Inputs!$G$15))*1 -> 1 | BF10: =(AND(BF8>0,BF7<=Inputs!$G$15))*1 -> 1 | BG10: =(AND(BG8>0,BG7<=Inputs!$G$15))*1 -> 1 | BH10: =(AND(BH8>0,BH7<=Inputs!$G$15))*1 -> 1 | BI10: =(AND(BI8>0,BI7<=Inputs!$G$15))*1 -> 1 | BJ10: =(AND(BJ8>0,BJ7<=Inputs!$G$15))*1 -> 1 | BK10: =(AND(BK8>0,BK7<=Inputs!$G$15))*1 -> 1 | BL10: =(AND(BL8>0,BL7<=Inputs!$G$15))*1 -> 1 | BM10: =(AND(BM8>0,BM7<=Inputs!$G$15))*1 -> 1 | BN10: =(AND(BN8>0,BN7<=Inputs!$G$15))*1 -> 1 | BO10: =(AND(BO8>0,BO7<=Inputs!$G$15))*1 -> 0 | BP10: =(AND(BP8>0,BP7<=Inputs!$G$15))*1 -> 0 | BQ10: =(AND(BQ8>0,BQ7<=Inputs!$G$15))*1 -> 0 | BR10: =(AND(BR8>0,BR7<=Inputs!$G$15))*1 -> 0 | BS10: =(AND(BS8>0,BS7<=Inputs!$G$15))*1 -> 0 | BT10: =(AND(BT8>0,BT7<=Inputs!$G$15))*1 -> 0 | BU10: =(AND(BU8>0,BU7<=Inputs!$G$15))*1 -> 0 | BV10: =(AND(BV8>0,BV7<=Inputs!$G$15))*1 -> 0 | BW10: =(AND(BW8>0,BW7<=Inputs!$G$15))*1 -> 0 | BX10: =(AND(BX8>0,BX7<=Inputs!$G$15))*1 -> 0 | BY10: =(AND(BY8>0,BY7<=Inputs!$G$15))*1 -> 0 | BZ10: =(AND(BZ8>0,BZ7<=Inputs!$G$15))*1 -> 0 | CA10: =(AND(CA8>0,CA7<=Inputs!$G$15))*1 -> 0 | CB10: =(AND(CB8>0,CB7<=Inputs!$G$15))*1 -> 0 | CC10: =(AND(CC8>0,CC7<=Inputs!$G$15))*1 -> 0 | CD10: =(AND(CD8>0,CD7<=Inputs!$G$15))*1 -> 0 | CE10: =(AND(CE8>0,CE7<=Inputs!$G$15))*1 -> 0 | CF10: =(AND(CF8>0,CF7<=Inputs!$G$15))*1 -> 0 | CG10: =(AND(CG8>0,CG7<=Inputs!$G$15))*1 -> 0 | CH10: =(AND(CH8>0,CH7<=Inputs!$G$15))*1 -> 0 | CI10: =(AND(CI8>0,CI7<=Inputs!$G$15))*1 -> 0 | CJ10: =(AND(CJ8>0,CJ7<=Inputs!$G$15))*1 -> 0 | CK10: =(AND(CK8>0,CK7<=Inputs!$G$15))*1 -> 0 | CL10: =(AND(CL8>0,CL7<=Inputs!$G$15))*1 -> 0 | CM10: =(AND(CM8>0,CM7<=Inputs!$G$15))*1 -> 0 | CN10: =(AND(CN8>0,CN7<=Inputs!$G$15))*1 -> 0 | CO10: =(AND(CO8>0,CO7<=Inputs!$G$15))*1 -> 0 | CP10: =(AND(CP8>0,CP7<=Inputs!$G$15))*1 -> 0 | CQ10: =(AND(CQ8>0,CQ7<=Inputs!$G$15))*1 -> 0 | CR10: =(AND(CR8>0,CR7<=Inputs!$G$15))*1 -> 0 | CS10: =(AND(CS8>0,CS7<=Inputs!$G$15))*1 -> 0 | CT10: =(AND(CT8>0,CT7<=Inputs!$G$15))*1 -> 0 | CU10: =(AND(CU8>0,CU7<=Inputs!$G$15))*1 -> 0 | CV10: =(AND(CV8>0,CV7<=Inputs!$G$15))*1 -> 0 | CW10: =(AND(CW8>0,CW7<=Inputs!$G$15))*1 -> 0 | CX10: =(AND(CX8>0,CX7<=Inputs!$G$15))*1 -> 0 | CY10: =(AND(CY8>0,CY7<=Inputs!$G$15))*1 -> 0 | CZ10: =(AND(CZ8>0,CZ7<=Inputs!$G$15))*1 -> 0 | DA10: =(AND(DA8>0,DA7<=Inputs!$G$15))*1 -> 0 | DB10: =(AND(DB8>0,DB7<=Inputs!$G$15))*1 -> 0 | DC10: =(AND(DC8>0,DC7<=Inputs!$G$15))*1 -> 0 | DD10: =(AND(DD8>0,DD7<=Inputs!$G$15))*1 -> 0 | DE10: =(AND(DE8>0,DE7<=Inputs!$G$15))*1 -> 0 | DF10: =(AND(DF8>0,DF7<=Inputs!$G$15))*1 -> 0
C11: Debt Repayment Flag | L11: =(AND(L8>0,L8<=Inputs!$G$50))*1 -> 0 | M11: =(AND(M8>0,M8<=Inputs!$G$50))*1 -> 0 | N11: =(AND(N8>0,N8<=Inputs!$G$50))*1 -> 0 | O11: =(AND(O8>0,O8<=Inputs!$G$50))*1 -> 0 | P11: =(AND(P8>0,P8<=Inputs!$G$50))*1 -> 0 | Q11: =(AND(Q8>0,Q8<=Inputs!$G$50))*1 -> 0 | R11: =(AND(R8>0,R8<=Inputs!$G$50))*1 -> 1 | S11: =(AND(S8>0,S8<=Inputs!$G$50))*1 -> 1 | T11: =(AND(T8>0,T8<=Inputs!$G$50))*1 -> 1 | U11: =(AND(U8>0,U8<=Inputs!$G$50))*1 -> 1 | V11: =(AND(V8>0,V8<=Inputs!$G$50))*1 -> 1 | W11: =(AND(W8>0,W8<=Inputs!$G$50))*1 -> 1 | X11: =(AND(X8>0,X8<=Inputs!$G$50))*1 -> 1 | Y11: =(AND(Y8>0,Y8<=Inputs!$G$50))*1 -> 1 | Z11: =(AND(Z8>0,Z8<=Inputs!$G$50))*1 -> 1 | AA11: =(AND(AA8>0,AA8<=Inputs!$G$50))*1 -> 1 | AB11: =(AND(AB8>0,AB8<=Inputs!$G$50))*1 -> 1 | AC11: =(AND(AC8>0,AC8<=Inputs!$G$50))*1 -> 1 | AD11: =(AND(AD8>0,AD8<=Inputs!$G$50))*1 -> 1 | AE11: =(AND(AE8>0,AE8<=Inputs!$G$50))*1 -> 1 | AF11: =(AND(AF8>0,AF8<=Inputs!$G$50))*1 -> 1 | AG11: =(AND(AG8>0,AG8<=Inputs!$G$50))*1 -> 1 | AH11: =(AND(AH8>0,AH8<=Inputs!$G$50))*1 -> 1 | AI11: =(AND(AI8>0,AI8<=Inputs!$G$50))*1 -> 1 | AJ11: =(AND(AJ8>0,AJ8<=Inputs!$G$50))*1 -> 1 | AK11: =(AND(AK8>0,AK8<=Inputs!$G$50))*1 -> 1 | AL11: =(AND(AL8>0,AL8<=Inputs!$G$50))*1 -> 1 | AM11: =(AND(AM8>0,AM8<=Inputs!$G$50))*1 -> 1 | AN11: =(AND(AN8>0,AN8<=Inputs!$G$50))*1 -> 1 | AO11: =(AND(AO8>0,AO8<=Inputs!$G$50))*1 -> 1 | AP11: =(AND(AP8>0,AP8<=Inputs!$G$50))*1 -> 1 | AQ11: =(AND(AQ8>0,AQ8<=Inputs!$G$50))*1 -> 1 | AR11: =(AND(AR8>0,AR8<=Inputs!$G$50))*1 -> 1 | AS11: =(AND(AS8>0,AS8<=Inputs!$G$50))*1 -> 1 | AT11: =(AND(AT8>0,AT8<=Inputs!$G$50))*1 -> 1 | AU11: =(AND(AU8>0,AU8<=Inputs!$G$50))*1 -> 1 | AV11: =(AND(AV8>0,AV8<=Inputs!$G$50))*1 -> 1 | AW11: =(AND(AW8>0,AW8<=Inputs!$G$50))*1 -> 1 | AX11: =(AND(AX8>0,AX8<=Inputs!$G$50))*1 -> 1 | AY11: =(AND(AY8>0,AY8<=Inputs!$G$50))*1 -> 0 | AZ11: =(AND(AZ8>0,AZ8<=Inputs!$G$50))*1 -> 0 | BA11: =(AND(BA8>0,BA8<=Inputs!$G$50))*1 -> 0 | BB11: =(AND(BB8>0,BB8<=Inputs!$G$50))*1 -> 0 | BC11: =(AND(BC8>0,BC8<=Inputs!$G$50))*1 -> 0 | BD11: =(AND(BD8>0,BD8<=Inputs!$G$50))*1 -> 0 | BE11: =(AND(BE8>0,BE8<=Inputs!$G$50))*1 -> 0 | BF11: =(AND(BF8>0,BF8<=Inputs!$G$50))*1 -> 0 | BG11: =(AND(BG8>0,BG8<=Inputs!$G$50))*1 -> 0 | BH11: =(AND(BH8>0,BH8<=Inputs!$G$50))*1 -> 0 | BI11: =(AND(BI8>0,BI8<=Inputs!$G$50))*1 -> 0 | BJ11: =(AND(BJ8>0,BJ8<=Inputs!$G$50))*1 -> 0 | BK11: =(AND(BK8>0,BK8<=Inputs!$G$50))*1 -> 0 | BL11: =(AND(BL8>0,BL8<=Inputs!$G$50))*1 -> 0 | BM11: =(AND(BM8>0,BM8<=Inputs!$G$50))*1 -> 0 | BN11: =(AND(BN8>0,BN8<=Inputs!$G$50))*1 -> 0 | BO11: =(AND(BO8>0,BO8<=Inputs!$G$50))*1 -> 0 | BP11: =(AND(BP8>0,BP8<=Inputs!$G$50))*1 -> 0 | BQ11: =(AND(BQ8>0,BQ8<=Inputs!$G$50))*1 -> 0 | BR11: =(AND(BR8>0,BR8<=Inputs!$G$50))*1 -> 0 | BS11: =(AND(BS8>0,BS8<=Inputs!$G$50))*1 -> 0 | BT11: =(AND(BT8>0,BT8<=Inputs!$G$50))*1 -> 0 | BU11: =(AND(BU8>0,BU8<=Inputs!$G$50))*1 -> 0 | BV11: =(AND(BV8>0,BV8<=Inputs!$G$50))*1 -> 0 | BW11: =(AND(BW8>0,BW8<=Inputs!$G$50))*1 -> 0 | BX11: =(AND(BX8>0,BX8<=Inputs!$G$50))*1 -> 0 | BY11: =(AND(BY8>0,BY8<=Inputs!$G$50))*1 -> 0 | BZ11: =(AND(BZ8>0,BZ8<=Inputs!$G$50))*1 -> 0 | CA11: =(AND(CA8>0,CA8<=Inputs!$G$50))*1 -> 0 | CB11: =(AND(CB8>0,CB8<=Inputs!$G$50))*1 -> 0 | CC11: =(AND(CC8>0,CC8<=Inputs!$G$50))*1 -> 0 | CD11: =(AND(CD8>0,CD8<=Inputs!$G$50))*1 -> 0 | CE11: =(AND(CE8>0,CE8<=Inputs!$G$50))*1 -> 0 | CF11: =(AND(CF8>0,CF8<=Inputs!$G$50))*1 -> 0 | CG11: =(AND(CG8>0,CG8<=Inputs!$G$50))*1 -> 0 | CH11: =(AND(CH8>0,CH8<=Inputs!$G$50))*1 -> 0 | CI11: =(AND(CI8>0,CI8<=Inputs!$G$50))*1 -> 0 | CJ11: =(AND(CJ8>0,CJ8<=Inputs!$G$50))*1 -> 0 | CK11: =(AND(CK8>0,CK8<=Inputs!$G$50))*1 -> 0 | CL11: =(AND(CL8>0,CL8<=Inputs!$G$50))*1 -> 0 | CM11: =(AND(CM8>0,CM8<=Inputs!$G$50))*1 -> 0 | CN11: =(AND(CN8>0,CN8<=Inputs!$G$50))*1 -> 0 | CO11: =(AND(CO8>0,CO8<=Inputs!$G$50))*1 -> 0 | CP11: =(AND(CP8>0,CP8<=Inputs!$G$50))*1 -> 0 | CQ11: =(AND(CQ8>0,CQ8<=Inputs!$G$50))*1 -> 0 | CR11: =(AND(CR8>0,CR8<=Inputs!$G$50))*1 -> 0 | CS11: =(AND(CS8>0,CS8<=Inputs!$G$50))*1 -> 0 | CT11: =(AND(CT8>0,CT8<=Inputs!$G$50))*1 -> 0 | CU11: =(AND(CU8>0,CU8<=Inputs!$G$50))*1 -> 0 | CV11: =(AND(CV8>0,CV8<=Inputs!$G$50))*1 -> 0 | CW11: =(AND(CW8>0,CW8<=Inputs!$G$50))*1 -> 0 | CX11: =(AND(CX8>0,CX8<=Inputs!$G$50))*1 -> 0 | CY11: =(AND(CY8>0,CY8<=Inputs!$G$50))*1 -> 0 | CZ11: =(AND(CZ8>0,CZ8<=Inputs!$G$50))*1 -> 0 | DA11: =(AND(DA8>0,DA8<=Inputs!$G$50))*1 -> 0 | DB11: =(AND(DB8>0,DB8<=Inputs!$G$50))*1 -> 0 | DC11: =(AND(DC8>0,DC8<=Inputs!$G$50))*1 -> 0 | DD11: =(AND(DD8>0,DD8<=Inputs!$G$50))*1 -> 0 | DE11: =(AND(DE8>0,DE8<=Inputs!$G$50))*1 -> 0 | DF11: =(AND(DF8>0,DF8<=Inputs!$G$50))*1 -> 0
B13: Cash Flow
C14: Construction Expenditures | J14: =SUM(L14:U14) -> 3821 | L14: =Inputs!$G$25*Inputs!L21 -> 382.1 | M14: =Inputs!$G$25*Inputs!M21 -> 811.9625 | N14: =Inputs!$G$25*Inputs!N21 -> 811.9625 | O14: =Inputs!$G$25*Inputs!O21 -> 811.9625 | P14: =Inputs!$G$25*Inputs!P21 -> 811.9625 | Q14: =Inputs!$G$25*Inputs!Q21 -> 191.05 | R14: =Inputs!$G$25*Inputs!R21 -> 0 | S14: =Inputs!$G$25*Inputs!S21 -> 0 | T14: =Inputs!$G$25*Inputs!T21 -> 0 | U14: =Inputs!$G$25*Inputs!U21 -> 0
C16: Sensitivity | G16: =Inputs!G33 -> 1
C17: Revenues | L17: =Inputs!L31*L10*$G$16 -> 0 | M17: =Inputs!M31*M10*$G$16 -> 0 | N17: =Inputs!N31*N10*$G$16 -> 0 | O17: =Inputs!O31*O10*$G$16 -> 0 | P17: =Inputs!P31*P10*$G$16 -> 0 | Q17: =Inputs!Q31*Q10*$G$16 -> 0 | R17: =Inputs!R31*R10*$G$16 -> 488 | S17: =Inputs!S31*S10*$G$16 -> 790 | T17: =Inputs!T31*T10*$G$16 -> 820 | U17: =Inputs!U31*U10*$G$16 -> 900 | V17: =Inputs!V31*V10*$G$16 -> 1000 | W17: =Inputs!W31*W10*$G$16 -> 1010 | X17: =Inputs!X31*X10*$G$16 -> 1020.1 | Y17: =Inputs!Y31*Y10*$G$16 -> 1030.301 | Z17: =Inputs!Z31*Z10*$G$16 -> 1040.60401 | AA17: =Inputs!AA31*AA10*$G$16 -> 1051.01005 | AB17: =Inputs!AB31*AB10*$G$16 -> 1061.520151 | AC17: =Inputs!AC31*AC10*$G$16 -> 1072.135352 | AD17: =Inputs!AD31*AD10*$G$16 -> 1082.856706 | AE17: =Inputs!AE31*AE10*$G$16 -> 1093.685273 | AF17: =Inputs!AF31*AF10*$G$16 -> 1104.622125 | AG17: =Inputs!AG31*AG10*$G$16 -> 1115.668347 | AH17: =Inputs!AH31*AH10*$G$16 -> 1126.82503 | AI17: =Inputs!AI31*AI10*$G$16 -> 1138.09328 | AJ17: =Inputs!AJ31*AJ10*$G$16 -> 1149.474213 | AK17: =Inputs!AK31*AK10*$G$16 -> 1160.968955 | AL17: =Inputs!AL31*AL10*$G$16 -> 1172.578645 | AM17: =Inputs!AM31*AM10*$G$16 -> 1184.304431 | AN17: =Inputs!AN31*AN10*$G$16 -> 1196.147476 | AO17: =Inputs!AO31*AO10*$G$16 -> 1208.10895 | AP17: =Inputs!AP31*AP10*$G$16 -> 1220.19004 | AQ17: =Inputs!AQ31*AQ10*$G$16 -> 1232.39194 | AR17: =Inputs!AR31*AR10*$G$16 -> 1244.71586 | AS17: =Inputs!AS31*AS10*$G$16 -> 1257.163018 | AT17: =Inputs!AT31*AT10*$G$16 -> 1269.734649 | AU17: =Inputs!AU31*AU10*$G$16 -> 1282.431995 | AV17: =Inputs!AV31*AV10*$G$16 -> 1295.256315 | AW17: =Inputs!AW31*AW10*$G$16 -> 1308.208878 | AX17: =Inputs!AX31*AX10*$G$16 -> 1321.290967 | AY17: =Inputs!AY31*AY10*$G$16 -> 1334.503877 | AZ17: =Inputs!AZ31*AZ10*$G$16 -> 1347.848915 | BA17: =Inputs!BA31*BA10*$G$16 -> 1361.327404 | BB17: =Inputs!BB31*BB10*$G$16 -> 1374.940679 | BC17: =Inputs!BC31*BC10*$G$16 -> 1388.690085 | BD17: =Inputs!BD31*BD10*$G$16 -> 1402.576986 | BE17: =Inputs!BE31*BE10*$G$16 -> 1416.602756 | BF17: =Inputs!BF31*BF10*$G$16 -> 1430.768784 | BG17: =Inputs!BG31*BG10*$G$16 -> 1445.076471 | BH17: =Inputs!BH31*BH10*$G$16 -> 1459.527236 | BI17: =Inputs!BI31*BI10*$G$16 -> 1474.122509 | BJ17: =Inputs!BJ31*BJ10*$G$16 -> 1488.863734 | BK17: =Inputs!BK31*BK10*$G$16 -> 1503.752371 | BL17: =Inputs!BL31*BL10*$G$16 -> 1518.789895 | BM17: =Inputs!BM31*BM10*$G$16 -> 1533.977794 | BN17: =Inputs!BN31*BN10*$G$16 -> 1549.317572 | BO17: =Inputs!BO31*BO10*$G$16 -> 0 | BP17: =Inputs!BP31*BP10*$G$16 -> 0 | BQ17: =Inputs!BQ31*BQ10*$G$16 -> 0 | BR17: =Inputs!BR31*BR10*$G$16 -> 0 | BS17: =Inputs!BS31*BS10*$G$16 -> 0 | BT17: =Inputs!BT31*BT10*$G$16 -> 0 | BU17: =Inputs!BU31*BU10*$G$16 -> 0 | BV17: =Inputs!BV31*BV10*$G$16 -> 0 | BW17: =Inputs!BW31*BW10*$G$16 -> 0 | BX17: =Inputs!BX31*BX10*$G$16 -> 0 | BY17: =Inputs!BY31*BY10*$G$16 -> 0 | BZ17: =Inputs!BZ31*BZ10*$G$16 -> 0 | CA17: =Inputs!CA31*CA10*$G$16 -> 0 | CB17: =Inputs!CB31*CB10*$G$16 -> 0 | CC17: =Inputs!CC31*CC10*$G$16 -> 0 | CD17: =Inputs!CD31*CD10*$G$16 -> 0 | CE17: =Inputs!CE31*CE10*$G$16 -> 0 | CF17: =Inputs!CF31*CF10*$G$16 -> 0 | CG17: =Inputs!CG31*CG10*$G$16 -> 0 | CH17: =Inputs!CH31*CH10*$G$16 -> 0 | CI17: =Inputs!CI31*CI10*$G$16 -> 0 | CJ17: =Inputs!CJ31*CJ10*$G$16 -> 0 | CK17: =Inputs!CK31*CK10*$G$16 -> 0 | CL17: =Inputs!CL31*CL10*$G$16 -> 0 | CM17: =Inputs!CM31*CM10*$G$16 -> 0 | CN17: =Inputs!CN31*CN10*$G$16 -> 0 | CO17: =Inputs!CO31*CO10*$G$16 -> 0 | CP17: =Inputs!CP31*CP10*$G$16 -> 0 | CQ17: =Inputs!CQ31*CQ10*$G$16 -> 0 | CR17: =Inputs!CR31*CR10*$G$16 -> 0 | CS17: =Inputs!CS31*CS10*$G$16 -> 0 | CT17: =Inputs!CT31*CT10*$G$16 -> 0 | CU17: =Inputs!CU31*CU10*$G$16 -> 0 | CV17: =Inputs!CV31*CV10*$G$16 -> 0 | CW17: =Inputs!CW31*CW10*$G$16 -> 0 | CX17: =Inputs!CX31*CX10*$G$16 -> 0 | CY17: =Inputs!CY31*CY10*$G$16 -> 0 | CZ17: =Inputs!CZ31*CZ10*$G$16 -> 0 | DA17: =Inputs!DA31*DA10*$G$16 -> 0 | DB17: =Inputs!DB31*DB10*$G$16 -> 0 | DC17: =Inputs!DC31*DC10*$G$16 -> 0 | DD17: =Inputs!DD31*DD10*$G$16 -> 0 | DE17: =Inputs!DE31*DE10*$G$16 -> 0 | DF17: =Inputs!DF31*DF10*$G$16 -> 0
C18: Operating Costs | L18: =Inputs!L39*L10 -> 0 | M18: =Inputs!M39*M10 -> 0 | N18: =Inputs!N39*N10 -> 0 | O18: =Inputs!O39*O10 -> 0 | P18: =Inputs!P39*P10 -> 0 | Q18: =Inputs!Q39*Q10 -> 0 | R18: =Inputs!R39*R10 -> 100 | S18: =Inputs!S39*S10 -> 102 | T18: =Inputs!T39*T10 -> 104.04 | U18: =Inputs!U39*U10 -> 106.1208 | V18: =Inputs!V39*V10 -> 108.243216 | W18: =Inputs!W39*W10 -> 110.4080803 | X18: =Inputs!X39*X10 -> 112.6162419 | Y18: =Inputs!Y39*Y10 -> 114.8685668 | Z18: =Inputs!Z39*Z10 -> 117.1659381 | AA18: =Inputs!AA39*AA10 -> 119.5092569 | AB18: =Inputs!AB39*AB10 -> 120.7043494 | AC18: =Inputs!AC39*AC10 -> 121.9113929 | AD18: =Inputs!AD39*AD10 -> 123.1305069 | AE18: =Inputs!AE39*AE10 -> 124.3618119 | AF18: =Inputs!AF39*AF10 -> 125.60543 | AG18: =Inputs!AG39*AG10 -> 126.8614843 | AH18: =Inputs!AH39*AH10 -> 128.1300992 | AI18: =Inputs!AI39*AI10 -> 129.4114002 | AJ18: =Inputs!AJ39*AJ10 -> 130.7055142 | AK18: =Inputs!AK39*AK10 -> 132.0125693 | AL18: =Inputs!AL39*AL10 -> 133.332695 | AM18: =Inputs!AM39*AM10 -> 134.666022 | AN18: =Inputs!AN39*AN10 -> 136.0126822 | AO18: =Inputs!AO39*AO10 -> 137.372809 | AP18: =Inputs!AP39*AP10 -> 138.7465371 | AQ18: =Inputs!AQ39*AQ10 -> 140.1340025 | AR18: =Inputs!AR39*AR10 -> 141.5353425 | AS18: =Inputs!AS39*AS10 -> 142.9506959 | AT18: =Inputs!AT39*AT10 -> 144.3802029 | AU18: =Inputs!AU39*AU10 -> 145.8240049 | AV18: =Inputs!AV39*AV10 -> 147.282245 | AW18: =Inputs!AW39*AW10 -> 148.7550674 | AX18: =Inputs!AX39*AX10 -> 150.2426181 | AY18: =Inputs!AY39*AY10 -> 151.7450443 | AZ18: =Inputs!AZ39*AZ10 -> 153.2624947 | BA18: =Inputs!BA39*BA10 -> 154.7951196 | BB18: =Inputs!BB39*BB10 -> 156.3430708 | BC18: =Inputs!BC39*BC10 -> 157.9065016 | BD18: =Inputs!BD39*BD10 -> 159.4855666 | BE18: =Inputs!BE39*BE10 -> 161.0804222 | BF18: =Inputs!BF39*BF10 -> 162.6912265 | BG18: =Inputs!BG39*BG10 -> 164.3181387 | BH18: =Inputs!BH39*BH10 -> 165.9613201 | BI18: =Inputs!BI39*BI10 -> 167.6209333 | BJ18: =Inputs!BJ39*BJ10 -> 169.2971426 | BK18: =Inputs!BK39*BK10 -> 170.9901141 | BL18: =Inputs!BL39*BL10 -> 172.7000152 | BM18: =Inputs!BM39*BM10 -> 174.4270154 | BN18: =Inputs!BN39*BN10 -> 176.1712855 | BO18: =Inputs!BO39*BO10 -> 0 | BP18: =Inputs!BP39*BP10 -> 0 | BQ18: =Inputs!BQ39*BQ10 -> 0 | BR18: =Inputs!BR39*BR10 -> 0 | BS18: =Inputs!BS39*BS10 -> 0 | BT18: =Inputs!BT39*BT10 -> 0 | BU18: =Inputs!BU39*BU10 -> 0 | BV18: =Inputs!BV39*BV10 -> 0 | BW18: =Inputs!BW39*BW10 -> 0 | BX18: =Inputs!BX39*BX10 -> 0 | BY18: =Inputs!BY39*BY10 -> 0 | BZ18: =Inputs!BZ39*BZ10 -> 0 | CA18: =Inputs!CA39*CA10 -> 0 | CB18: =Inputs!CB39*CB10 -> 0 | CC18: =Inputs!CC39*CC10 -> 0 | CD18: =Inputs!CD39*CD10 -> 0 | CE18: =Inputs!CE39*CE10 -> 0 | CF18: =Inputs!CF39*CF10 -> 0 | CG18: =Inputs!CG39*CG10 -> 0 | CH18: =Inputs!CH39*CH10 -> 0 | CI18: =Inputs!CI39*CI10 -> 0 | CJ18: =Inputs!CJ39*CJ10 -> 0 | CK18: =Inputs!CK39*CK10 -> 0 | CL18: =Inputs!CL39*CL10 -> 0 | CM18: =Inputs!CM39*CM10 -> 0 | CN18: =Inputs!CN39*CN10 -> 0 | CO18: =Inputs!CO39*CO10 -> 0 | CP18: =Inputs!CP39*CP10 -> 0 | CQ18: =Inputs!CQ39*CQ10 -> 0 | CR18: =Inputs!CR39*CR10 -> 0 | CS18: =Inputs!CS39*CS10 -> 0 | CT18: =Inputs!CT39*CT10 -> 0 | CU18: =Inputs!CU39*CU10 -> 0 | CV18: =Inputs!CV39*CV10 -> 0 | CW18: =Inputs!CW39*CW10 -> 0 | CX18: =Inputs!CX39*CX10 -> 0 | CY18: =Inputs!CY39*CY10 -> 0 | CZ18: =Inputs!CZ39*CZ10 -> 0 | DA18: =Inputs!DA39*DA10 -> 0 | DB18: =Inputs!DB39*DB10 -> 0 | DC18: =Inputs!DC39*DC10 -> 0 | DD18: =Inputs!DD39*DD10 -> 0 | DE18: =Inputs!DE39*DE10 -> 0 | DF18: =Inputs!DF39*DF10 -> 0
B20: Sources and Uses
C21: Construction Expenditures | J21: =SUM(L21:DF21) -> 3821 | L21: =L14 -> 382.1 | M21: 811.9625 | N21: 811.9625 | O21: 811.9625 | P21: 811.9625 | Q21: 191.05 | R21: 0 | S21: 0 | T21: 0 | U21: 0 | V21: 0 | W21: 0 | X21: 0 | Y21: 0 | Z21: 0 | AA21: 0 | AB21: 0 | AC21: 0 | AD21: 0 | AE21: 0 | AF21: 0 | AG21: 0 | AH21: 0 | AI21: 0 | AJ21: 0 | AK21: 0 | AL21: 0 | AM21: 0 | AN21: 0 | AO21: 0 | AP21: 0 | AQ21: 0 | AR21: =AR14 -> 0 | AS21: 0 | AT21: 0 | AU21: 0 | AV21: 0 | AW21: 0 | AX21: 0 | AY21: 0 | AZ21: 0 | BA21: 0 | BB21: 0 | BC21: 0 | BD21: 0 | BE21: 0 | BF21: 0 | BG21: 0 | BH21: 0 | BI21: 0 | BJ21: 0 | BK21: 0 | BL21: 0 | BM21: 0 | BN21: 0 | BO21: 0 | BP21: 0 | BQ21: 0 | BR21: 0 | BS21: 0 | BT21: 0 | BU21: 0 | BV21: 0 | BW21: 0 | BX21: =BX14 -> 0 | BY21: 0 | BZ21: 0 | CA21: 0 | CB21: 0 | CC21: 0 | CD21: 0 | CE21: 0 | CF21: 0 | CG21: 0 | CH21: 0 | CI21: 0 | CJ21: 0 | CK21: 0 | CL21: 0 | CM21: 0 | CN21: 0 | CO21: 0 | CP21: 0 | CQ21: 0 | CR21: 0 | CS21: 0 | CT21: 0 | CU21: 0 | CV21: 0 | CW21: 0 | CX21: 0 | CY21: 0 | CZ21: 0 | DA21: 0 | DB21: 0 | DC21: 0 | DD21: 0 | DE21: 0 | DF21: 0
C22: Interest During Construction | J22: =SUM(L22:DF22) -> 507.5947361 | L22: =L61 -> 0 | M22: =M61 -> 0 | N22: 30.74453125 | O22: 91.84079102 | P22: 157.3665296 | Q22: 227.6428843 | R22: 0 | S22: 0 | T22: 0 | U22: 0 | V22: 0 | W22: 0 | X22: 0 | Y22: 0 | Z22: 0 | AA22: 0 | AB22: 0 | AC22: 0 | AD22: 0 | AE22: 0 | AF22: 0 | AG22: 0 | AH22: 0 | AI22: 0 | AJ22: 0 | AK22: 0 | AL22: 0 | AM22: 0 | AN22: 0 | AO22: 0 | AP22: 0 | AQ22: 0 | AR22: 0 | AS22: 0 | AT22: 0 | AU22: 0 | AV22: 0 | AW22: 0 | AX22: 0 | AY22: 0 | AZ22: 0 | BA22: 0 | BB22: 0 | BC22: 0 | BD22: 0 | BE22: 0 | BF22: 0 | BG22: 0 | BH22: 0 | BI22: 0 | BJ22: 0 | BK22: 0 | BL22: 0 | BM22: 0 | BN22: 0 | BO22: 0 | BP22: 0 | BQ22: 0 | BR22: 0 | BS22: 0 | BT22: 0 | BU22: 0 | BV22: 0 | BW22: 0 | BX22: 0 | BY22: =BY61 -> 0 | BZ22: 0 | CA22: 0 | CB22: 0 | CC22: 0 | CD22: 0 | CE22: 0 | CF22: 0 | CG22: 0 | CH22: 0 | CI22: 0 | CJ22: 0 | CK22: 0 | CL22: 0 | CM22: 0 | CN22: 0 | CO22: 0 | CP22: 0 | CQ22: 0 | CR22: 0 | CS22: 0 | CT22: 0 | CU22: 0 | CV22: 0 | CW22: 0 | CX22: 0 | CY22: 0 | CZ22: 0 | DA22: 0 | DB22: 0 | DC22: 0 | DD22: 0 | DE22: 0 | DF22: 0
C23: Fees
C24: Working Capital | L24: =L30-L21 -> 387.9 | M24: =-L24 -> -387.9
D25: Total | J25: =SUM(J21:J23) -> 4328.594736 | L25: =SUM(L21:L24) -> 770 | M25: =SUM(M21:M24) -> 424.0625 | N25: 842.7070312 | O25: 903.803291 | P25: 969.3290296 | Q25: 418.6928843 | R25: 0 | S25: 0 | T25: 0 | U25: 0 | V25: 0 | W25: 0 | X25: 0 | Y25: 0 | Z25: 0 | AA25: 0 | AB25: 0 | AC25: 0 | AD25: 0 | AE25: 0 | AF25: 0 | AG25: 0 | AH25: 0 | AI25: 0 | AJ25: 0 | AK25: 0 | AL25: 0 | AM25: 0 | AN25: 0 | AO25: 0 | AP25: 0 | AQ25: 0 | AR25: 0 | AS25: 0 | AT25: 0 | AU25: 0 | AV25: 0 | AW25: 0 | AX25: 0 | AY25: 0 | AZ25: 0 | BA25: 0 | BB25: 0 | BC25: 0 | BD25: 0 | BE25: 0 | BF25: 0 | BG25: 0 | BH25: 0 | BI25: 0 | BJ25: 0 | BK25: 0 | BL25: 0 | BM25: 0 | BN25: 0 | BO25: 0 | BP25: 0 | BQ25: 0 | BR25: 0 | BS25: 0 | BT25: 0 | BU25: 0 | BV25: 0 | BW25: 0 | BX25: 0 | BY25: =SUM(BY21:BY24) -> 0 | BZ25: 0 | CA25: 0 | CB25: 0 | CC25: 0 | CD25: 0 | CE25: 0 | CF25: 0 | CG25: 0 | CH25: 0 | CI25: 0 | CJ25: 0 | CK25: 0 | CL25: 0 | CM25: 0 | CN25: 0 | CO25: 0 | CP25: 0 | CQ25: 0 | CR25: 0 | CS25: 0 | CT25: 0 | CU25: 0 | CV25: 0 | CW25: 0 | CX25: 0 | CY25: 0 | CZ25: 0 | DA25: 0 | DB25: 0 | DC25: 0 | DD25: 0 | DE25: 0 | DF25: 0
C27: Original Junior Debt | J27: =SUM(L27:DF27) -> 3558.594736 | K27: =J27/$J$31 -> 0.8221131691 | L27: =MAX(L25-L30,0) -> 0 | M27: =MAX(M25-M30,0) -> 424.0625 | N27: 842.7070312 | O27: 903.803291 | P27: 969.3290296 | Q27: 418.6928843 | R27: 0 | S27: 0 | T27: 0 | U27: 0 | V27: 0 | W27: 0 | X27: 0 | Y27: 0 | Z27: 0 | AA27: 0 | AB27: 0 | AC27: 0 | AD27: 0 | AE27: 0 | AF27: 0 | AG27: 0 | AH27: 0 | AI27: 0 | AJ27: 0 | AK27: 0 | AL27: 0 | AM27: 0 | AN27: 0 | AO27: 0 | AP27: 0 | AQ27: 0 | AR27: 0 | AS27: 0 | AT27: 0 | AU27: 0 | AV27: 0 | AW27: 0 | AX27: 0 | AY27: 0 | AZ27: 0 | BA27: 0 | BB27: 0 | BC27: 0 | BD27: 0 | BE27: 0 | BF27: 0 | BG27: 0 | BH27: 0 | BI27: 0 | BJ27: 0 | BK27: 0 | BL27: 0 | BM27: 0 | BN27: 0 | BO27: 0 | BP27: 0 | BQ27: 0 | BR27: 0 | BS27: 0 | BT27: 0 | BU27: 0 | BV27: 0 | BW27: 0 | BX27: 0 | BY27: =MAX(BY25-BY30,0) -> 0 | BZ27: 0 | CA27: 0 | CB27: 0 | CC27: 0 | CD27: 0 | CE27: 0 | CF27: 0 | CG27: 0 | CH27: 0 | CI27: 0 | CJ27: 0 | CK27: 0 | CL27: 0 | CM27: 0 | CN27: 0 | CO27: 0 | CP27: 0 | CQ27: 0 | CR27: 0 | CS27: 0 | CT27: 0 | CU27: 0 | CV27: 0 | CW27: 0 | CX27: 0 | CY27: 0 | CZ27: 0 | DA27: 0 | DB27: 0 | DC27: 0 | DD27: 0 | DE27: 0 | DF27: 0
C28: Second Junior Debt Tranche | J28: =SUM(L28:DF28) -> 0
C29: Senior Debt | J29: =SUM(L29:DF29) -> 0
C30: Equity | J30: =SUM(L30:DF30) -> 770 | K30: =J30/$J$31 -> 0.1778868309 | L30: =Inputs!L71 -> 770 | M30: =IF(AND(Inputs!$G$18=2,Inputs!$H$23=2),Inputs!N72+Inputs!N73,0) -> 0 | N30: =IF(AND(Inputs!$G$18=2,Inputs!$H$23=2),Inputs!O72+Inputs!O73,0) -> 0 | O30: =IF(AND(Inputs!$G$18=2,Inputs!$H$23=2),Inputs!P72+Inputs!P73,0) -> 0 | P30: =IF(AND(Inputs!$G$18=2,Inputs!$H$23=2),Inputs!Q72+Inputs!Q73,0) -> 0 | Q30: =IF(AND(Inputs!$G$18=2,Inputs!$H$23=2),Inputs!R72+Inputs!R73,0) -> 0 | R30: =IF(AND(Inputs!$G$18=2,Inputs!$H$23=2),Inputs!S72+Inputs!S73,0) -> 0 | S30: =IF(AND(Inputs!$G$18=2,Inputs!$H$23=2),Inputs!T72+Inputs!T73,0) -> 0 | T30: =IF(AND(Inputs!$G$18=2,Inputs!$H$23=2),Inputs!U72+Inputs!U73,0) -> 0 | U30: =IF(AND(Inputs!$G$18=2,Inputs!$H$23=2),Inputs!V72+Inputs!V73,0) -> 0 | V30: =IF(AND(Inputs!$G$18=2,Inputs!$H$23=2),Inputs!W72+Inputs!W73,0) -> 0 | W30: =IF(AND(Inputs!$G$18=2,Inputs!$H$23=2),Inputs!X72+Inputs!X73,0) -> 0 | X30: =IF(AND(Inputs!$G$18=2,Inputs!$H$23=2),Inputs!Y72+Inputs!Y73,0) -> 0 | Y30: =IF(AND(Inputs!$G$18=2,Inputs!$H$23=2),Inputs!Z72+Inputs!Z73,0) -> 0 | Z30: =IF(AND(Inputs!$G$18=2,Inputs!$H$23=2),Inputs!AA72+Inputs!AA73,0) -> 0 | AA30: =IF(AND(Inputs!$G$18=2,Inputs!$H$23=2),Inputs!AB72+Inputs!AB73,0) -> 0 | AB30: =IF(AND(Inputs!$G$18=2,Inputs!$H$23=2),Inputs!AC72+Inputs!AC73,0) -> 0 | AC30: =IF(AND(Inputs!$G$18=2,Inputs!$H$23=2),Inputs!AD72+Inputs!AD73,0) -> 0 | AD30: =IF(AND(Inputs!$G$18=2,Inputs!$H$23=2),Inputs!AE72+Inputs!AE73,0) -> 0 | AE30: =IF(AND(Inputs!$G$18=2,Inputs!$H$23=2),Inputs!AF72+Inputs!AF73,0) -> 0 | AF30: =IF(AND(Inputs!$G$18=2,Inputs!$H$23=2),Inputs!AG72+Inputs!AG73,0) -> 0 | AG30: =IF(AND(Inputs!$G$18=2,Inputs!$H$23=2),Inputs!AH72+Inputs!AH73,0) -> 0 | AH30: =IF(AND(Inputs!$G$18=2,Inputs!$H$23=2),Inputs!AI72+Inputs!AI73,0) -> 0 | AI30: =IF(AND(Inputs!$G$18=2,Inputs!$H$23=2),Inputs!AJ72+Inputs!AJ73,0) -> 0 | AJ30: =IF(AND(Inputs!$G$18=2,Inputs!$H$23=2),Inputs!AK72+Inputs!AK73,0) -> 0 | AK30: =IF(AND(Inputs!$G$18=2,Inputs!$H$23=2),Inputs!AL72+Inputs!AL73,0) -> 0 | AL30: =IF(AND(Inputs!$G$18=2,Inputs!$H$23=2),Inputs!AM72+Inputs!AM73,0) -> 0 | AM30: =IF(AND(Inputs!$G$18=2,Inputs!$H$23=2),Inputs!AN72+Inputs!AN73,0) -> 0 | AN30: =IF(AND(Inputs!$G$18=2,Inputs!$H$23=2),Inputs!AO72+Inputs!AO73,0) -> 0 | AO30: =IF(AND(Inputs!$G$18=2,Inputs!$H$23=2),Inputs!AP72+Inputs!AP73,0) -> 0 | AP30: =IF(AND(Inputs!$G$18=2,Inputs!$H$23=2),Inputs!AQ72+Inputs!AQ73,0) -> 0 | AQ30: =IF(AND(Inputs!$G$18=2,Inputs!$H$23=2),Inputs!AR72+Inputs!AR73,0) -> 0 | AR30: =IF(AND(Inputs!$G$18=2,Inputs!$H$23=2),Inputs!AS72+Inputs!AS73,0) -> 0 | AS30: =IF(AND(Inputs!$G$18=2,Inputs!$H$23=2),Inputs!AT72+Inputs!AT73,0) -> 0 | AT30: =IF(AND(Inputs!$G$18=2,Inputs!$H$23=2),Inputs!AU72+Inputs!AU73,0) -> 0 | AU30: =IF(AND(Inputs!$G$18=2,Inputs!$H$23=2),Inputs!AV72+Inputs!AV73,0) -> 0 | AV30: =IF(AND(Inputs!$G$18=2,Inputs!$H$23=2),Inputs!AW72+Inputs!AW73,0) -> 0 | AW30: =IF(AND(Inputs!$G$18=2,Inputs!$H$23=2),Inputs!AX72+Inputs!AX73,0) -> 0 | AX30: =IF(AND(Inputs!$G$18=2,Inputs!$H$23=2),Inputs!AY72+Inputs!AY73,0) -> 0 | AY30: =IF(AND(Inputs!$G$18=2,Inputs!$H$23=2),Inputs!AZ72+Inputs!AZ73,0) -> 0 | AZ30: =IF(AND(Inputs!$G$18=2,Inputs!$H$23=2),Inputs!BA72+Inputs!BA73,0) -> 0 | BA30: =IF(AND(Inputs!$G$18=2,Inputs!$H$23=2),Inputs!BB72+Inputs!BB73,0) -> 0 | BB30: =IF(AND(Inputs!$G$18=2,Inputs!$H$23=2),Inputs!BC72+Inputs!BC73,0) -> 0 | BC30: =IF(AND(Inputs!$G$18=2,Inputs!$H$23=2),Inputs!BD72+Inputs!BD73,0) -> 0 | BD30: =IF(AND(Inputs!$G$18=2,Inputs!$H$23=2),Inputs!BE72+Inputs!BE73,0) -> 0 | BE30: =IF(AND(Inputs!$G$18=2,Inputs!$H$23=2),Inputs!BF72+Inputs!BF73,0) -> 0 | BF30: =IF(AND(Inputs!$G$18=2,Inputs!$H$23=2),Inputs!BG72+Inputs!BG73,0) -> 0 | BG30: =IF(AND(Inputs!$G$18=2,Inputs!$H$23=2),Inputs!BH72+Inputs!BH73,0) -> 0 | BH30: =IF(AND(Inputs!$G$18=2,Inputs!$H$23=2),Inputs!BI72+Inputs!BI73,0) -> 0 | BI30: =IF(AND(Inputs!$G$18=2,Inputs!$H$23=2),Inputs!BJ72+Inputs!BJ73,0) -> 0 | BJ30: =IF(AND(Inputs!$G$18=2,Inputs!$H$23=2),Inputs!BK72+Inputs!BK73,0) -> 0 | BK30: =IF(AND(Inputs!$G$18=2,Inputs!$H$23=2),Inputs!BL72+Inputs!BL73,0) -> 0 | BL30: =IF(AND(Inputs!$G$18=2,Inputs!$H$23=2),Inputs!BM72+Inputs!BM73,0) -> 0 | BM30: =IF(AND(Inputs!$G$18=2,Inputs!$H$23=2),Inputs!BN72+Inputs!BN73,0) -> 0 | BN30: =IF(AND(Inputs!$G$18=2,Inputs!$H$23=2),Inputs!BO72+Inputs!BO73,0) -> 0 | BO30: =IF(AND(Inputs!$G$18=2,Inputs!$H$23=2),Inputs!BP72+Inputs!BP73,0) -> 0 | BP30: =IF(AND(Inputs!$G$18=2,Inputs!$H$23=2),Inputs!BQ72+Inputs!BQ73,0) -> 0 | BQ30: =IF(AND(Inputs!$G$18=2,Inputs!$H$23=2),Inputs!BR72+Inputs!BR73,0) -> 0 | BR30: =IF(AND(Inputs!$G$18=2,Inputs!$H$23=2),Inputs!BS72+Inputs!BS73,0) -> 0 | BS30: =IF(AND(Inputs!$G$18=2,Inputs!$H$23=2),Inputs!BT72+Inputs!BT73,0) -> 0 | BT30: =IF(AND(Inputs!$G$18=2,Inputs!$H$23=2),Inputs!BU72+Inputs!BU73,0) -> 0 | BU30: =IF(AND(Inputs!$G$18=2,Inputs!$H$23=2),Inputs!BV72+Inputs!BV73,0) -> 0 | BV30: =IF(AND(Inputs!$G$18=2,Inputs!$H$23=2),Inputs!BW72+Inputs!BW73,0) -> 0 | BW30: =IF(AND(Inputs!$G$18=2,Inputs!$H$23=2),Inputs!BX72+Inputs!BX73,0) -> 0 | BX30: =IF(AND(Inputs!$G$18=2,Inputs!$H$23=2),Inputs!BY72+Inputs!BY73,0) -> 0 | BY30: =IF(AND(Inputs!$G$18=2,Inputs!$H$23=2),Inputs!BZ72+Inputs!BZ73,0) -> 0 | BZ30: =IF(AND(Inputs!$G$18=2,Inputs!$H$23=2),Inputs!CA72+Inputs!CA73,0) -> 0 | CA30: =IF(AND(Inputs!$G$18=2,Inputs!$H$23=2),Inputs!CB72+Inputs!CB73,0) -> 0 | CB30: =IF(AND(Inputs!$G$18=2,Inputs!$H$23=2),Inputs!CC72+Inputs!CC73,0) -> 0 | CC30: =IF(AND(Inputs!$G$18=2,Inputs!$H$23=2),Inputs!CD72+Inputs!CD73,0) -> 0 | CD30: =IF(AND(Inputs!$G$18=2,Inputs!$H$23=2),Inputs!CE72+Inputs!CE73,0) -> 0 | CE30: =IF(AND(Inputs!$G$18=2,Inputs!$H$23=2),Inputs!CF72+Inputs!CF73,0) -> 0 | CF30: =IF(AND(Inputs!$G$18=2,Inputs!$H$23=2),Inputs!CG72+Inputs!CG73,0) -> 0 | CG30: =IF(AND(Inputs!$G$18=2,Inputs!$H$23=2),Inputs!CH72+Inputs!CH73,0) -> 0 | CH30: =IF(AND(Inputs!$G$18=2,Inputs!$H$23=2),Inputs!CI72+Inputs!CI73,0) -> 0 | CI30: =IF(AND(Inputs!$G$18=2,Inputs!$H$23=2),Inputs!CJ72+Inputs!CJ73,0) -> 0 | CJ30: =IF(AND(Inputs!$G$18=2,Inputs!$H$23=2),Inputs!CK72+Inputs!CK73,0) -> 0 | CK30: =IF(AND(Inputs!$G$18=2,Inputs!$H$23=2),Inputs!CL72+Inputs!CL73,0) -> 0 | CL30: =IF(AND(Inputs!$G$18=2,Inputs!$H$23=2),Inputs!CM72+Inputs!CM73,0) -> 0 | CM30: =IF(AND(Inputs!$G$18=2,Inputs!$H$23=2),Inputs!CN72+Inputs!CN73,0) -> 0 | CN30: =IF(AND(Inputs!$G$18=2,Inputs!$H$23=2),Inputs!CO72+Inputs!CO73,0) -> 0 | CO30: =IF(AND(Inputs!$G$18=2,Inputs!$H$23=2),Inputs!CP72+Inputs!CP73,0) -> 0 | CP30: =IF(AND(Inputs!$G$18=2,Inputs!$H$23=2),Inputs!CQ72+Inputs!CQ73,0) -> 0 | CQ30: =IF(AND(Inputs!$G$18=2,Inputs!$H$23=2),Inputs!CR72+Inputs!CR73,0) -> 0 | CR30: =IF(AND(Inputs!$G$18=2,Inputs!$H$23=2),Inputs!CS72+Inputs!CS73,0) -> 0 | CS30: =IF(AND(Inputs!$G$18=2,Inputs!$H$23=2),Inputs!CT72+Inputs!CT73,0) -> 0 | CT30: =IF(AND(Inputs!$G$18=2,Inputs!$H$23=2),Inputs!CU72+Inputs!CU73,0) -> 0 | CU30: =IF(AND(Inputs!$G$18=2,Inputs!$H$23=2),Inputs!CV72+Inputs!CV73,0) -> 0 | CV30: =IF(AND(Inputs!$G$18=2,Inputs!$H$23=2),Inputs!CW72+Inputs!CW73,0) -> 0 | CW30: =IF(AND(Inputs!$G$18=2,Inputs!$H$23=2),Inputs!CX72+Inputs!CX73,0) -> 0 | CX30: =IF(AND(Inputs!$G$18=2,Inputs!$H$23=2),Inputs!CY72+Inputs!CY73,0) -> 0 | CY30: =IF(AND(Inputs!$G$18=2,Inputs!$H$23=2),Inputs!CZ72+Inputs!CZ73,0) -> 0 | CZ30: =IF(AND(Inputs!$G$18=2,Inputs!$H$23=2),Inputs!DA72+Inputs!DA73,0) -> 0 | DA30: =IF(AND(Inputs!$G$18=2,Inputs!$H$23=2),Inputs!DB72+Inputs!DB73,0) -> 0 | DB30: =IF(AND(Inputs!$G$18=2,Inputs!$H$23=2),Inputs!DC72+Inputs!DC73,0) -> 0 | DC30: =IF(AND(Inputs!$G$18=2,Inputs!$H$23=2),Inputs!DD72+Inputs!DD73,0) -> 0 | DD30: =IF(AND(Inputs!$G$18=2,Inputs!$H$23=2),Inputs!DE72+Inputs!DE73,0) -> 0 | DE30: =IF(AND(Inputs!$G$18=2,Inputs!$H$23=2),Inputs!DF72+Inputs!DF73,0) -> 0 | DF30: =IF(AND(Inputs!$G$18=2,Inputs!$H$23=2),Inputs!DG72+Inputs!DG73,0) -> 0
D31: Total | J31: =SUM(J27:J30) -> 4328.594736 | L31: =SUM(L27:L30) -> 770 | M31: =SUM(M27:M30) -> 424.0625 | N31: 842.7070312 | O31: 903.803291 | P31: 969.3290296 | Q31: 418.6928843 | R31: 0 | S31: 0 | T31: 0 | U31: 0 | V31: 0 | W31: 0 | X31: 0 | Y31: 0 | Z31: 0 | AA31: 0 | AB31: 0 | AC31: 0 | AD31: 0 | AE31: 0 | AF31: 0 | AG31: 0 | AH31: 0 | AI31: 0 | AJ31: 0 | AK31: 0 | AL31: 0 | AM31: 0 | AN31: 0 | AO31: 0 | AP31: 0 | AQ31: 0 | AR31: 0 | AS31: 0 | AT31: 0 | AU31: 0 | AV31: 0 | AW31: 0 | AX31: 0 | AY31: 0 | AZ31: 0 | BA31: 0 | BB31: 0 | BC31: 0 | BD31: 0 | BE31: 0 | BF31: 0 | BG31: 0 | BH31: 0 | BI31: 0 | BJ31: 0 | BK31: 0 | BL31: 0 | BM31: 0 | BN31: 0 | BO31: 0 | BP31: 0 | BQ31: 0 | BR31: 0 | BS31: 0 | BT31: 0 | BU31: 0 | BV31: 0 | BW31: 0 | BX31: 0 | BY31: =SUM(BY27:BY30) -> 0 | BZ31: 0 | CA31: 0 | CB31: 0 | CC31: 0 | CD31: 0 | CE31: 0 | CF31: 0 | CG31: 0 | CH31: 0 | CI31: 0 | CJ31: 0 | CK31: 0 | CL31: 0 | CM31: 0 | CN31: 0 | CO31: 0 | CP31: 0 | CQ31: 0 | CR31: 0 | CS31: 0 | CT31: 0 | CU31: 0 | CV31: 0 | CW31: 0 | CX31: 0 | CY31: 0 | CZ31: 0 | DA31: 0 | DB31: 0 | DC31: 0 | DD31: 0 | DE31: 0 | DF31: 0
C33: Difference | L33: =L31-L25 -> 0 | M33: =M31-M25 -> 0 | N33: 0 | O33: 0 | P33: 0 | Q33: 0 | R33: 0 | S33: 0 | T33: 0 | U33: 0 | V33: 0 | W33: 0 | X33: 0 | Y33: 0 | Z33: 0 | AA33: 0 | AB33: 0 | AC33: 0 | AD33: 0 | AE33: 0 | AF33: 0 | AG33: 0 | AH33: 0 | AI33: 0 | AJ33: 0 | AK33: 0 | AL33: 0 | AM33: 0 | AN33: 0 | AO33: 0 | AP33: 0 | AQ33: 0 | AR33: 0 | AS33: 0 | AT33: 0 | AU33: 0 | AV33: 0 | AW33: 0 | AX33: 0 | AY33: 0 | AZ33: 0 | BA33: 0 | BB33: 0 | BC33: 0 | BD33: 0 | BE33: 0 | BF33: 0 | BG33: 0 | BH33: 0 | BI33: 0 | BJ33: 0 | BK33: 0 | BL33: 0 | BM33: 0 | BN33: 0 | BO33: 0 | BP33: 0 | BQ33: 0 | BR33: 0 | BS33: 0 | BT33: 0 | BU33: 0 | BV33: 0 | BW33: 0 | BX33: 0 | BY33: =BY31-BY25 -> 0 | BZ33: 0 | CA33: 0 | CB33: 0 | CC33: 0 | CD33: 0 | CE33: 0 | CF33: 0 | CG33: 0 | CH33: 0 | CI33: 0 | CJ33: 0 | CK33: 0 | CL33: 0 | CM33: 0 | CN33: 0 | CO33: 0 | CP33: 0 | CQ33: 0 | CR33: 0 | CS33: 0 | CT33: 0 | CU33: 0 | CV33: 0 | CW33: 0 | CX33: 0 | CY33: 0 | CZ33: 0 | DA33: 0 | DB33: 0 | DC33: 0 | DD33: 0 | DE33: 0 | DF33: 0
C35: Total Required Debt | L35: =L25-L30 -> 0 | M35: =M25-M30 -> 424.0625 | N35: 842.7070312 | O35: 903.803291 | P35: 969.3290296 | Q35: 418.6928843 | R35: 0 | S35: 0 | T35: 0 | U35: 0 | V35: 0 | W35: 0 | X35: 0 | Y35: 0 | Z35: 0 | AA35: 0 | AB35: 0 | AC35: 0 | AD35: 0 | AE35: 0 | AF35: 0 | AG35: 0 | AH35: 0 | AI35: 0 | AJ35: 0 | AK35: 0 | AL35: 0 | AM35: 0 | AN35: 0 | AO35: 0 | AP35: 0 | AQ35: 0 | AR35: 0 | AS35: 0 | AT35: 0 | AU35: 0 | AV35: 0 | AW35: 0 | AX35: 0 | AY35: 0 | AZ35: 0 | BA35: 0 | BB35: 0 | BC35: 0 | BD35: 0 | BE35: 0 | BF35: 0 | BG35: 0 | BH35: 0 | BI35: 0 | BJ35: 0 | BK35: 0 | BL35: 0 | BM35: 0 | BN35: 0 | BO35: 0 | BP35: 0 | BQ35: 0 | BR35: 0 | BS35: 0 | BT35: 0 | BU35: 0 | BV35: 0 | BW35: 0 | BX35: 0 | BY35: =BY25-BY30 -> 0 | BZ35: 0 | CA35: 0 | CB35: 0 | CC35: 0 | CD35: 0 | CE35: 0 | CF35: 0 | CG35: 0 | CH35: 0 | CI35: 0 | CJ35: 0 | CK35: 0 | CL35: 0 | CM35: 0 | CN35: 0 | CO35: 0 | CP35: 0 | CQ35: 0 | CR35: 0 | CS35: 0 | CT35: 0 | CU35: 0 | CV35: 0 | CW35: 0 | CX35: 0 | CY35: 0 | CZ35: 0 | DA35: 0 | DB35: 0 | DC35: 0 | DD35: 0 | DE35: 0 | DF35: 0
B37: Debt Schedule
C38: Total Accumulated Debt
C40: Commitment | L40: =Inputs!$G$46 -> 5000 | M40: =Inputs!$G$46 -> 5000 | N40: =Inputs!$G$46 -> 5000 | O40: =Inputs!$G$46 -> 5000 | P40: =Inputs!$G$46 -> 5000 | Q40: =Inputs!$G$46 -> 5000 | R40: =Inputs!$G$46 -> 5000 | S40: =Inputs!$G$46 -> 5000 | T40: =Inputs!$G$46 -> 5000 | U40: =Inputs!$G$46 -> 5000 | V40: =Inputs!$G$46 -> 5000 | W40: =Inputs!$G$46 -> 5000 | X40: =Inputs!$G$46 -> 5000 | Y40: =Inputs!$G$46 -> 5000 | Z40: =Inputs!$G$46 -> 5000 | AA40: =Inputs!$G$46 -> 5000 | AB40: =Inputs!$G$46 -> 5000 | AC40: =Inputs!$G$46 -> 5000 | AD40: =Inputs!$G$46 -> 5000 | AE40: =Inputs!$G$46 -> 5000 | AF40: =Inputs!$G$46 -> 5000 | AG40: =Inputs!$G$46 -> 5000 | AH40: =Inputs!$G$46 -> 5000 | AI40: =Inputs!$G$46 -> 5000 | AJ40: =Inputs!$G$46 -> 5000 | AK40: =Inputs!$G$46 -> 5000 | AL40: =Inputs!$G$46 -> 5000 | AM40: =Inputs!$G$46 -> 5000 | AN40: =Inputs!$G$46 -> 5000 | AO40: =Inputs!$G$46 -> 5000 | AP40: =Inputs!$G$46 -> 5000 | AQ40: =Inputs!$G$46 -> 5000 | AR40: =Inputs!$G$46 -> 5000 | AS40: =Inputs!$G$46 -> 5000 | AT40: =Inputs!$G$46 -> 5000 | AU40: =Inputs!$G$46 -> 5000 | AV40: =Inputs!$G$46 -> 5000 | AW40: =Inputs!$G$46 -> 5000 | AX40: =Inputs!$G$46 -> 5000 | AY40: =Inputs!$G$46 -> 5000 | AZ40: =Inputs!$G$46 -> 5000 | BA40: =Inputs!$G$46 -> 5000 | BB40: =Inputs!$G$46 -> 5000 | BC40: =Inputs!$G$46 -> 5000 | BD40: =Inputs!$G$46 -> 5000 | BE40: =Inputs!$G$46 -> 5000 | BF40: =Inputs!$G$46 -> 5000 | BG40: =Inputs!$G$46 -> 5000 | BH40: =Inputs!$G$46 -> 5000 | BI40: =Inputs!$G$46 -> 5000 | BJ40: =Inputs!$G$46 -> 5000 | BK40: =Inputs!$G$46 -> 5000 | BL40: =Inputs!$G$46 -> 5000 | BM40: =Inputs!$G$46 -> 5000 | BN40: =Inputs!$G$46 -> 5000 | BO40: =Inputs!$G$46 -> 5000 | BP40: =Inputs!$G$46 -> 5000 | BQ40: =Inputs!$G$46 -> 5000 | BR40: =Inputs!$G$46 -> 5000 | BS40: =Inputs!$G$46 -> 5000 | BT40: =Inputs!$G$46 -> 5000 | BU40: =Inputs!$G$46 -> 5000 | BV40: =Inputs!$G$46 -> 5000 | BW40: =Inputs!$G$46 -> 5000 | BX40: =Inputs!$G$46 -> 5000 | BY40: =Inputs!$G$46 -> 5000 | BZ40: =Inputs!$G$46 -> 5000 | CA40: =Inputs!$G$46 -> 5000 | CB40: =Inputs!$G$46 -> 5000 | CC40: =Inputs!$G$46 -> 5000 | CD40: =Inputs!$G$46 -> 5000 | CE40: =Inputs!$G$46 -> 5000 | CF40: =Inputs!$G$46 -> 5000 | CG40: =Inputs!$G$46 -> 5000 | CH40: =Inputs!$G$46 -> 5000 | CI40: =Inputs!$G$46 -> 5000 | CJ40: =Inputs!$G$46 -> 5000 | CK40: =Inputs!$G$46 -> 5000 | CL40: =Inputs!$G$46 -> 5000 | CM40: =Inputs!$G$46 -> 5000 | CN40: =Inputs!$G$46 -> 5000 | CO40: =Inputs!$G$46 -> 5000 | CP40: =Inputs!$G$46 -> 5000 | CQ40: =Inputs!$G$46 -> 5000 | CR40: =Inputs!$G$46 -> 5000 | CS40: =Inputs!$G$46 -> 5000 | CT40: =Inputs!$G$46 -> 5000 | CU40: =Inputs!$G$46 -> 5000 | CV40: =Inputs!$G$46 -> 5000 | CW40: =Inputs!$G$46 -> 5000 | CX40: =Inputs!$G$46 -> 5000 | CY40: =Inputs!$G$46 -> 5000 | CZ40: =Inputs!$G$46 -> 5000 | DA40: =Inputs!$G$46 -> 5000 | DB40: =Inputs!$G$46 -> 5000 | DC40: =Inputs!$G$46 -> 5000 | DD40: =Inputs!$G$46 -> 5000 | DE40: =Inputs!$G$46 -> 5000 | DF40: =Inputs!$G$46 -> 5000
C41: Draws | L41: =L27 -> 0 | M41: =M27 -> 424.0625 | N41: 842.7070312 | O41: 903.803291 | P41: 969.3290296 | Q41: 418.6928843 | R41: 0 | S41: 0 | T41: 0 | U41: 0 | V41: 0 | W41: 0 | X41: 0 | Y41: 0 | Z41: 0 | AA41: 0 | AB41: 0 | AC41: 0 | AD41: 0 | AE41: 0 | AF41: 0 | AG41: 0 | AH41: 0 | AI41: 0 | AJ41: 0 | AK41: 0 | AL41: 0 | AM41: 0 | AN41: 0 | AO41: 0 | AP41: 0 | AQ41: 0 | AR41: 0 | AS41: 0 | AT41: 0 | AU41: 0 | AV41: 0 | AW41: 0 | AX41: 0 | AY41: 0 | AZ41: 0 | BA41: 0 | BB41: 0 | BC41: 0 | BD41: 0 | BE41: 0 | BF41: 0 | BG41: 0 | BH41: 0 | BI41: 0 | BJ41: 0 | BK41: 0 | BL41: 0 | BM41: 0 | BN41: 0 | BO41: 0 | BP41: 0 | BQ41: 0 | BR41: 0 | BS41: 0 | BT41: 0 | BU41: 0 | BV41: 0 | BW41: 0 | BX41: 0 | BY41: =BY27 -> 0 | BZ41: 0 | CA41: 0 | CB41: 0 | CC41: 0 | CD41: 0 | CE41: 0 | CF41: 0 | CG41: 0 | CH41: 0 | CI41: 0 | CJ41: 0 | CK41: 0 | CL41: 0 | CM41: 0 | CN41: 0 | CO41: 0 | CP41: 0 | CQ41: 0 | CR41: 0 | CS41: 0 | CT41: 0 | CU41: 0 | CV41: 0 | CW41: 0 | CX41: 0 | CY41: 0 | CZ41: 0 | DA41: 0 | DB41: 0 | DC41: 0 | DD41: 0 | DE41: 0 | DF41: 0
C42: Accumulated Draws | L42: =K42+L41 -> 0 | M42: =L42+M41 -> 424.0625 | N42: 1266.769531 | O42: 2170.572822 | P42: 3139.901852 | Q42: 3558.594736 | R42: 3558.594736 | S42: 3558.594736 | T42: 3558.594736 | U42: 3558.594736 | V42: 3558.594736 | W42: 3558.594736 | X42: 3558.594736 | Y42: 3558.594736 | Z42: 3558.594736 | AA42: 3558.594736 | AB42: 3558.594736 | AC42: 3558.594736 | AD42: 3558.594736 | AE42: 3558.594736 | AF42: 3558.594736 | AG42: 3558.594736 | AH42: 3558.594736 | AI42: 3558.594736 | AJ42: 3558.594736 | AK42: 3558.594736 | AL42: 3558.594736 | AM42: 3558.594736 | AN42: 3558.594736 | AO42: 3558.594736 | AP42: 3558.594736 | AQ42: 3558.594736 | AR42: 3558.594736 | AS42: 3558.594736 | AT42: 3558.594736 | AU42: 3558.594736 | AV42: 3558.594736 | AW42: 3558.594736 | AX42: 3558.594736 | AY42: 3558.594736 | AZ42: 3558.594736 | BA42: 3558.594736 | BB42: 3558.594736 | BC42: 3558.594736 | BD42: 3558.594736 | BE42: 3558.594736 | BF42: 3558.594736 | BG42: 3558.594736 | BH42: 3558.594736 | BI42: 3558.594736 | BJ42: 3558.594736 | BK42: 3558.594736 | BL42: 3558.594736 | BM42: 3558.594736 | BN42: 3558.594736 | BO42: 3558.594736 | BP42: 3558.594736 | BQ42: 3558.594736 | BR42: 3558.594736 | BS42: 3558.594736 | BT42: 3558.594736 | BU42: 3558.594736 | BV42: 3558.594736 | BW42: 3558.594736 | BX42: 3558.594736 | BY42: =BX42+BY41 -> 3558.594736 | BZ42: 3558.594736 | CA42: 3558.594736 | CB42: 3558.594736 | CC42: 3558.594736 | CD42: 3558.594736 | CE42: 3558.594736 | CF42: 3558.594736 | CG42: 3558.594736 | CH42: 3558.594736 | CI42: 3558.594736 | CJ42: 3558.594736 | CK42: 3558.594736 | CL42: 3558.594736 | CM42: 3558.594736 | CN42: 3558.594736 | CO42: 3558.594736 | CP42: 3558.594736 | CQ42: 3558.594736 | CR42: 3558.594736 | CS42: 3558.594736 | CT42: 3558.594736 | CU42: 3558.594736 | CV42: 3558.594736 | CW42: 3558.594736 | CX42: 3558.594736 | CY42: 3558.594736 | CZ42: 3558.594736 | DA42: 3558.594736 | DB42: 3558.594736 | DC42: 3558.594736 | DD42: 3558.594736 | DE42: 3558.594736 | DF42: 3558.594736
C44: Opening Balance | L44: =K47 -> 0 | M44: =L47 -> 0 | N44: 424.0625 | O44: 1266.769531 | P44: 2170.572822 | Q44: 3139.901852 | R44: 3558.594736 | S44: 3528.673839 | T44: 3496.65848 | U44: 3462.402045 | V44: 3425.74766 | W44: 3386.527468 | X44: 3344.561862 | Y44: 3299.658664 | Z44: 3251.612242 | AA44: 3200.202571 | AB44: 3145.194223 | AC44: 3086.33529 | AD44: 3023.356232 | AE44: 2955.96864 | AF44: 2883.863916 | AG44: 2806.711862 | AH44: 2724.159164 | AI44: 2635.827777 | AJ44: 2541.313193 | AK44: 2440.182589 | AL44: 2331.972842 | AM44: 2216.188412 | AN44: 2092.299073 | AO44: 1959.737479 | AP44: 1817.896575 | AQ44: 1666.126807 | AR44: 1503.733155 | AS44: 1329.971947 | AT44: 1144.047455 | AU44: 945.1082487 | AV44: 732.2432978 | AW44: 504.4778004 | AX44: 260.7687181 | AY44: 0 | AZ44: 0 | BA44: 0 | BB44: 0 | BC44: 0 | BD44: 0 | BE44: 0 | BF44: 0 | BG44: 0 | BH44: 0 | BI44: 0 | BJ44: 0 | BK44: 0 | BL44: 0 | BM44: 0 | BN44: 0 | BO44: 0 | BP44: 0 | BQ44: 0 | BR44: 0 | BS44: 0 | BT44: 0 | BU44: 0 | BV44: 0 | BW44: 0 | BX44: 0 | BY44: =BX47 -> 0 | BZ44: 0 | CA44: 0 | CB44: 0 | CC44: 0 | CD44: 0 | CE44: 0 | CF44: 0 | CG44: 0 | CH44: 0 | CI44: 0 | CJ44: 0 | CK44: 0 | CL44: 0 | CM44: 0 | CN44: 0 | CO44: 0 | CP44: 0 | CQ44: 0 | CR44: 0 | CS44: 0 | CT44: 0 | CU44: 0 | CV44: 0 | CW44: 0 | CX44: 0 | CY44: 0 | CZ44: 0 | DA44: 0 | DB44: 0 | DC44: 0 | DD44: 0 | DE44: 0 | DF44: 0
C45: Add: Draws | L45: =L35 -> 0 | M45: =M35 -> 424.0625 | N45: 842.7070312 | O45: 903.803291 | P45: 969.3290296 | Q45: 418.6928843 | R45: 0 | S45: 0 | T45: 0 | U45: 0 | V45: 0 | W45: 0 | X45: 0 | Y45: 0 | Z45: 0 | AA45: 0 | AB45: 0 | AC45: 0 | AD45: 0 | AE45: 0 | AF45: 0 | AG45: 0 | AH45: 0 | AI45: 0 | AJ45: 0 | AK45: 0 | AL45: 0 | AM45: 0 | AN45: 0 | AO45: 0 | AP45: 0 | AQ45: 0 | AR45: 0 | AS45: 0 | AT45: 0 | AU45: 0 | AV45: 0 | AW45: 0 | AX45: 0 | AY45: 0 | AZ45: 0 | BA45: 0 | BB45: 0 | BC45: 0 | BD45: 0 | BE45: 0 | BF45: 0 | BG45: 0 | BH45: 0 | BI45: 0 | BJ45: 0 | BK45: 0 | BL45: 0 | BM45: 0 | BN45: 0 | BO45: 0 | BP45: 0 | BQ45: 0 | BR45: 0 | BS45: 0 | BT45: 0 | BU45: 0 | BV45: 0 | BW45: 0 | BX45: 0 | BY45: =BY35 -> 0 | BZ45: 0 | CA45: 0 | CB45: 0 | CC45: 0 | CD45: 0 | CE45: 0 | CF45: 0 | CG45: 0 | CH45: 0 | CI45: 0 | CJ45: 0 | CK45: 0 | CL45: 0 | CM45: 0 | CN45: 0 | CO45: 0 | CP45: 0 | CQ45: 0 | CR45: 0 | CS45: 0 | CT45: 0 | CU45: 0 | CV45: 0 | CW45: 0 | CX45: 0 | CY45: 0 | CZ45: 0 | DA45: 0 | DB45: 0 | DC45: 0 | DD45: 0 | DE45: 0 | DF45: 0
C46: ="Less: Repayments "&INDEX(C63:C65,$G$67) -> Less: Repayments Amortising | L46: =MIN(L67,L44) -> 0 | M46: =MIN(M67,M44) -> 0 | N46: 0 | O46: 0 | P46: 0 | Q46: 0 | R46: 29.92089679 | S46: 32.01535957 | T46: 34.25643474 | U46: 36.65438517 | V46: 39.22019213 | W46: 41.96560558 | X46: 44.90319797 | Y46: 48.04642183 | Z46: 51.40967135 | AA46: 55.00834835 | AB46: 58.85893273 | AC46: 62.97905802 | AD46: 67.38759209 | AE46: 72.10472353 | AF46: 77.15205418 | AG46: 82.55269797 | AH46: 88.33138683 | AI46: 94.51458391 | AJ46: 101.1306048 | AK46: 108.2097471 | AL46: 115.7844294 | AM46: 123.8893395 | AN46: 132.5615932 | AO46: 141.8409048 | AP46: 151.7697681 | AQ46: 162.3936519 | AR46: 173.7612075 | AS46: 185.924492 | AT46: 198.9392065 | AU46: 212.8649509 | AV46: 227.7654975 | AW46: 243.7090823 | AX46: 260.7687181 | AY46: 0 | AZ46: 0 | BA46: 0 | BB46: 0 | BC46: 0 | BD46: 0 | BE46: 0 | BF46: 0 | BG46: 0 | BH46: 0 | BI46: 0 | BJ46: 0 | BK46: 0 | BL46: 0 | BM46: 0 | BN46: 0 | BO46: 0 | BP46: 0 | BQ46: 0 | BR46: 0 | BS46: 0 | BT46: 0 | BU46: 0 | BV46: 0 | BW46: 0 | BX46: 0 | BY46: =MIN(BY67,BY44) -> 0 | BZ46: 0 | CA46: 0 | CB46: 0 | CC46: 0 | CD46: 0 | CE46: 0 | CF46: 0 | CG46: 0 | CH46: 0 | CI46: 0 | CJ46: 0 | CK46: 0 | CL46: 0 | CM46: 0 | CN46: 0 | CO46: 0 | CP46: 0 | CQ46: 0 | CR46: 0 | CS46: 0 | CT46: 0 | CU46: 0 | CV46: 0 | CW46: 0 | CX46: 0 | CY46: 0 | CZ46: 0 | DA46: 0 | DB46: 0 | DC46: 0 | DD46: 0 | DE46: 0 | DF46: 0
C47: Closing Balance | L47: =L44+L45-L46 -> 0 | M47: 424.0625 | N47: 1266.769531 | O47: 2170.572822 | P47: 3139.901852 | Q47: 3558.594736 | R47: 3528.673839 | S47: 3496.65848 | T47: 3462.402045 | U47: 3425.74766 | V47: 3386.527468 | W47: 3344.561862 | X47: 3299.658664 | Y47: 3251.612242 | Z47: 3200.202571 | AA47: 3145.194223 | AB47: 3086.33529 | AC47: 3023.356232 | AD47: 2955.96864 | AE47: 2883.863916 | AF47: 2806.711862 | AG47: 2724.159164 | AH47: 2635.827777 | AI47: 2541.313193 | AJ47: 2440.182589 | AK47: 2331.972842 | AL47: 2216.188412 | AM47: 2092.299073 | AN47: 1959.737479 | AO47: 1817.896575 | AP47: 1666.126807 | AQ47: 1503.733155 | AR47: =AR44+AR45-AR46 -> 1329.971947 | AS47: 1144.047455 | AT47: 945.1082487 | AU47: 732.2432978 | AV47: 504.4778004 | AW47: 260.7687181 | AX47: 0 | AY47: 0 | AZ47: 0 | BA47: 0 | BB47: 0 | BC47: 0 | BD47: 0 | BE47: 0 | BF47: 0 | BG47: 0 | BH47: 0 | BI47: 0 | BJ47: 0 | BK47: 0 | BL47: 0 | BM47: 0 | BN47: 0 | BO47: 0 | BP47: 0 | BQ47: 0 | BR47: 0 | BS47: 0 | BT47: 0 | BU47: 0 | BV47: 0 | BW47: 0 | BX47: =BX44+BX45-BX46 -> 0 | BY47: 0 | BZ47: 0 | CA47: 0 | CB47: 0 | CC47: 0 | CD47: 0 | CE47: 0 | CF47: 0 | CG47: 0 | CH47: 0 | CI47: 0 | CJ47: 0 | CK47: 0 | CL47: 0 | CM47: 0 | CN47: 0 | CO47: 0 | CP47: 0 | CQ47: 0 | CR47: 0 | CS47: 0 | CT47: 0 | CU47: 0 | CV47: 0 | CW47: 0 | CX47: 0 | CY47: 0 | CZ47: 0 | DA47: 0 | DB47: 0 | DC47: 0 | DD47: =DD44+DD45-DD46 -> 0 | DE47: =DE44+DE45-DE46 -> 0 | DF47: =DF44+DF45-DF46 -> 0
C49: Opening Balance | L49: =K50 -> 0 | M49: =L50 -> 0 | N49: 0 | O49: 0 | P49: 0 | Q49: 0 | R49: 0 | S49: 0 | T49: 0 | U49: 0 | V49: 0 | W49: 0 | X49: 0 | Y49: 0 | Z49: 0 | AA49: 0 | AB49: 0 | AC49: 0 | AD49: 0 | AE49: 0 | AF49: 0 | AG49: 0 | AH49: 0 | AI49: 0 | AJ49: 0 | AK49: 0 | AL49: 0 | AM49: 0 | AN49: 0 | AO49: 0 | AP49: 0 | AQ49: 0 | AR49: 0 | AS49: 0 | AT49: 0 | AU49: 0 | AV49: 0 | AW49: 0 | AX49: 0 | AY49: 0 | AZ49: 0 | BA49: 0 | BB49: 0 | BC49: 0 | BD49: 0 | BE49: 0 | BF49: 0 | BG49: 0 | BH49: 0 | BI49: 0 | BJ49: 0 | BK49: 0 | BL49: 0 | BM49: 0 | BN49: 0 | BO49: 0 | BP49: 0 | BQ49: 0 | BR49: 0 | BS49: 0 | BT49: 0 | BU49: 0 | BV49: 0 | BW49: 0 | BX49: 0 | BY49: =BX50 -> 0 | BZ49: 0 | CA49: 0 | CB49: 0 | CC49: 0 | CD49: 0 | CE49: 0 | CF49: 0 | CG49: 0 | CH49: 0 | CI49: 0 | CJ49: 0 | CK49: 0 | CL49: 0 | CM49: 0 | CN49: 0 | CO49: 0 | CP49: 0 | CQ49: 0 | CR49: 0 | CS49: 0 | CT49: 0 | CU49: 0 | CV49: 0 | CW49: 0 | CX49: 0 | CY49: 0 | CZ49: 0 | DA49: 0 | DB49: 0 | DC49: 0 | DD49: 0 | DE49: 0 | DF49: 0
C50: Add: Defaults | L50: =L109 -> 0 | M50: 0 | N50: 0 | O50: 0 | P50: 0 | Q50: 0 | R50: 0 | S50: 0 | T50: 0 | U50: 0 | V50: 0 | W50: 0 | X50: 0 | Y50: 0 | Z50: 0 | AA50: 0 | AB50: 0 | AC50: 0 | AD50: 0 | AE50: 0 | AF50: 0 | AG50: 0 | AH50: 0 | AI50: 0 | AJ50: 0 | AK50: 0 | AL50: 0 | AM50: 0 | AN50: 0 | AO50: 0 | AP50: 0 | AQ50: 0 | AR50: =AR109 -> 0 | AS50: 0 | AT50: 0 | AU50: 0 | AV50: 0 | AW50: 0 | AX50: 0 | AY50: 0 | AZ50: 0 | BA50: 0 | BB50: 0 | BC50: 0 | BD50: 0 | BE50: 0 | BF50: 0 | BG50: 0 | BH50: 0 | BI50: 0 | BJ50: 0 | BK50: 0 | BL50: 0 | BM50: 0 | BN50: 0 | BO50: 0 | BP50: 0 | BQ50: 0 | BR50: 0 | BS50: 0 | BT50: 0 | BU50: 0 | BV50: 0 | BW50: 0 | BX50: =BX109 -> 0 | BY50: 0 | BZ50: 0 | CA50: 0 | CB50: 0 | CC50: 0 | CD50: 0 | CE50: 0 | CF50: 0 | CG50: 0 | CH50: 0 | CI50: 0 | CJ50: 0 | CK50: 0 | CL50: 0 | CM50: 0 | CN50: 0 | CO50: 0 | CP50: 0 | CQ50: 0 | CR50: 0 | CS50: 0 | CT50: 0 | CU50: 0 | CV50: 0 | CW50: 0 | CX50: 0 | CY50: 0 | CZ50: 0 | DA50: 0 | DB50: 0 | DC50: 0 | DD50: 0 | DE50: 0 | DF50: 0
C51: Less: Repayment of Default | M51: =L50 -> 0 | N51: 0 | O51: 0 | P51: 0 | Q51: 0 | R51: 0 | S51: 0 | T51: 0 | U51: 0 | V51: 0 | W51: 0 | X51: 0 | Y51: 0 | Z51: 0 | AA51: 0 | AB51: 0 | AC51: 0 | AD51: 0 | AE51: 0 | AF51: 0 | AG51: 0 | AH51: 0 | AI51: 0 | AJ51: 0 | AK51: 0 | AL51: 0 | AM51: 0 | AN51: 0 | AO51: 0 | AP51: 0 | AQ51: 0 | AR51: 0 | AS51: =AR50 -> 0 | AT51: 0 | AU51: 0 | AV51: 0 | AW51: 0 | AX51: 0 | AY51: 0 | AZ51: 0 | BA51: 0 | BB51: 0 | BC51: 0 | BD51: 0 | BE51: 0 | BF51: 0 | BG51: 0 | BH51: 0 | BI51: 0 | BJ51: 0 | BK51: 0 | BL51: 0 | BM51: 0 | BN51: 0 | BO51: 0 | BP51: 0 | BQ51: 0 | BR51: 0 | BS51: 0 | BT51: 0 | BU51: 0 | BV51: 0 | BW51: 0 | BX51: 0 | BY51: =BX50 -> 0 | BZ51: 0 | CA51: 0 | CB51: 0 | CC51: 0 | CD51: 0 | CE51: 0 | CF51: 0 | CG51: 0 | CH51: 0 | CI51: 0 | CJ51: 0 | CK51: 0 | CL51: 0 | CM51: 0 | CN51: 0 | CO51: 0 | CP51: 0 | CQ51: 0 | CR51: 0 | CS51: 0 | CT51: 0 | CU51: 0 | CV51: 0 | CW51: 0 | CX51: 0 | CY51: 0 | CZ51: 0 | DA51: 0 | DB51: 0 | DC51: 0 | DD51: 0 | DE51: 0 | DF51: 0
C52: Closing Balance | L52: =L49+L50-L51 -> 0 | M52: =M49+M50-M51 -> 0 | N52: 0 | O52: 0 | P52: 0 | Q52: 0 | R52: 0 | S52: 0 | T52: 0 | U52: 0 | V52: 0 | W52: 0 | X52: 0 | Y52: 0 | Z52: 0 | AA52: 0 | AB52: 0 | AC52: 0 | AD52: 0 | AE52: 0 | AF52: 0 | AG52: 0 | AH52: 0 | AI52: 0 | AJ52: 0 | AK52: 0 | AL52: 0 | AM52: 0 | AN52: 0 | AO52: 0 | AP52: 0 | AQ52: 0 | AR52: 0 | AS52: 0 | AT52: 0 | AU52: 0 | AV52: 0 | AW52: 0 | AX52: 0 | AY52: 0 | AZ52: 0 | BA52: 0 | BB52: 0 | BC52: 0 | BD52: 0 | BE52: 0 | BF52: 0 | BG52: 0 | BH52: 0 | BI52: 0 | BJ52: 0 | BK52: 0 | BL52: 0 | BM52: 0 | BN52: 0 | BO52: 0 | BP52: 0 | BQ52: 0 | BR52: 0 | BS52: 0 | BT52: 0 | BU52: 0 | BV52: 0 | BW52: 0 | BX52: 0 | BY52: =BY49+BY50-BY51 -> 0 | BZ52: 0 | CA52: 0 | CB52: 0 | CC52: 0 | CD52: 0 | CE52: 0 | CF52: 0 | CG52: 0 | CH52: 0 | CI52: 0 | CJ52: 0 | CK52: 0 | CL52: 0 | CM52: 0 | CN52: 0 | CO52: 0 | CP52: 0 | CQ52: 0 | CR52: 0 | CS52: 0 | CT52: 0 | CU52: 0 | CV52: 0 | CW52: 0 | CX52: 0 | CY52: 0 | CZ52: 0 | DA52: 0 | DB52: 0 | DC52: 0 | DD52: 0 | DE52: 0 | DF52: 0
C54: Total Debt | L54: =L52+L47 -> 0 | M54: =M52+M47 -> 424.0625 | N54: 1266.769531 | O54: 2170.572822 | P54: 3139.901852 | Q54: 3558.594736 | R54: 3528.673839 | S54: 3496.65848 | T54: 3462.402045 | U54: 3425.74766 | V54: 3386.527468 | W54: 3344.561862 | X54: 3299.658664 | Y54: 3251.612242 | Z54: 3200.202571 | AA54: 3145.194223 | AB54: 3086.33529 | AC54: 3023.356232 | AD54: 2955.96864 | AE54: 2883.863916 | AF54: 2806.711862 | AG54: 2724.159164 | AH54: 2635.827777 | AI54: 2541.313193 | AJ54: 2440.182589 | AK54: 2331.972842 | AL54: 2216.188412 | AM54: 2092.299073 | AN54: 1959.737479 | AO54: 1817.896575 | AP54: 1666.126807 | AQ54: 1503.733155 | AR54: 1329.971947 | AS54: 1144.047455 | AT54: 945.1082487 | AU54: 732.2432978 | AV54: 504.4778004 | AW54: 260.7687181 | AX54: 0 | AY54: 0 | AZ54: 0 | BA54: 0 | BB54: 0 | BC54: 0 | BD54: 0 | BE54: 0 | BF54: 0 | BG54: 0 | BH54: 0 | BI54: 0 | BJ54: 0 | BK54: 0 | BL54: 0 | BM54: 0 | BN54: 0 | BO54: 0 | BP54: 0 | BQ54: 0 | BR54: 0 | BS54: 0 | BT54: 0 | BU54: 0 | BV54: 0 | BW54: 0 | BX54: 0 | BY54: =BY52+BY47 -> 0 | BZ54: 0 | CA54: 0 | CB54: 0 | CC54: 0 | CD54: 0 | CE54: 0 | CF54: 0 | CG54: 0 | CH54: 0 | CI54: 0 | CJ54: 0 | CK54: 0 | CL54: 0 | CM54: 0 | CN54: 0 | CO54: 0 | CP54: 0 | CQ54: 0 | CR54: 0 | CS54: 0 | CT54: 0 | CU54: 0 | CV54: 0 | CW54: 0 | CX54: 0 | CY54: 0 | CZ54: 0 | DA54: 0 | DB54: 0 | DC54: 0 | DD54: 0 | DE54: 0 | DF54: 0
C56: LIBOR Rate | L56: =Inputs!L66 -> 0.06 | M56: =Inputs!M66 -> 0.06 | N56: =Inputs!N66 -> 0.06 | O56: =Inputs!O66 -> 0.06 | P56: =Inputs!P66 -> 0.06 | Q56: =Inputs!Q66 -> 0.06 | R56: =Inputs!R66 -> 0.06 | S56: =Inputs!S66 -> 0.06 | T56: =Inputs!T66 -> 0.06 | U56: =Inputs!U66 -> 0.06 | V56: =Inputs!V66 -> 0.06 | W56: =Inputs!W66 -> 0.06 | X56: =Inputs!X66 -> 0.06 | Y56: =Inputs!Y66 -> 0.06 | Z56: =Inputs!Z66 -> 0.06 | AA56: =Inputs!AA66 -> 0.06 | AB56: =Inputs!AB66 -> 0.06 | AC56: =Inputs!AC66 -> 0.06 | AD56: =Inputs!AD66 -> 0.06 | AE56: =Inputs!AE66 -> 0.06 | AF56: =Inputs!AF66 -> 0.06 | AG56: =Inputs!AG66 -> 0.06 | AH56: =Inputs!AH66 -> 0.06 | AI56: =Inputs!AI66 -> 0.06 | AJ56: =Inputs!AJ66 -> 0.06 | AK56: =Inputs!AK66 -> 0.06 | AL56: =Inputs!AL66 -> 0.06 | AM56: =Inputs!AM66 -> 0.06 | AN56: =Inputs!AN66 -> 0.06 | AO56: =Inputs!AO66 -> 0.06 | AP56: =Inputs!AP66 -> 0.06 | AQ56: =Inputs!AQ66 -> 0.06 | AR56: =Inputs!AR66 -> 0.06 | AS56: =Inputs!AS66 -> 0.06 | AT56: =Inputs!AT66 -> 0.06 | AU56: =Inputs!AU66 -> 0.06 | AV56: =Inputs!AV66 -> 0.06 | AW56: =Inputs!AW66 -> 0.06 | AX56: =Inputs!AX66 -> 0.06 | AY56: =Inputs!AY66 -> 0.06 | AZ56: =Inputs!AZ66 -> 0.06 | BA56: =Inputs!BA66 -> 0.06 | BB56: =Inputs!BB66 -> 0.06 | BC56: =Inputs!BC66 -> 0.06 | BD56: =Inputs!BD66 -> 0.06 | BE56: =Inputs!BE66 -> 0.06 | BF56: =Inputs!BF66 -> 0.06 | BG56: =Inputs!BG66 -> 0.06 | BH56: =Inputs!BH66 -> 0.06 | BI56: =Inputs!BI66 -> 0.06 | BJ56: =Inputs!BJ66 -> 0.06 | BK56: =Inputs!BK66 -> 0.06 | BL56: =Inputs!BL66 -> 0.06 | BM56: =Inputs!BM66 -> 0.06 | BN56: =Inputs!BN66 -> 0.06 | BO56: =Inputs!BO66 -> 0.06 | BP56: =Inputs!BP66 -> 0.06 | BQ56: =Inputs!BQ66 -> 0.06 | BR56: =Inputs!BR66 -> 0.06 | BS56: =Inputs!BS66 -> 0.06 | BT56: =Inputs!BT66 -> 0.06 | BU56: =Inputs!BU66 -> 0.06 | BV56: =Inputs!BV66 -> 0.06 | BW56: =Inputs!BW66 -> 0.06 | BX56: =Inputs!BX66 -> 0.06 | BY56: =Inputs!BY66 -> 0.06 | BZ56: =Inputs!BZ66 -> 0.06 | CA56: =Inputs!CA66 -> 0.06 | CB56: =Inputs!CB66 -> 0.06 | CC56: =Inputs!CC66 -> 0.06 | CD56: =Inputs!CD66 -> 0.06 | CE56: =Inputs!CE66 -> 0.06 | CF56: =Inputs!CF66 -> 0.06 | CG56: =Inputs!CG66 -> 0.06 | CH56: =Inputs!CH66 -> 0.06 | CI56: =Inputs!CI66 -> 0.06 | CJ56: =Inputs!CJ66 -> 0.06 | CK56: =Inputs!CK66 -> 0.06 | CL56: =Inputs!CL66 -> 0.06 | CM56: =Inputs!CM66 -> 0.06 | CN56: =Inputs!CN66 -> 0.06 | CO56: =Inputs!CO66 -> 0.06 | CP56: =Inputs!CP66 -> 0.06 | CQ56: =Inputs!CQ66 -> 0.06 | CR56: =Inputs!CR66 -> 0.06 | CS56: =Inputs!CS66 -> 0.06 | CT56: =Inputs!CT66 -> 0.06 | CU56: =Inputs!CU66 -> 0.06 | CV56: =Inputs!CV66 -> 0.06 | CW56: =Inputs!CW66 -> 0.06 | CX56: =Inputs!CX66 -> 0.06 | CY56: =Inputs!CY66 -> 0.06 | CZ56: =Inputs!CZ66 -> 0.06 | DA56: =Inputs!DA66 -> 0.06 | DB56: =Inputs!DB66 -> 0.06 | DC56: =Inputs!DC66 -> 0.06 | DD56: =Inputs!DD66 -> 0.06 | DE56: =Inputs!DE66 -> 0.06 | DF56: =Inputs!DF66 -> 0.06
C57: Credit Spread | L57: =L9*Inputs!$G$48+NOT(L9)*Inputs!$G$49 -> 0.0125 | M57: =M9*Inputs!$G$48+NOT(M9)*Inputs!$G$49 -> 0.0125 | N57: =N9*Inputs!$G$48+NOT(N9)*Inputs!$G$49 -> 0.0125 | O57: =O9*Inputs!$G$48+NOT(O9)*Inputs!$G$49 -> 0.0125 | P57: =P9*Inputs!$G$48+NOT(P9)*Inputs!$G$49 -> 0.0125 | Q57: =Q9*Inputs!$G$48+NOT(Q9)*Inputs!$G$49 -> 0.0125 | R57: =R9*Inputs!$G$48+NOT(R9)*Inputs!$G$49 -> 0.01 | S57: =S9*Inputs!$G$48+NOT(S9)*Inputs!$G$49 -> 0.01 | T57: =T9*Inputs!$G$48+NOT(T9)*Inputs!$G$49 -> 0.01 | U57: =U9*Inputs!$G$48+NOT(U9)*Inputs!$G$49 -> 0.01 | V57: =V9*Inputs!$G$48+NOT(V9)*Inputs!$G$49 -> 0.01 | W57: =W9*Inputs!$G$48+NOT(W9)*Inputs!$G$49 -> 0.01 | X57: =X9*Inputs!$G$48+NOT(X9)*Inputs!$G$49 -> 0.01 | Y57: =Y9*Inputs!$G$48+NOT(Y9)*Inputs!$G$49 -> 0.01 | Z57: =Z9*Inputs!$G$48+NOT(Z9)*Inputs!$G$49 -> 0.01 | AA57: =AA9*Inputs!$G$48+NOT(AA9)*Inputs!$G$49 -> 0.01 | AB57: =AB9*Inputs!$G$48+NOT(AB9)*Inputs!$G$49 -> 0.01 | AC57: =AC9*Inputs!$G$48+NOT(AC9)*Inputs!$G$49 -> 0.01 | AD57: =AD9*Inputs!$G$48+NOT(AD9)*Inputs!$G$49 -> 0.01 | AE57: =AE9*Inputs!$G$48+NOT(AE9)*Inputs!$G$49 -> 0.01 | AF57: =AF9*Inputs!$G$48+NOT(AF9)*Inputs!$G$49 -> 0.01 | AG57: =AG9*Inputs!$G$48+NOT(AG9)*Inputs!$G$49 -> 0.01 | AH57: =AH9*Inputs!$G$48+NOT(AH9)*Inputs!$G$49 -> 0.01 | AI57: =AI9*Inputs!$G$48+NOT(AI9)*Inputs!$G$49 -> 0.01 | AJ57: =AJ9*Inputs!$G$48+NOT(AJ9)*Inputs!$G$49 -> 0.01 | AK57: =AK9*Inputs!$G$48+NOT(AK9)*Inputs!$G$49 -> 0.01 | AL57: =AL9*Inputs!$G$48+NOT(AL9)*Inputs!$G$49 -> 0.01 | AM57: =AM9*Inputs!$G$48+NOT(AM9)*Inputs!$G$49 -> 0.01 | AN57: =AN9*Inputs!$G$48+NOT(AN9)*Inputs!$G$49 -> 0.01 | AO57: =AO9*Inputs!$G$48+NOT(AO9)*Inputs!$G$49 -> 0.01 | AP57: =AP9*Inputs!$G$48+NOT(AP9)*Inputs!$G$49 -> 0.01 | AQ57: =AQ9*Inputs!$G$48+NOT(AQ9)*Inputs!$G$49 -> 0.01 | AR57: =AR9*Inputs!$G$48+NOT(AR9)*Inputs!$G$49 -> 0.01 | AS57: =AS9*Inputs!$G$48+NOT(AS9)*Inputs!$G$49 -> 0.01 | AT57: =AT9*Inputs!$G$48+NOT(AT9)*Inputs!$G$49 -> 0.01 | AU57: =AU9*Inputs!$G$48+NOT(AU9)*Inputs!$G$49 -> 0.01 | AV57: =AV9*Inputs!$G$48+NOT(AV9)*Inputs!$G$49 -> 0.01 | AW57: =AW9*Inputs!$G$48+NOT(AW9)*Inputs!$G$49 -> 0.01 | AX57: =AX9*Inputs!$G$48+NOT(AX9)*Inputs!$G$49 -> 0.01 | AY57: =AY9*Inputs!$G$48+NOT(AY9)*Inputs!$G$49 -> 0.01 | AZ57: =AZ9*Inputs!$G$48+NOT(AZ9)*Inputs!$G$49 -> 0.01 | BA57: =BA9*Inputs!$G$48+NOT(BA9)*Inputs!$G$49 -> 0.01 | BB57: =BB9*Inputs!$G$48+NOT(BB9)*Inputs!$G$49 -> 0.01 | BC57: =BC9*Inputs!$G$48+NOT(BC9)*Inputs!$G$49 -> 0.01 | BD57: =BD9*Inputs!$G$48+NOT(BD9)*Inputs!$G$49 -> 0.01 | BE57: =BE9*Inputs!$G$48+NOT(BE9)*Inputs!$G$49 -> 0.01 | BF57: =BF9*Inputs!$G$48+NOT(BF9)*Inputs!$G$49 -> 0.01 | BG57: =BG9*Inputs!$G$48+NOT(BG9)*Inputs!$G$49 -> 0.01 | BH57: =BH9*Inputs!$G$48+NOT(BH9)*Inputs!$G$49 -> 0.01 | BI57: =BI9*Inputs!$G$48+NOT(BI9)*Inputs!$G$49 -> 0.01 | BJ57: =BJ9*Inputs!$G$48+NOT(BJ9)*Inputs!$G$49 -> 0.01 | BK57: =BK9*Inputs!$G$48+NOT(BK9)*Inputs!$G$49 -> 0.01 | BL57: =BL9*Inputs!$G$48+NOT(BL9)*Inputs!$G$49 -> 0.01 | BM57: =BM9*Inputs!$G$48+NOT(BM9)*Inputs!$G$49 -> 0.01 | BN57: =BN9*Inputs!$G$48+NOT(BN9)*Inputs!$G$49 -> 0.01 | BO57: =BO9*Inputs!$G$48+NOT(BO9)*Inputs!$G$49 -> 0.01 | BP57: =BP9*Inputs!$G$48+NOT(BP9)*Inputs!$G$49 -> 0.01 | BQ57: =BQ9*Inputs!$G$48+NOT(BQ9)*Inputs!$G$49 -> 0.01 | BR57: =BR9*Inputs!$G$48+NOT(BR9)*Inputs!$G$49 -> 0.01 | BS57: =BS9*Inputs!$G$48+NOT(BS9)*Inputs!$G$49 -> 0.01 | BT57: =BT9*Inputs!$G$48+NOT(BT9)*Inputs!$G$49 -> 0.01 | BU57: =BU9*Inputs!$G$48+NOT(BU9)*Inputs!$G$49 -> 0.01 | BV57: =BV9*Inputs!$G$48+NOT(BV9)*Inputs!$G$49 -> 0.01 | BW57: =BW9*Inputs!$G$48+NOT(BW9)*Inputs!$G$49 -> 0.01 | BX57: =BX9*Inputs!$G$48+NOT(BX9)*Inputs!$G$49 -> 0.01 | BY57: =BY9*Inputs!$G$48+NOT(BY9)*Inputs!$G$49 -> 0.01 | BZ57: =BZ9*Inputs!$G$48+NOT(BZ9)*Inputs!$G$49 -> 0.01 | CA57: =CA9*Inputs!$G$48+NOT(CA9)*Inputs!$G$49 -> 0.01 | CB57: =CB9*Inputs!$G$48+NOT(CB9)*Inputs!$G$49 -> 0.01 | CC57: =CC9*Inputs!$G$48+NOT(CC9)*Inputs!$G$49 -> 0.01 | CD57: =CD9*Inputs!$G$48+NOT(CD9)*Inputs!$G$49 -> 0.01 | CE57: =CE9*Inputs!$G$48+NOT(CE9)*Inputs!$G$49 -> 0.01 | CF57: =CF9*Inputs!$G$48+NOT(CF9)*Inputs!$G$49 -> 0.01 | CG57: =CG9*Inputs!$G$48+NOT(CG9)*Inputs!$G$49 -> 0.01 | CH57: =CH9*Inputs!$G$48+NOT(CH9)*Inputs!$G$49 -> 0.01 | CI57: =CI9*Inputs!$G$48+NOT(CI9)*Inputs!$G$49 -> 0.01 | CJ57: =CJ9*Inputs!$G$48+NOT(CJ9)*Inputs!$G$49 -> 0.01 | CK57: =CK9*Inputs!$G$48+NOT(CK9)*Inputs!$G$49 -> 0.01 | CL57: =CL9*Inputs!$G$48+NOT(CL9)*Inputs!$G$49 -> 0.01 | CM57: =CM9*Inputs!$G$48+NOT(CM9)*Inputs!$G$49 -> 0.01 | CN57: =CN9*Inputs!$G$48+NOT(CN9)*Inputs!$G$49 -> 0.01 | CO57: =CO9*Inputs!$G$48+NOT(CO9)*Inputs!$G$49 -> 0.01 | CP57: =CP9*Inputs!$G$48+NOT(CP9)*Inputs!$G$49 -> 0.01 | CQ57: =CQ9*Inputs!$G$48+NOT(CQ9)*Inputs!$G$49 -> 0.01 | CR57: =CR9*Inputs!$G$48+NOT(CR9)*Inputs!$G$49 -> 0.01 | CS57: =CS9*Inputs!$G$48+NOT(CS9)*Inputs!$G$49 -> 0.01 | CT57: =CT9*Inputs!$G$48+NOT(CT9)*Inputs!$G$49 -> 0.01 | CU57: =CU9*Inputs!$G$48+NOT(CU9)*Inputs!$G$49 -> 0.01 | CV57: =CV9*Inputs!$G$48+NOT(CV9)*Inputs!$G$49 -> 0.01 | CW57: =CW9*Inputs!$G$48+NOT(CW9)*Inputs!$G$49 -> 0.01 | CX57: =CX9*Inputs!$G$48+NOT(CX9)*Inputs!$G$49 -> 0.01 | CY57: =CY9*Inputs!$G$48+NOT(CY9)*Inputs!$G$49 -> 0.01 | CZ57: =CZ9*Inputs!$G$48+NOT(CZ9)*Inputs!$G$49 -> 0.01 | DA57: =DA9*Inputs!$G$48+NOT(DA9)*Inputs!$G$49 -> 0.01 | DB57: =DB9*Inputs!$G$48+NOT(DB9)*Inputs!$G$49 -> 0.01 | DC57: =DC9*Inputs!$G$48+NOT(DC9)*Inputs!$G$49 -> 0.01 | DD57: =DD9*Inputs!$G$48+NOT(DD9)*Inputs!$G$49 -> 0.01 | DE57: =DE9*Inputs!$G$48+NOT(DE9)*Inputs!$G$49 -> 0.01 | DF57: =DF9*Inputs!$G$48+NOT(DF9)*Inputs!$G$49 -> 0.01
C58: Total Rate | L58: =L56+L57 -> 0.0725 | M58: =M56+M57 -> 0.0725 | N58: 0.0725 | O58: 0.0725 | P58: 0.0725 | Q58: 0.0725 | R58: 0.07 | S58: 0.07 | T58: 0.07 | U58: 0.07 | V58: 0.07 | W58: 0.07 | X58: 0.07 | Y58: 0.07 | Z58: 0.07 | AA58: 0.07 | AB58: 0.07 | AC58: 0.07 | AD58: 0.07 | AE58: 0.07 | AF58: 0.07 | AG58: 0.07 | AH58: 0.07 | AI58: 0.07 | AJ58: 0.07 | AK58: 0.07 | AL58: 0.07 | AM58: 0.07 | AN58: 0.07 | AO58: 0.07 | AP58: 0.07 | AQ58: 0.07 | AR58: 0.07 | AS58: 0.07 | AT58: 0.07 | AU58: 0.07 | AV58: 0.07 | AW58: 0.07 | AX58: 0.07 | AY58: 0.07 | AZ58: 0.07 | BA58: 0.07 | BB58: 0.07 | BC58: 0.07 | BD58: 0.07 | BE58: 0.07 | BF58: 0.07 | BG58: 0.07 | BH58: 0.07 | BI58: 0.07 | BJ58: 0.07 | BK58: 0.07 | BL58: 0.07 | BM58: 0.07 | BN58: 0.07 | BO58: 0.07 | BP58: 0.07 | BQ58: 0.07 | BR58: 0.07 | BS58: 0.07 | BT58: 0.07 | BU58: 0.07 | BV58: 0.07 | BW58: 0.07 | BX58: 0.07 | BY58: =BY56+BY57 -> 0.07 | BZ58: 0.07 | CA58: 0.07 | CB58: 0.07 | CC58: 0.07 | CD58: 0.07 | CE58: 0.07 | CF58: 0.07 | CG58: 0.07 | CH58: 0.07 | CI58: 0.07 | CJ58: 0.07 | CK58: 0.07 | CL58: 0.07 | CM58: 0.07 | CN58: 0.07 | CO58: 0.07 | CP58: 0.07 | CQ58: 0.07 | CR58: 0.07 | CS58: 0.07 | CT58: 0.07 | CU58: 0.07 | CV58: 0.07 | CW58: 0.07 | CX58: 0.07 | CY58: 0.07 | CZ58: 0.07 | DA58: 0.07 | DB58: 0.07 | DC58: 0.07 | DD58: 0.07 | DE58: 0.07 | DF58: 0.07
C60: Interst Cost | L60: =L58*L44+L58*L49 -> 0 | M60: 0 | N60: 30.74453125 | O60: 91.84079102 | P60: 157.3665296 | Q60: 227.6428843 | R60: 249.1016315 | S60: 247.0071688 | T60: 244.7660936 | U60: 242.3681432 | V60: 239.8023362 | W60: 237.0569227 | X60: 234.1193304 | Y60: 230.9761065 | Z60: 227.612857 | AA60: 224.01418 | AB60: 220.1635956 | AC60: 216.0434703 | AD60: 211.6349362 | AE60: 206.9178048 | AF60: 201.8704741 | AG60: 196.4698303 | AH60: 190.6911415 | AI60: 184.5079444 | AJ60: 177.8919235 | AK60: 170.8127812 | AL60: 163.2380989 | AM60: 155.1331888 | AN60: 146.4609351 | AO60: 137.1816236 | AP60: 127.2527602 | AQ60: 116.6288765 | AR60: =AR58*AR44+AR58*AR49 -> 105.2613208 | AS60: 93.0980363 | AT60: 80.08332186 | AU60: 66.15757741 | AV60: 51.25703085 | AW60: 35.31344602 | AX60: 18.25381026 | AY60: 0 | AZ60: 0 | BA60: 0 | BB60: 0 | BC60: 0 | BD60: 0 | BE60: 0 | BF60: 0 | BG60: 0 | BH60: 0 | BI60: 0 | BJ60: 0 | BK60: 0 | BL60: 0 | BM60: 0 | BN60: 0 | BO60: 0 | BP60: 0 | BQ60: 0 | BR60: 0 | BS60: 0 | BT60: 0 | BU60: 0 | BV60: 0 | BW60: 0 | BX60: =BX58*BX44+BX58*BX49 -> 0 | BY60: 0 | BZ60: 0 | CA60: 0 | CB60: 0 | CC60: 0 | CD60: 0 | CE60: 0 | CF60: 0 | CG60: 0 | CH60: 0 | CI60: 0 | CJ60: 0 | CK60: 0 | CL60: 0 | CM60: 0 | CN60: 0 | CO60: 0 | CP60: 0 | CQ60: 0 | CR60: 0 | CS60: 0 | CT60: 0 | CU60: 0 | CV60: 0 | CW60: 0 | CX60: 0 | CY60: 0 | CZ60: 0 | DA60: 0 | DB60: 0 | DC60: 0 | DD60: 0 | DE60: 0 | DF60: 0
C61: Interest Captialised | L61: =L60*L9 -> 0 | M61: 0 | N61: 30.74453125 | O61: 91.84079102 | P61: 157.3665296 | Q61: 227.6428843 | R61: 0 | S61: 0 | T61: 0 | U61: 0 | V61: 0 | W61: 0 | X61: 0 | Y61: 0 | Z61: 0 | AA61: 0 | AB61: 0 | AC61: 0 | AD61: 0 | AE61: 0 | AF61: 0 | AG61: 0 | AH61: 0 | AI61: 0 | AJ61: 0 | AK61: 0 | AL61: 0 | AM61: 0 | AN61: 0 | AO61: 0 | AP61: 0 | AQ61: 0 | AR61: =AR60*AR9 -> 0 | AS61: 0 | AT61: 0 | AU61: 0 | AV61: 0 | AW61: 0 | AX61: 0 | AY61: 0 | AZ61: 0 | BA61: 0 | BB61: 0 | BC61: 0 | BD61: 0 | BE61: 0 | BF61: 0 | BG61: 0 | BH61: 0 | BI61: 0 | BJ61: 0 | BK61: 0 | BL61: 0 | BM61: 0 | BN61: 0 | BO61: 0 | BP61: 0 | BQ61: 0 | BR61: 0 | BS61: 0 | BT61: 0 | BU61: 0 | BV61: 0 | BW61: 0 | BX61: =BX60*BX9 -> 0 | BY61: 0 | BZ61: 0 | CA61: 0 | CB61: 0 | CC61: 0 | CD61: 0 | CE61: 0 | CF61: 0 | CG61: 0 | CH61: 0 | CI61: 0 | CJ61: 0 | CK61: 0 | CL61: 0 | CM61: 0 | CN61: 0 | CO61: 0 | CP61: 0 | CQ61: 0 | CR61: 0 | CS61: 0 | CT61: 0 | CU61: 0 | CV61: 0 | CW61: 0 | CX61: 0 | CY61: 0 | CZ61: 0 | DA61: 0 | DB61: 0 | DC61: 0 | DD61: =DD60*DD9 -> 0 | DE61: 0 | DF61: 0
C63: Equal Installments | L63: =L42/Inputs!$G$50*L11 -> 0 | M63: =M42/Inputs!$G$50*M11 -> 0 | N63: =N42/Inputs!$G$50*N11 -> 0 | O63: =O42/Inputs!$G$50*O11 -> 0 | P63: =P42/Inputs!$G$50*P11 -> 0 | Q63: =Q42/Inputs!$G$50*Q11 -> 0 | R63: =R42/Inputs!$G$50*R11 -> 107.8362041 | S63: =S42/Inputs!$G$50*S11 -> 107.8362041 | T63: =T42/Inputs!$G$50*T11 -> 107.8362041 | U63: =U42/Inputs!$G$50*U11 -> 107.8362041 | V63: =V42/Inputs!$G$50*V11 -> 107.8362041 | W63: =W42/Inputs!$G$50*W11 -> 107.8362041 | X63: =X42/Inputs!$G$50*X11 -> 107.8362041 | Y63: =Y42/Inputs!$G$50*Y11 -> 107.8362041 | Z63: =Z42/Inputs!$G$50*Z11 -> 107.8362041 | AA63: =AA42/Inputs!$G$50*AA11 -> 107.8362041 | AB63: =AB42/Inputs!$G$50*AB11 -> 107.8362041 | AC63: =AC42/Inputs!$G$50*AC11 -> 107.8362041 | AD63: =AD42/Inputs!$G$50*AD11 -> 107.8362041 | AE63: =AE42/Inputs!$G$50*AE11 -> 107.8362041 | AF63: =AF42/Inputs!$G$50*AF11 -> 107.8362041 | AG63: =AG42/Inputs!$G$50*AG11 -> 107.8362041 | AH63: =AH42/Inputs!$G$50*AH11 -> 107.8362041 | AI63: =AI42/Inputs!$G$50*AI11 -> 107.8362041 | AJ63: =AJ42/Inputs!$G$50*AJ11 -> 107.8362041 | AK63: =AK42/Inputs!$G$50*AK11 -> 107.8362041 | AL63: =AL42/Inputs!$G$50*AL11 -> 107.8362041 | AM63: =AM42/Inputs!$G$50*AM11 -> 107.8362041 | AN63: =AN42/Inputs!$G$50*AN11 -> 107.8362041 | AO63: =AO42/Inputs!$G$50*AO11 -> 107.8362041 | AP63: =AP42/Inputs!$G$50*AP11 -> 107.8362041 | AQ63: =AQ42/Inputs!$G$50*AQ11 -> 107.8362041 | AR63: =AR42/Inputs!$G$50*AR11 -> 107.8362041 | AS63: =AS42/Inputs!$G$50*AS11 -> 107.8362041 | AT63: =AT42/Inputs!$G$50*AT11 -> 107.8362041 | AU63: =AU42/Inputs!$G$50*AU11 -> 107.8362041 | AV63: =AV42/Inputs!$G$50*AV11 -> 107.8362041 | AW63: =AW42/Inputs!$G$50*AW11 -> 107.8362041 | AX63: =AX42/Inputs!$G$50*AX11 -> 107.8362041 | AY63: =AY42/Inputs!$G$50*AY11 -> 0 | AZ63: =AZ42/Inputs!$G$50*AZ11 -> 0 | BA63: =BA42/Inputs!$G$50*BA11 -> 0 | BB63: =BB42/Inputs!$G$50*BB11 -> 0 | BC63: =BC42/Inputs!$G$50*BC11 -> 0 | BD63: =BD42/Inputs!$G$50*BD11 -> 0 | BE63: =BE42/Inputs!$G$50*BE11 -> 0 | BF63: =BF42/Inputs!$G$50*BF11 -> 0 | BG63: =BG42/Inputs!$G$50*BG11 -> 0 | BH63: =BH42/Inputs!$G$50*BH11 -> 0 | BI63: =BI42/Inputs!$G$50*BI11 -> 0 | BJ63: =BJ42/Inputs!$G$50*BJ11 -> 0 | BK63: =BK42/Inputs!$G$50*BK11 -> 0 | BL63: =BL42/Inputs!$G$50*BL11 -> 0 | BM63: =BM42/Inputs!$G$50*BM11 -> 0 | BN63: =BN42/Inputs!$G$50*BN11 -> 0 | BO63: =BO42/Inputs!$G$50*BO11 -> 0 | BP63: =BP42/Inputs!$G$50*BP11 -> 0 | BQ63: =BQ42/Inputs!$G$50*BQ11 -> 0 | BR63: =BR42/Inputs!$G$50*BR11 -> 0 | BS63: =BS42/Inputs!$G$50*BS11 -> 0 | BT63: =BT42/Inputs!$G$50*BT11 -> 0 | BU63: =BU42/Inputs!$G$50*BU11 -> 0 | BV63: =BV42/Inputs!$G$50*BV11 -> 0 | BW63: =BW42/Inputs!$G$50*BW11 -> 0 | BX63: =BX42/Inputs!$G$50*BX11 -> 0 | BY63: =BY42/Inputs!$G$50*BY11 -> 0 | BZ63: =BZ42/Inputs!$G$50*BZ11 -> 0 | CA63: =CA42/Inputs!$G$50*CA11 -> 0 | CB63: =CB42/Inputs!$G$50*CB11 -> 0 | CC63: =CC42/Inputs!$G$50*CC11 -> 0 | CD63: =CD42/Inputs!$G$50*CD11 -> 0 | CE63: =CE42/Inputs!$G$50*CE11 -> 0 | CF63: =CF42/Inputs!$G$50*CF11 -> 0 | CG63: =CG42/Inputs!$G$50*CG11 -> 0 | CH63: =CH42/Inputs!$G$50*CH11 -> 0 | CI63: =CI42/Inputs!$G$50*CI11 -> 0 | CJ63: =CJ42/Inputs!$G$50*CJ11 -> 0 | CK63: =CK42/Inputs!$G$50*CK11 -> 0 | CL63: =CL42/Inputs!$G$50*CL11 -> 0 | CM63: =CM42/Inputs!$G$50*CM11 -> 0 | CN63: =CN42/Inputs!$G$50*CN11 -> 0 | CO63: =CO42/Inputs!$G$50*CO11 -> 0 | CP63: =CP42/Inputs!$G$50*CP11 -> 0 | CQ63: =CQ42/Inputs!$G$50*CQ11 -> 0 | CR63: =CR42/Inputs!$G$50*CR11 -> 0 | CS63: =CS42/Inputs!$G$50*CS11 -> 0 | CT63: =CT42/Inputs!$G$50*CT11 -> 0 | CU63: =CU42/Inputs!$G$50*CU11 -> 0 | CV63: =CV42/Inputs!$G$50*CV11 -> 0 | CW63: =CW42/Inputs!$G$50*CW11 -> 0 | CX63: =CX42/Inputs!$G$50*CX11 -> 0 | CY63: =CY42/Inputs!$G$50*CY11 -> 0 | CZ63: =CZ42/Inputs!$G$50*CZ11 -> 0 | DA63: =DA42/Inputs!$G$50*DA11 -> 0 | DB63: =DB42/Inputs!$G$50*DB11 -> 0 | DC63: =DC42/Inputs!$G$50*DC11 -> 0 | DD63: =DD42/Inputs!$G$50*DD11 -> 0 | DE63: =DE42/Inputs!$G$50*DE11 -> 0 | DF63: =DF42/Inputs!$G$50*DF11 -> 0
C64: Amortising | L64: =IF(L11,PPMT(L58,L8,Inputs!$G$50,-L42))*1 -> 0 | M64: =IF(M11,PPMT(M58,M8,Inputs!$G$50,-M42))*1 -> 0 | N64: =IF(N11,PPMT(N58,N8,Inputs!$G$50,-N42))*1 -> 0 | O64: =IF(O11,PPMT(O58,O8,Inputs!$G$50,-O42))*1 -> 0 | P64: =IF(P11,PPMT(P58,P8,Inputs!$G$50,-P42))*1 -> 0 | Q64: =IF(Q11,PPMT(Q58,Q8,Inputs!$G$50,-Q42))*1 -> 0 | R64: =IF(R11,PPMT(R58,R8,Inputs!$G$50,-R42))*1 -> 29.92089679 | S64: =IF(S11,PPMT(S58,S8,Inputs!$G$50,-S42))*1 -> 32.01535957 | T64: =IF(T11,PPMT(T58,T8,Inputs!$G$50,-T42))*1 -> 34.25643474 | U64: =IF(U11,PPMT(U58,U8,Inputs!$G$50,-U42))*1 -> 36.65438517 | V64: =IF(V11,PPMT(V58,V8,Inputs!$G$50,-V42))*1 -> 39.22019213 | W64: =IF(W11,PPMT(W58,W8,Inputs!$G$50,-W42))*1 -> 41.96560558 | X64: =IF(X11,PPMT(X58,X8,Inputs!$G$50,-X42))*1 -> 44.90319797 | Y64: =IF(Y11,PPMT(Y58,Y8,Inputs!$G$50,-Y42))*1 -> 48.04642183 | Z64: =IF(Z11,PPMT(Z58,Z8,Inputs!$G$50,-Z42))*1 -> 51.40967135 | AA64: =IF(AA11,PPMT(AA58,AA8,Inputs!$G$50,-AA42))*1 -> 55.00834835 | AB64: =IF(AB11,PPMT(AB58,AB8,Inputs!$G$50,-AB42))*1 -> 58.85893273 | AC64: =IF(AC11,PPMT(AC58,AC8,Inputs!$G$50,-AC42))*1 -> 62.97905802 | AD64: =IF(AD11,PPMT(AD58,AD8,Inputs!$G$50,-AD42))*1 -> 67.38759209 | AE64: =IF(AE11,PPMT(AE58,AE8,Inputs!$G$50,-AE42))*1 -> 72.10472353 | AF64: =IF(AF11,PPMT(AF58,AF8,Inputs!$G$50,-AF42))*1 -> 77.15205418 | AG64: =IF(AG11,PPMT(AG58,AG8,Inputs!$G$50,-AG42))*1 -> 82.55269797 | AH64: =IF(AH11,PPMT(AH58,AH8,Inputs!$G$50,-AH42))*1 -> 88.33138683 | AI64: =IF(AI11,PPMT(AI58,AI8,Inputs!$G$50,-AI42))*1 -> 94.51458391 | AJ64: =IF(AJ11,PPMT(AJ58,AJ8,Inputs!$G$50,-AJ42))*1 -> 101.1306048 | AK64: =IF(AK11,PPMT(AK58,AK8,Inputs!$G$50,-AK42))*1 -> 108.2097471 | AL64: =IF(AL11,PPMT(AL58,AL8,Inputs!$G$50,-AL42))*1 -> 115.7844294 | AM64: =IF(AM11,PPMT(AM58,AM8,Inputs!$G$50,-AM42))*1 -> 123.8893395 | AN64: =IF(AN11,PPMT(AN58,AN8,Inputs!$G$50,-AN42))*1 -> 132.5615932 | AO64: =IF(AO11,PPMT(AO58,AO8,Inputs!$G$50,-AO42))*1 -> 141.8409048 | AP64: =IF(AP11,PPMT(AP58,AP8,Inputs!$G$50,-AP42))*1 -> 151.7697681 | AQ64: =IF(AQ11,PPMT(AQ58,AQ8,Inputs!$G$50,-AQ42))*1 -> 162.3936519 | AR64: =IF(AR11,PPMT(AR58,AR8,Inputs!$G$50,-AR42))*1 -> 173.7612075 | AS64: =IF(AS11,PPMT(AS58,AS8,Inputs!$G$50,-AS42))*1 -> 185.924492 | AT64: =IF(AT11,PPMT(AT58,AT8,Inputs!$G$50,-AT42))*1 -> 198.9392065 | AU64: =IF(AU11,PPMT(AU58,AU8,Inputs!$G$50,-AU42))*1 -> 212.8649509 | AV64: =IF(AV11,PPMT(AV58,AV8,Inputs!$G$50,-AV42))*1 -> 227.7654975 | AW64: =IF(AW11,PPMT(AW58,AW8,Inputs!$G$50,-AW42))*1 -> 243.7090823 | AX64: =IF(AX11,PPMT(AX58,AX8,Inputs!$G$50,-AX42))*1 -> 260.7687181 | AY64: =IF(AY11,PPMT(AY58,AY8,Inputs!$G$50,-AY42))*1 -> 0 | AZ64: =IF(AZ11,PPMT(AZ58,AZ8,Inputs!$G$50,-AZ42))*1 -> 0 | BA64: =IF(BA11,PPMT(BA58,BA8,Inputs!$G$50,-BA42))*1 -> 0 | BB64: =IF(BB11,PPMT(BB58,BB8,Inputs!$G$50,-BB42))*1 -> 0 | BC64: =IF(BC11,PPMT(BC58,BC8,Inputs!$G$50,-BC42))*1 -> 0 | BD64: =IF(BD11,PPMT(BD58,BD8,Inputs!$G$50,-BD42))*1 -> 0 | BE64: =IF(BE11,PPMT(BE58,BE8,Inputs!$G$50,-BE42))*1 -> 0 | BF64: =IF(BF11,PPMT(BF58,BF8,Inputs!$G$50,-BF42))*1 -> 0 | BG64: =IF(BG11,PPMT(BG58,BG8,Inputs!$G$50,-BG42))*1 -> 0 | BH64: =IF(BH11,PPMT(BH58,BH8,Inputs!$G$50,-BH42))*1 -> 0 | BI64: =IF(BI11,PPMT(BI58,BI8,Inputs!$G$50,-BI42))*1 -> 0 | BJ64: =IF(BJ11,PPMT(BJ58,BJ8,Inputs!$G$50,-BJ42))*1 -> 0 | BK64: =IF(BK11,PPMT(BK58,BK8,Inputs!$G$50,-BK42))*1 -> 0 | BL64: =IF(BL11,PPMT(BL58,BL8,Inputs!$G$50,-BL42))*1 -> 0 | BM64: =IF(BM11,PPMT(BM58,BM8,Inputs!$G$50,-BM42))*1 -> 0 | BN64: =IF(BN11,PPMT(BN58,BN8,Inputs!$G$50,-BN42))*1 -> 0 | BO64: =IF(BO11,PPMT(BO58,BO8,Inputs!$G$50,-BO42))*1 -> 0 | BP64: =IF(BP11,PPMT(BP58,BP8,Inputs!$G$50,-BP42))*1 -> 0 | BQ64: =IF(BQ11,PPMT(BQ58,BQ8,Inputs!$G$50,-BQ42))*1 -> 0 | BR64: =IF(BR11,PPMT(BR58,BR8,Inputs!$G$50,-BR42))*1 -> 0 | BS64: =IF(BS11,PPMT(BS58,BS8,Inputs!$G$50,-BS42))*1 -> 0 | BT64: =IF(BT11,PPMT(BT58,BT8,Inputs!$G$50,-BT42))*1 -> 0 | BU64: =IF(BU11,PPMT(BU58,BU8,Inputs!$G$50,-BU42))*1 -> 0 | BV64: =IF(BV11,PPMT(BV58,BV8,Inputs!$G$50,-BV42))*1 -> 0 | BW64: =IF(BW11,PPMT(BW58,BW8,Inputs!$G$50,-BW42))*1 -> 0 | BX64: =IF(BX11,PPMT(BX58,BX8,Inputs!$G$50,-BX42))*1 -> 0 | BY64: =IF(BY11,PPMT(BY58,BY8,Inputs!$G$50,-BY42))*1 -> 0 | BZ64: =IF(BZ11,PPMT(BZ58,BZ8,Inputs!$G$50,-BZ42))*1 -> 0 | CA64: =IF(CA11,PPMT(CA58,CA8,Inputs!$G$50,-CA42))*1 -> 0 | CB64: =IF(CB11,PPMT(CB58,CB8,Inputs!$G$50,-CB42))*1 -> 0 | CC64: =IF(CC11,PPMT(CC58,CC8,Inputs!$G$50,-CC42))*1 -> 0 | CD64: =IF(CD11,PPMT(CD58,CD8,Inputs!$G$50,-CD42))*1 -> 0 | CE64: =IF(CE11,PPMT(CE58,CE8,Inputs!$G$50,-CE42))*1 -> 0 | CF64: =IF(CF11,PPMT(CF58,CF8,Inputs!$G$50,-CF42))*1 -> 0 | CG64: =IF(CG11,PPMT(CG58,CG8,Inputs!$G$50,-CG42))*1 -> 0 | CH64: =IF(CH11,PPMT(CH58,CH8,Inputs!$G$50,-CH42))*1 -> 0 | CI64: =IF(CI11,PPMT(CI58,CI8,Inputs!$G$50,-CI42))*1 -> 0 | CJ64: =IF(CJ11,PPMT(CJ58,CJ8,Inputs!$G$50,-CJ42))*1 -> 0 | CK64: =IF(CK11,PPMT(CK58,CK8,Inputs!$G$50,-CK42))*1 -> 0 | CL64: =IF(CL11,PPMT(CL58,CL8,Inputs!$G$50,-CL42))*1 -> 0 | CM64: =IF(CM11,PPMT(CM58,CM8,Inputs!$G$50,-CM42))*1 -> 0 | CN64: =IF(CN11,PPMT(CN58,CN8,Inputs!$G$50,-CN42))*1 -> 0 | CO64: =IF(CO11,PPMT(CO58,CO8,Inputs!$G$50,-CO42))*1 -> 0 | CP64: =IF(CP11,PPMT(CP58,CP8,Inputs!$G$50,-CP42))*1 -> 0 | CQ64: =IF(CQ11,PPMT(CQ58,CQ8,Inputs!$G$50,-CQ42))*1 -> 0 | CR64: =IF(CR11,PPMT(CR58,CR8,Inputs!$G$50,-CR42))*1 -> 0 | CS64: =IF(CS11,PPMT(CS58,CS8,Inputs!$G$50,-CS42))*1 -> 0 | CT64: =IF(CT11,PPMT(CT58,CT8,Inputs!$G$50,-CT42))*1 -> 0 | CU64: =IF(CU11,PPMT(CU58,CU8,Inputs!$G$50,-CU42))*1 -> 0 | CV64: =IF(CV11,PPMT(CV58,CV8,Inputs!$G$50,-CV42))*1 -> 0 | CW64: =IF(CW11,PPMT(CW58,CW8,Inputs!$G$50,-CW42))*1 -> 0 | CX64: =IF(CX11,PPMT(CX58,CX8,Inputs!$G$50,-CX42))*1 -> 0 | CY64: =IF(CY11,PPMT(CY58,CY8,Inputs!$G$50,-CY42))*1 -> 0 | CZ64: =IF(CZ11,PPMT(CZ58,CZ8,Inputs!$G$50,-CZ42))*1 -> 0 | DA64: =IF(DA11,PPMT(DA58,DA8,Inputs!$G$50,-DA42))*1 -> 0 | DB64: =IF(DB11,PPMT(DB58,DB8,Inputs!$G$50,-DB42))*1 -> 0 | DC64: =IF(DC11,PPMT(DC58,DC8,Inputs!$G$50,-DC42))*1 -> 0 | DD64: =IF(DD11,PPMT(DD58,DD8,Inputs!$G$50,-DD42))*1 -> 0 | DE64: =IF(DE11,PPMT(DE58,DE8,Inputs!$G$50,-DE42))*1 -> 0 | DF64: =IF(DF11,PPMT(DF58,DF8,Inputs!$G$50,-DF42))*1 -> 0
C65: Cash Sweep | L65: =L104-L106 -> 0 | M65: =M104-M106 -> 0 | N65: 0 | O65: 0 | P65: 0 | Q65: 0 | R65: 123.849207 | S65: 350.4200541 | T65: 373.0708604 | U65: 433.3087233 | V65: 508.6412665 | W65: 516.5766783 | X65: 524.6987514 | Y65: 533.0176757 | Z65: 541.5443418 | AA65: 550.2903906 | AB65: 560.1645848 | AC65: 570.3107973 | AD65: 580.7438775 | AE65: 591.4796726 | AF65: 602.5350965 | AG65: 613.9282046 | AH65: 625.6782727 | AI65: 637.8058825 | AJ65: 650.3330123 | AK65: 663.2831343 | AL65: 676.6813189 | AM65: 690.554346 | AN65: 704.9308244 | AO65: 719.841319 | AP65: 735.3184876 | AQ65: 751.3972267 | AR65: 768.1148279 | AS65: 785.5111452 | AT65: 803.6287735 | AU65: 822.5132401 | AV65: 842.21321 | AW65: 862.7807041 | AX65: 884.2713345 | AY65: 906.7445549 | AZ65: 915.6152461 | BA65: 924.5746442 | BB65: 933.6236364 | BC65: 942.7631184 | BD65: 951.9939953 | BE65: 961.317181 | BF65: 970.7335985 | BG65: 980.2441801 | BH65: 989.8498676 | BI65: 999.551612 | BJ65: 1009.350374 | BK65: 1019.247123 | BL65: 1029.24284 | BM65: 1039.338514 | BN65: 1049.535145 | BO65: 0 | BP65: 0 | BQ65: 0 | BR65: 0 | BS65: 0 | BT65: 0 | BU65: 0 | BV65: 0 | BW65: 0 | BX65: 0 | BY65: =BY104-BY106 -> 0 | BZ65: 0 | CA65: 0 | CB65: 0 | CC65: 0 | CD65: 0 | CE65: 0 | CF65: 0 | CG65: 0 | CH65: 0 | CI65: 0 | CJ65: 0 | CK65: 0 | CL65: 0 | CM65: 0 | CN65: 0 | CO65: 0 | CP65: 0 | CQ65: 0 | CR65: 0 | CS65: 0 | CT65: 0 | CU65: 0 | CV65: 0 | CW65: 0 | CX65: 0 | CY65: 0 | CZ65: 0 | DA65: 0 | DB65: 0 | DC65: 0 | DD65: 0 | DE65: 0 | DF65: 0
C67: Debt Repayment Applied | G67: 2 | L67: =INDEX(L63:L65,$G$67) -> 0 | M67: =INDEX(M63:M65,$G$67) -> 0 | N67: 0 | O67: 0 | P67: 0 | Q67: 0 | R67: 29.92089679 | S67: 32.01535957 | T67: 34.25643474 | U67: 36.65438517 | V67: 39.22019213 | W67: 41.96560558 | X67: 44.90319797 | Y67: 48.04642183 | Z67: 51.40967135 | AA67: 55.00834835 | AB67: 58.85893273 | AC67: 62.97905802 | AD67: 67.38759209 | AE67: 72.10472353 | AF67: 77.15205418 | AG67: 82.55269797 | AH67: 88.33138683 | AI67: 94.51458391 | AJ67: 101.1306048 | AK67: 108.2097471 | AL67: 115.7844294 | AM67: 123.8893395 | AN67: 132.5615932 | AO67: 141.8409048 | AP67: 151.7697681 | AQ67: 162.3936519 | AR67: 173.7612075 | AS67: 185.924492 | AT67: 198.9392065 | AU67: 212.8649509 | AV67: 227.7654975 | AW67: 243.7090823 | AX67: 260.7687181 | AY67: 0 | AZ67: 0 | BA67: 0 | BB67: 0 | BC67: 0 | BD67: 0 | BE67: 0 | BF67: 0 | BG67: 0 | BH67: 0 | BI67: 0 | BJ67: 0 | BK67: 0 | BL67: 0 | BM67: 0 | BN67: 0 | BO67: 0 | BP67: 0 | BQ67: 0 | BR67: 0 | BS67: 0 | BT67: 0 | BU67: 0 | BV67: 0 | BW67: 0 | BX67: 0 | BY67: =INDEX(BY63:BY65,$G$67) -> 0 | BZ67: 0 | CA67: 0 | CB67: 0 | CC67: 0 | CD67: 0 | CE67: 0 | CF67: 0 | CG67: 0 | CH67: 0 | CI67: 0 | CJ67: 0 | CK67: 0 | CL67: 0 | CM67: 0 | CN67: 0 | CO67: 0 | CP67: 0 | CQ67: 0 | CR67: 0 | CS67: 0 | CT67: 0 | CU67: 0 | CV67: 0 | CW67: 0 | CX67: 0 | CY67: 0 | CZ67: 0 | DA67: 0 | DB67: 0 | DC67: 0 | DD67: 0 | DE67: 0 | DF67: 0
B69: Fixed Assets
C71: Opening Balance | L71: =K74 -> 0 | M71: =L74 -> 382.1 | N71: 1194.0625 | O71: 2036.769531 | P71: 2940.572822 | Q71: 3909.901852 | R71: 4328.594736 | S71: 4328.594736 | T71: 4328.594736 | U71: 4328.594736 | V71: 4328.594736 | W71: 4328.594736 | X71: 4328.594736 | Y71: 4328.594736 | Z71: 4328.594736 | AA71: 4328.594736 | AB71: 4328.594736 | AC71: 4328.594736 | AD71: 4328.594736 | AE71: 4328.594736 | AF71: 4328.594736 | AG71: 4328.594736 | AH71: 4328.594736 | AI71: 4328.594736 | AJ71: 4328.594736 | AK71: 4328.594736 | AL71: 4328.594736 | AM71: 4328.594736 | AN71: 4328.594736 | AO71: 4328.594736 | AP71: 4328.594736 | AQ71: 4328.594736 | AR71: 4328.594736 | AS71: 4328.594736 | AT71: 4328.594736 | AU71: 4328.594736 | AV71: 4328.594736 | AW71: 4328.594736 | AX71: 4328.594736 | AY71: 4328.594736 | AZ71: 4328.594736 | BA71: 4328.594736 | BB71: 4328.594736 | BC71: 4328.594736 | BD71: 4328.594736 | BE71: 4328.594736 | BF71: 4328.594736 | BG71: 4328.594736 | BH71: 4328.594736 | BI71: 4328.594736 | BJ71: 4328.594736 | BK71: 4328.594736 | BL71: 4328.594736 | BM71: 4328.594736 | BN71: 4328.594736 | BO71: 4328.594736 | BP71: 4328.594736 | BQ71: 4328.594736 | BR71: 4328.594736 | BS71: 4328.594736 | BT71: 4328.594736 | BU71: 4328.594736 | BV71: 4328.594736 | BW71: 4328.594736 | BX71: 4328.594736 | BY71: =BX74 -> 4328.594736 | BZ71: 4328.594736 | CA71: 4328.594736 | CB71: 4328.594736 | CC71: 4328.594736 | CD71: 4328.594736 | CE71: 4328.594736 | CF71: 4328.594736 | CG71: 4328.594736 | CH71: 4328.594736 | CI71: 4328.594736 | CJ71: 4328.594736 | CK71: 4328.594736 | CL71: 4328.594736 | CM71: 4328.594736 | CN71: 4328.594736 | CO71: 4328.594736 | CP71: 4328.594736 | CQ71: 4328.594736 | CR71: 4328.594736 | CS71: 4328.594736 | CT71: 4328.594736 | CU71: 4328.594736 | CV71: 4328.594736 | CW71: 4328.594736 | CX71: 4328.594736 | CY71: 4328.594736 | CZ71: 4328.594736 | DA71: 4328.594736 | DB71: 4328.594736 | DC71: 4328.594736 | DD71: 4328.594736 | DE71: 4328.594736 | DF71: 4328.594736
C72: Add: Capital Expenditures | L72: =L21 -> 382.1 | M72: =M21 -> 811.9625 | N72: 811.9625 | O72: 811.9625 | P72: 811.9625 | Q72: 191.05 | R72: 0 | S72: 0 | T72: 0 | U72: 0 | V72: 0 | W72: 0 | X72: 0 | Y72: 0 | Z72: 0 | AA72: 0 | AB72: 0 | AC72: 0 | AD72: 0 | AE72: 0 | AF72: 0 | AG72: 0 | AH72: 0 | AI72: 0 | AJ72: 0 | AK72: 0 | AL72: 0 | AM72: 0 | AN72: 0 | AO72: 0 | AP72: 0 | AQ72: 0 | AR72: 0 | AS72: 0 | AT72: 0 | AU72: 0 | AV72: 0 | AW72: 0 | AX72: 0 | AY72: 0 | AZ72: 0 | BA72: 0 | BB72: 0 | BC72: 0 | BD72: 0 | BE72: 0 | BF72: 0 | BG72: 0 | BH72: 0 | BI72: 0 | BJ72: 0 | BK72: 0 | BL72: 0 | BM72: 0 | BN72: 0 | BO72: 0 | BP72: 0 | BQ72: 0 | BR72: 0 | BS72: 0 | BT72: 0 | BU72: 0 | BV72: 0 | BW72: 0 | BX72: 0 | BY72: =BY21 -> 0 | BZ72: 0 | CA72: 0 | CB72: 0 | CC72: 0 | CD72: 0 | CE72: 0 | CF72: 0 | CG72: 0 | CH72: 0 | CI72: 0 | CJ72: 0 | CK72: 0 | CL72: 0 | CM72: 0 | CN72: 0 | CO72: 0 | CP72: 0 | CQ72: 0 | CR72: 0 | CS72: 0 | CT72: 0 | CU72: 0 | CV72: 0 | CW72: 0 | CX72: 0 | CY72: 0 | CZ72: 0 | DA72: 0 | DB72: 0 | DC72: 0 | DD72: 0 | DE72: 0 | DF72: 0
C73: Add: Interest During Construction | L73: =L22 -> 0 | M73: =M22 -> 0 | N73: 30.74453125 | O73: 91.84079102 | P73: 157.3665296 | Q73: 227.6428843 | R73: 0 | S73: 0 | T73: 0 | U73: 0 | V73: 0 | W73: 0 | X73: 0 | Y73: 0 | Z73: 0 | AA73: 0 | AB73: 0 | AC73: 0 | AD73: 0 | AE73: 0 | AF73: 0 | AG73: 0 | AH73: 0 | AI73: 0 | AJ73: 0 | AK73: 0 | AL73: 0 | AM73: 0 | AN73: 0 | AO73: 0 | AP73: 0 | AQ73: 0 | AR73: 0 | AS73: 0 | AT73: 0 | AU73: 0 | AV73: 0 | AW73: 0 | AX73: 0 | AY73: 0 | AZ73: 0 | BA73: 0 | BB73: 0 | BC73: 0 | BD73: 0 | BE73: 0 | BF73: 0 | BG73: 0 | BH73: 0 | BI73: 0 | BJ73: 0 | BK73: 0 | BL73: 0 | BM73: 0 | BN73: 0 | BO73: 0 | BP73: 0 | BQ73: 0 | BR73: 0 | BS73: 0 | BT73: 0 | BU73: 0 | BV73: 0 | BW73: 0 | BX73: 0 | BY73: =BY22 -> 0 | BZ73: 0 | CA73: 0 | CB73: 0 | CC73: 0 | CD73: 0 | CE73: 0 | CF73: 0 | CG73: 0 | CH73: 0 | CI73: 0 | CJ73: 0 | CK73: 0 | CL73: 0 | CM73: 0 | CN73: 0 | CO73: 0 | CP73: 0 | CQ73: 0 | CR73: 0 | CS73: 0 | CT73: 0 | CU73: 0 | CV73: 0 | CW73: 0 | CX73: 0 | CY73: 0 | CZ73: 0 | DA73: 0 | DB73: 0 | DC73: 0 | DD73: 0 | DE73: 0 | DF73: 0
C74: Closing Balance | L74: =L71+L72+L73 -> 382.1 | M74: =M71+M72+M73 -> 1194.0625 | N74: 2036.769531 | O74: 2940.572822 | P74: 3909.901852 | Q74: 4328.594736 | R74: 4328.594736 | S74: 4328.594736 | T74: 4328.594736 | U74: 4328.594736 | V74: 4328.594736 | W74: 4328.594736 | X74: 4328.594736 | Y74: 4328.594736 | Z74: 4328.594736 | AA74: 4328.594736 | AB74: 4328.594736 | AC74: 4328.594736 | AD74: 4328.594736 | AE74: 4328.594736 | AF74: 4328.594736 | AG74: 4328.594736 | AH74: 4328.594736 | AI74: 4328.594736 | AJ74: 4328.594736 | AK74: 4328.594736 | AL74: 4328.594736 | AM74: 4328.594736 | AN74: 4328.594736 | AO74: 4328.594736 | AP74: 4328.594736 | AQ74: 4328.594736 | AR74: 4328.594736 | AS74: 4328.594736 | AT74: 4328.594736 | AU74: 4328.594736 | AV74: 4328.594736 | AW74: 4328.594736 | AX74: 4328.594736 | AY74: 4328.594736 | AZ74: 4328.594736 | BA74: 4328.594736 | BB74: 4328.594736 | BC74: 4328.594736 | BD74: 4328.594736 | BE74: 4328.594736 | BF74: 4328.594736 | BG74: 4328.594736 | BH74: 4328.594736 | BI74: 4328.594736 | BJ74: 4328.594736 | BK74: 4328.594736 | BL74: 4328.594736 | BM74: 4328.594736 | BN74: 4328.594736 | BO74: 4328.594736 | BP74: 4328.594736 | BQ74: 4328.594736 | BR74: 4328.594736 | BS74: 4328.594736 | BT74: 4328.594736 | BU74: 4328.594736 | BV74: 4328.594736 | BW74: 4328.594736 | BX74: 4328.594736 | BY74: =BY71+BY72+BY73 -> 4328.594736 | BZ74: 4328.594736 | CA74: 4328.594736 | CB74: 4328.594736 | CC74: 4328.594736 | CD74: 4328.594736 | CE74: 4328.594736 | CF74: 4328.594736 | CG74: 4328.594736 | CH74: 4328.594736 | CI74: 4328.594736 | CJ74: 4328.594736 | CK74: 4328.594736 | CL74: 4328.594736 | CM74: 4328.594736 | CN74: 4328.594736 | CO74: 4328.594736 | CP74: 4328.594736 | CQ74: 4328.594736 | CR74: 4328.594736 | CS74: 4328.594736 | CT74: 4328.594736 | CU74: 4328.594736 | CV74: 4328.594736 | CW74: 4328.594736 | CX74: 4328.594736 | CY74: 4328.594736 | CZ74: 4328.594736 | DA74: 4328.594736 | DB74: 4328.594736 | DC74: 4328.594736 | DD74: 4328.594736 | DE74: 4328.594736 | DF74: 4328.594736
C76: Depreciation Rate | L76: =1/Inputs!$G$15 -> 0.01818181818 | M76: =1/Inputs!$G$15 -> 0.01818181818 | N76: =1/Inputs!$G$15 -> 0.01818181818 | O76: =1/Inputs!$G$15 -> 0.01818181818 | P76: =1/Inputs!$G$15 -> 0.01818181818 | Q76: =1/Inputs!$G$15 -> 0.01818181818 | R76: =1/Inputs!$G$15 -> 0.01818181818 | S76: =1/Inputs!$G$15 -> 0.01818181818 | T76: =1/Inputs!$G$15 -> 0.01818181818 | U76: =1/Inputs!$G$15 -> 0.01818181818 | V76: =1/Inputs!$G$15 -> 0.01818181818 | W76: =1/Inputs!$G$15 -> 0.01818181818 | X76: =1/Inputs!$G$15 -> 0.01818181818 | Y76: =1/Inputs!$G$15 -> 0.01818181818 | Z76: =1/Inputs!$G$15 -> 0.01818181818 | AA76: =1/Inputs!$G$15 -> 0.01818181818 | AB76: =1/Inputs!$G$15 -> 0.01818181818 | AC76: =1/Inputs!$G$15 -> 0.01818181818 | AD76: =1/Inputs!$G$15 -> 0.01818181818 | AE76: =1/Inputs!$G$15 -> 0.01818181818 | AF76: =1/Inputs!$G$15 -> 0.01818181818 | AG76: =1/Inputs!$G$15 -> 0.01818181818 | AH76: =1/Inputs!$G$15 -> 0.01818181818 | AI76: =1/Inputs!$G$15 -> 0.01818181818 | AJ76: =1/Inputs!$G$15 -> 0.01818181818 | AK76: =1/Inputs!$G$15 -> 0.01818181818 | AL76: =1/Inputs!$G$15 -> 0.01818181818 | AM76: =1/Inputs!$G$15 -> 0.01818181818 | AN76: =1/Inputs!$G$15 -> 0.01818181818 | AO76: =1/Inputs!$G$15 -> 0.01818181818 | AP76: =1/Inputs!$G$15 -> 0.01818181818 | AQ76: =1/Inputs!$G$15 -> 0.01818181818 | AR76: =1/Inputs!$G$15 -> 0.01818181818 | AS76: =1/Inputs!$G$15 -> 0.01818181818 | AT76: =1/Inputs!$G$15 -> 0.01818181818 | AU76: =1/Inputs!$G$15 -> 0.01818181818 | AV76: =1/Inputs!$G$15 -> 0.01818181818 | AW76: =1/Inputs!$G$15 -> 0.01818181818 | AX76: =1/Inputs!$G$15 -> 0.01818181818 | AY76: =1/Inputs!$G$15 -> 0.01818181818 | AZ76: =1/Inputs!$G$15 -> 0.01818181818 | BA76: =1/Inputs!$G$15 -> 0.01818181818 | BB76: =1/Inputs!$G$15 -> 0.01818181818 | BC76: =1/Inputs!$G$15 -> 0.01818181818 | BD76: =1/Inputs!$G$15 -> 0.01818181818 | BE76: =1/Inputs!$G$15 -> 0.01818181818 | BF76: =1/Inputs!$G$15 -> 0.01818181818 | BG76: =1/Inputs!$G$15 -> 0.01818181818 | BH76: =1/Inputs!$G$15 -> 0.01818181818 | BI76: =1/Inputs!$G$15 -> 0.01818181818 | BJ76: =1/Inputs!$G$15 -> 0.01818181818 | BK76: =1/Inputs!$G$15 -> 0.01818181818 | BL76: =1/Inputs!$G$15 -> 0.01818181818 | BM76: =1/Inputs!$G$15 -> 0.01818181818 | BN76: =1/Inputs!$G$15 -> 0.01818181818 | BO76: =1/Inputs!$G$15 -> 0.01818181818 | BP76: =1/Inputs!$G$15 -> 0.01818181818 | BQ76: =1/Inputs!$G$15 -> 0.01818181818 | BR76: =1/Inputs!$G$15 -> 0.01818181818 | BS76: =1/Inputs!$G$15 -> 0.01818181818 | BT76: =1/Inputs!$G$15 -> 0.01818181818 | BU76: =1/Inputs!$G$15 -> 0.01818181818 | BV76: =1/Inputs!$G$15 -> 0.01818181818 | BW76: =1/Inputs!$G$15 -> 0.01818181818 | BX76: =1/Inputs!$G$15 -> 0.01818181818 | BY76: =1/Inputs!$G$15 -> 0.01818181818 | BZ76: =1/Inputs!$G$15 -> 0.01818181818 | CA76: =1/Inputs!$G$15 -> 0.01818181818 | CB76: =1/Inputs!$G$15 -> 0.01818181818 | CC76: =1/Inputs!$G$15 -> 0.01818181818 | CD76: =1/Inputs!$G$15 -> 0.01818181818 | CE76: =1/Inputs!$G$15 -> 0.01818181818 | CF76: =1/Inputs!$G$15 -> 0.01818181818 | CG76: =1/Inputs!$G$15 -> 0.01818181818 | CH76: =1/Inputs!$G$15 -> 0.01818181818 | CI76: =1/Inputs!$G$15 -> 0.01818181818 | CJ76: =1/Inputs!$G$15 -> 0.01818181818 | CK76: =1/Inputs!$G$15 -> 0.01818181818 | CL76: =1/Inputs!$G$15 -> 0.01818181818 | CM76: =1/Inputs!$G$15 -> 0.01818181818 | CN76: =1/Inputs!$G$15 -> 0.01818181818 | CO76: =1/Inputs!$G$15 -> 0.01818181818 | CP76: =1/Inputs!$G$15 -> 0.01818181818 | CQ76: =1/Inputs!$G$15 -> 0.01818181818 | CR76: =1/Inputs!$G$15 -> 0.01818181818 | CS76: =1/Inputs!$G$15 -> 0.01818181818 | CT76: =1/Inputs!$G$15 -> 0.01818181818 | CU76: =1/Inputs!$G$15 -> 0.01818181818 | CV76: =1/Inputs!$G$15 -> 0.01818181818 | CW76: =1/Inputs!$G$15 -> 0.01818181818 | CX76: =1/Inputs!$G$15 -> 0.01818181818 | CY76: =1/Inputs!$G$15 -> 0.01818181818 | CZ76: =1/Inputs!$G$15 -> 0.01818181818 | DA76: =1/Inputs!$G$15 -> 0.01818181818 | DB76: =1/Inputs!$G$15 -> 0.01818181818 | DC76: =1/Inputs!$G$15 -> 0.01818181818 | DD76: =1/Inputs!$G$15 -> 0.01818181818 | DE76: =1/Inputs!$G$15 -> 0.01818181818 | DF76: =1/Inputs!$G$15 -> 0.01818181818
C77: Depreciation Expense | L77: =L76*L71*L10 -> 0 | M77: 0 | N77: 0 | O77: 0 | P77: 0 | Q77: 0 | R77: 78.70172248 | S77: 78.70172248 | T77: 78.70172248 | U77: 78.70172248 | V77: 78.70172248 | W77: 78.70172248 | X77: 78.70172248 | Y77: 78.70172248 | Z77: 78.70172248 | AA77: 78.70172248 | AB77: 78.70172248 | AC77: 78.70172248 | AD77: 78.70172248 | AE77: 78.70172248 | AF77: 78.70172248 | AG77: 78.70172248 | AH77: 78.70172248 | AI77: 78.70172248 | AJ77: 78.70172248 | AK77: 78.70172248 | AL77: 78.70172248 | AM77: 78.70172248 | AN77: 78.70172248 | AO77: 78.70172248 | AP77: 78.70172248 | AQ77: 78.70172248 | AR77: =AR76*AR71*AR10 -> 78.70172248 | AS77: 78.70172248 | AT77: 78.70172248 | AU77: 78.70172248 | AV77: 78.70172248 | AW77: 78.70172248 | AX77: 78.70172248 | AY77: 78.70172248 | AZ77: 78.70172248 | BA77: 78.70172248 | BB77: 78.70172248 | BC77: 78.70172248 | BD77: 78.70172248 | BE77: 78.70172248 | BF77: 78.70172248 | BG77: 78.70172248 | BH77: 78.70172248 | BI77: 78.70172248 | BJ77: 78.70172248 | BK77: 78.70172248 | BL77: 78.70172248 | BM77: 78.70172248 | BN77: 78.70172248 | BO77: 0 | BP77: 0 | BQ77: 0 | BR77: 0 | BS77: 0 | BT77: 0 | BU77: 0 | BV77: 0 | BW77: 0 | BX77: =BX76*BX71*BX10 -> 0 | BY77: 0 | BZ77: 0 | CA77: 0 | CB77: 0 | CC77: 0 | CD77: 0 | CE77: 0 | CF77: 0 | CG77: 0 | CH77: 0 | CI77: 0 | CJ77: 0 | CK77: 0 | CL77: 0 | CM77: 0 | CN77: 0 | CO77: 0 | CP77: 0 | CQ77: 0 | CR77: 0 | CS77: 0 | CT77: 0 | CU77: 0 | CV77: 0 | CW77: 0 | CX77: 0 | CY77: 0 | CZ77: 0 | DA77: 0 | DB77: 0 | DC77: 0 | DD77: =DD76*DD71*DD10 -> 0 | DE77: 0 | DF77: 0
C79: Accumulated Depreciation
C80: Opening Balance | L80: =K82 -> 0 | M80: =L82 -> 0 | N80: 0 | O80: 0 | P80: 0 | Q80: 0 | R80: 0 | S80: 78.70172248 | T80: 157.403445 | U80: 236.1051674 | V80: 314.8068899 | W80: 393.5086124 | X80: 472.2103349 | Y80: 550.9120573 | Z80: 629.6137798 | AA80: 708.3155023 | AB80: 787.0172248 | AC80: 865.7189472 | AD80: 944.4206697 | AE80: 1023.122392 | AF80: 1101.824115 | AG80: 1180.525837 | AH80: 1259.22756 | AI80: 1337.929282 | AJ80: 1416.631005 | AK80: 1495.332727 | AL80: 1574.03445 | AM80: 1652.736172 | AN80: 1731.437894 | AO80: 1810.139617 | AP80: 1888.841339 | AQ80: 1967.543062 | AR80: 2046.244784 | AS80: 2124.946507 | AT80: 2203.648229 | AU80: 2282.349952 | AV80: 2361.051674 | AW80: 2439.753397 | AX80: 2518.455119 | AY80: 2597.156842 | AZ80: 2675.858564 | BA80: 2754.560287 | BB80: 2833.262009 | BC80: 2911.963732 | BD80: 2990.665454 | BE80: 3069.367177 | BF80: 3148.068899 | BG80: 3226.770621 | BH80: 3305.472344 | BI80: 3384.174066 | BJ80: 3462.875789 | BK80: 3541.577511 | BL80: 3620.279234 | BM80: 3698.980956 | BN80: 3777.682679 | BO80: 3856.384401 | BP80: 3856.384401 | BQ80: 3856.384401 | BR80: 3856.384401 | BS80: 3856.384401 | BT80: 3856.384401 | BU80: 3856.384401 | BV80: 3856.384401 | BW80: 3856.384401 | BX80: 3856.384401 | BY80: =BX82 -> 3856.384401 | BZ80: 3856.384401 | CA80: 3856.384401 | CB80: 3856.384401 | CC80: 3856.384401 | CD80: 3856.384401 | CE80: 3856.384401 | CF80: 3856.384401 | CG80: 3856.384401 | CH80: 3856.384401 | CI80: 3856.384401 | CJ80: 3856.384401 | CK80: 3856.384401 | CL80: 3856.384401 | CM80: 3856.384401 | CN80: 3856.384401 | CO80: 3856.384401 | CP80: 3856.384401 | CQ80: 3856.384401 | CR80: 3856.384401 | CS80: 3856.384401 | CT80: 3856.384401 | CU80: 3856.384401 | CV80: 3856.384401 | CW80: 3856.384401 | CX80: 3856.384401 | CY80: 3856.384401 | CZ80: 3856.384401 | DA80: 3856.384401 | DB80: 3856.384401 | DC80: 3856.384401 | DD80: 3856.384401 | DE80: 3856.384401 | DF80: 3856.384401
C81: Add: Depreciation Expense | L81: =L77 -> 0 | M81: =M77 -> 0 | N81: 0 | O81: 0 | P81: 0 | Q81: 0 | R81: 78.70172248 | S81: 78.70172248 | T81: 78.70172248 | U81: 78.70172248 | V81: 78.70172248 | W81: 78.70172248 | X81: 78.70172248 | Y81: 78.70172248 | Z81: 78.70172248 | AA81: 78.70172248 | AB81: 78.70172248 | AC81: 78.70172248 | AD81: 78.70172248 | AE81: 78.70172248 | AF81: 78.70172248 | AG81: 78.70172248 | AH81: 78.70172248 | AI81: 78.70172248 | AJ81: 78.70172248 | AK81: 78.70172248 | AL81: 78.70172248 | AM81: 78.70172248 | AN81: 78.70172248 | AO81: 78.70172248 | AP81: 78.70172248 | AQ81: 78.70172248 | AR81: 78.70172248 | AS81: 78.70172248 | AT81: 78.70172248 | AU81: 78.70172248 | AV81: 78.70172248 | AW81: 78.70172248 | AX81: 78.70172248 | AY81: 78.70172248 | AZ81: 78.70172248 | BA81: 78.70172248 | BB81: 78.70172248 | BC81: 78.70172248 | BD81: 78.70172248 | BE81: 78.70172248 | BF81: 78.70172248 | BG81: 78.70172248 | BH81: 78.70172248 | BI81: 78.70172248 | BJ81: 78.70172248 | BK81: 78.70172248 | BL81: 78.70172248 | BM81: 78.70172248 | BN81: 78.70172248 | BO81: 0 | BP81: 0 | BQ81: 0 | BR81: 0 | BS81: 0 | BT81: 0 | BU81: 0 | BV81: 0 | BW81: 0 | BX81: 0 | BY81: =BY77 -> 0 | BZ81: 0 | CA81: 0 | CB81: 0 | CC81: 0 | CD81: 0 | CE81: 0 | CF81: 0 | CG81: 0 | CH81: 0 | CI81: 0 | CJ81: 0 | CK81: 0 | CL81: 0 | CM81: 0 | CN81: 0 | CO81: 0 | CP81: 0 | CQ81: 0 | CR81: 0 | CS81: 0 | CT81: 0 | CU81: 0 | CV81: 0 | CW81: 0 | CX81: 0 | CY81: 0 | CZ81: 0 | DA81: 0 | DB81: 0 | DC81: 0 | DD81: 0 | DE81: 0 | DF81: 0
C82: Closing Balance | L82: =L80+L81 -> 0 | M82: =M80+M81 -> 0 | N82: 0 | O82: 0 | P82: 0 | Q82: 0 | R82: 78.70172248 | S82: 157.403445 | T82: 236.1051674 | U82: 314.8068899 | V82: 393.5086124 | W82: 472.2103349 | X82: 550.9120573 | Y82: 629.6137798 | Z82: 708.3155023 | AA82: 787.0172248 | AB82: 865.7189472 | AC82: 944.4206697 | AD82: 1023.122392 | AE82: 1101.824115 | AF82: 1180.525837 | AG82: 1259.22756 | AH82: 1337.929282 | AI82: 1416.631005 | AJ82: 1495.332727 | AK82: 1574.03445 | AL82: 1652.736172 | AM82: 1731.437894 | AN82: 1810.139617 | AO82: 1888.841339 | AP82: 1967.543062 | AQ82: 2046.244784 | AR82: 2124.946507 | AS82: 2203.648229 | AT82: 2282.349952 | AU82: 2361.051674 | AV82: 2439.753397 | AW82: 2518.455119 | AX82: 2597.156842 | AY82: 2675.858564 | AZ82: 2754.560287 | BA82: 2833.262009 | BB82: 2911.963732 | BC82: 2990.665454 | BD82: 3069.367177 | BE82: 3148.068899 | BF82: 3226.770621 | BG82: 3305.472344 | BH82: 3384.174066 | BI82: 3462.875789 | BJ82: 3541.577511 | BK82: 3620.279234 | BL82: 3698.980956 | BM82: 3777.682679 | BN82: 3856.384401 | BO82: 3856.384401 | BP82: 3856.384401 | BQ82: 3856.384401 | BR82: 3856.384401 | BS82: 3856.384401 | BT82: 3856.384401 | BU82: 3856.384401 | BV82: 3856.384401 | BW82: 3856.384401 | BX82: 3856.384401 | BY82: =BY80+BY81 -> 3856.384401 | BZ82: 3856.384401 | CA82: 3856.384401 | CB82: 3856.384401 | CC82: 3856.384401 | CD82: 3856.384401 | CE82: 3856.384401 | CF82: 3856.384401 | CG82: 3856.384401 | CH82: 3856.384401 | CI82: 3856.384401 | CJ82: 3856.384401 | CK82: 3856.384401 | CL82: 3856.384401 | CM82: 3856.384401 | CN82: 3856.384401 | CO82: 3856.384401 | CP82: 3856.384401 | CQ82: 3856.384401 | CR82: 3856.384401 | CS82: 3856.384401 | CT82: 3856.384401 | CU82: 3856.384401 | CV82: 3856.384401 | CW82: 3856.384401 | CX82: 3856.384401 | CY82: 3856.384401 | CZ82: 3856.384401 | DA82: 3856.384401 | DB82: 3856.384401 | DC82: 3856.384401 | DD82: 3856.384401 | DE82: 3856.384401 | DF82: 3856.384401
B84: Profit and Loss
C85: Revenues | L85: =L17 -> 0 | M85: 0 | N85: 0 | O85: 0 | P85: 0 | Q85: 0 | R85: 488 | S85: 790 | T85: 820 | U85: 900 | V85: 1000 | W85: 1010 | X85: 1020.1 | Y85: 1030.301 | Z85: 1040.60401 | AA85: 1051.01005 | AB85: 1061.520151 | AC85: 1072.135352 | AD85: 1082.856706 | AE85: 1093.685273 | AF85: 1104.622125 | AG85: 1115.668347 | AH85: 1126.82503 | AI85: 1138.09328 | AJ85: 1149.474213 | AK85: 1160.968955 | AL85: 1172.578645 | AM85: 1184.304431 | AN85: 1196.147476 | AO85: 1208.10895 | AP85: 1220.19004 | AQ85: 1232.39194 | AR85: =AR17 -> 1244.71586 | AS85: 1257.163018 | AT85: 1269.734649 | AU85: 1282.431995 | AV85: 1295.256315 | AW85: 1308.208878 | AX85: 1321.290967 | AY85: 1334.503877 | AZ85: 1347.848915 | BA85: 1361.327404 | BB85: 1374.940679 | BC85: 1388.690085 | BD85: 1402.576986 | BE85: 1416.602756 | BF85: 1430.768784 | BG85: 1445.076471 | BH85: 1459.527236 | BI85: 1474.122509 | BJ85: 1488.863734 | BK85: 1503.752371 | BL85: 1518.789895 | BM85: 1533.977794 | BN85: 1549.317572 | BO85: 0 | BP85: 0 | BQ85: 0 | BR85: 0 | BS85: 0 | BT85: 0 | BU85: 0 | BV85: 0 | BW85: 0 | BX85: =BX17 -> 0 | BY85: 0 | BZ85: 0 | CA85: 0 | CB85: 0 | CC85: 0 | CD85: 0 | CE85: 0 | CF85: 0 | CG85: 0 | CH85: 0 | CI85: 0 | CJ85: 0 | CK85: 0 | CL85: 0 | CM85: 0 | CN85: 0 | CO85: 0 | CP85: 0 | CQ85: 0 | CR85: 0 | CS85: 0 | CT85: 0 | CU85: 0 | CV85: 0 | CW85: 0 | CX85: 0 | CY85: 0 | CZ85: 0 | DA85: 0 | DB85: 0 | DC85: 0 | DD85: 0 | DE85: 0 | DF85: 0
C86: Operating Cost | L86: =L18 -> 0 | M86: 0 | N86: 0 | O86: 0 | P86: 0 | Q86: 0 | R86: 100 | S86: 102 | T86: 104.04 | U86: 106.1208 | V86: 108.243216 | W86: 110.4080803 | X86: 112.6162419 | Y86: 114.8685668 | Z86: 117.1659381 | AA86: 119.5092569 | AB86: 120.7043494 | AC86: 121.9113929 | AD86: 123.1305069 | AE86: 124.3618119 | AF86: 125.60543 | AG86: 126.8614843 | AH86: 128.1300992 | AI86: 129.4114002 | AJ86: 130.7055142 | AK86: 132.0125693 | AL86: 133.332695 | AM86: 134.666022 | AN86: 136.0126822 | AO86: 137.372809 | AP86: 138.7465371 | AQ86: 140.1340025 | AR86: =AR18 -> 141.5353425 | AS86: 142.9506959 | AT86: 144.3802029 | AU86: 145.8240049 | AV86: 147.282245 | AW86: 148.7550674 | AX86: 150.2426181 | AY86: 151.7450443 | AZ86: 153.2624947 | BA86: 154.7951196 | BB86: 156.3430708 | BC86: 157.9065016 | BD86: 159.4855666 | BE86: 161.0804222 | BF86: 162.6912265 | BG86: 164.3181387 | BH86: 165.9613201 | BI86: 167.6209333 | BJ86: 169.2971426 | BK86: 170.9901141 | BL86: 172.7000152 | BM86: 174.4270154 | BN86: 176.1712855 | BO86: 0 | BP86: 0 | BQ86: 0 | BR86: 0 | BS86: 0 | BT86: 0 | BU86: 0 | BV86: 0 | BW86: 0 | BX86: =BX18 -> 0 | BY86: 0 | BZ86: 0 | CA86: 0 | CB86: 0 | CC86: 0 | CD86: 0 | CE86: 0 | CF86: 0 | CG86: 0 | CH86: 0 | CI86: 0 | CJ86: 0 | CK86: 0 | CL86: 0 | CM86: 0 | CN86: 0 | CO86: 0 | CP86: 0 | CQ86: 0 | CR86: 0 | CS86: 0 | CT86: 0 | CU86: 0 | CV86: 0 | CW86: 0 | CX86: 0 | CY86: 0 | CZ86: 0 | DA86: 0 | DB86: 0 | DC86: 0 | DD86: 0 | DE86: 0 | DF86: 0
D87: EBITDA | L87: =L85-L86 -> 0 | M87: =M85-M86 -> 0 | N87: 0 | O87: 0 | P87: 0 | Q87: 0 | R87: 388 | S87: 688 | T87: 715.96 | U87: 793.8792 | V87: 891.756784 | W87: 899.5919197 | X87: 907.4837581 | Y87: 915.4324332 | Z87: 923.4380719 | AA87: 931.5007932 | AB87: 940.8158012 | AC87: 950.2239592 | AD87: 959.7261988 | AE87: 969.3234608 | AF87: 979.0166954 | AG87: 988.8068623 | AH87: 998.6949309 | AI87: 1008.68188 | AJ87: 1018.768699 | AK87: 1028.956386 | AL87: 1039.24595 | AM87: 1049.638409 | AN87: 1060.134794 | AO87: 1070.736141 | AP87: 1081.443503 | AQ87: 1092.257938 | AR87: 1103.180517 | AS87: 1114.212322 | AT87: 1125.354446 | AU87: 1136.60799 | AV87: 1147.97407 | AW87: 1159.453811 | AX87: 1171.048349 | AY87: 1182.758832 | AZ87: 1194.586421 | BA87: 1206.532285 | BB87: 1218.597608 | BC87: 1230.783584 | BD87: 1243.09142 | BE87: 1255.522334 | BF87: 1268.077557 | BG87: 1280.758333 | BH87: 1293.565916 | BI87: 1306.501575 | BJ87: 1319.566591 | BK87: 1332.762257 | BL87: 1346.089879 | BM87: 1359.550778 | BN87: 1373.146286 | BO87: 0 | BP87: 0 | BQ87: 0 | BR87: 0 | BS87: 0 | BT87: 0 | BU87: 0 | BV87: 0 | BW87: 0 | BX87: 0 | BY87: =BY85-BY86 -> 0 | BZ87: 0 | CA87: 0 | CB87: 0 | CC87: 0 | CD87: 0 | CE87: 0 | CF87: 0 | CG87: 0 | CH87: 0 | CI87: 0 | CJ87: 0 | CK87: 0 | CL87: 0 | CM87: 0 | CN87: 0 | CO87: 0 | CP87: 0 | CQ87: 0 | CR87: 0 | CS87: 0 | CT87: 0 | CU87: 0 | CV87: 0 | CW87: 0 | CX87: 0 | CY87: 0 | CZ87: 0 | DA87: 0 | DB87: 0 | DC87: 0 | DD87: 0 | DE87: 0 | DF87: 0
C88: Less: Depreciation | L88: =L77 -> 0 | M88: =M77 -> 0 | N88: 0 | O88: 0 | P88: 0 | Q88: 0 | R88: 78.70172248 | S88: 78.70172248 | T88: 78.70172248 | U88: 78.70172248 | V88: 78.70172248 | W88: 78.70172248 | X88: 78.70172248 | Y88: 78.70172248 | Z88: 78.70172248 | AA88: 78.70172248 | AB88: 78.70172248 | AC88: 78.70172248 | AD88: 78.70172248 | AE88: 78.70172248 | AF88: 78.70172248 | AG88: 78.70172248 | AH88: 78.70172248 | AI88: 78.70172248 | AJ88: 78.70172248 | AK88: 78.70172248 | AL88: 78.70172248 | AM88: 78.70172248 | AN88: 78.70172248 | AO88: 78.70172248 | AP88: 78.70172248 | AQ88: 78.70172248 | AR88: 78.70172248 | AS88: 78.70172248 | AT88: 78.70172248 | AU88: 78.70172248 | AV88: 78.70172248 | AW88: 78.70172248 | AX88: 78.70172248 | AY88: 78.70172248 | AZ88: 78.70172248 | BA88: 78.70172248 | BB88: 78.70172248 | BC88: 78.70172248 | BD88: 78.70172248 | BE88: 78.70172248 | BF88: 78.70172248 | BG88: 78.70172248 | BH88: 78.70172248 | BI88: 78.70172248 | BJ88: 78.70172248 | BK88: 78.70172248 | BL88: 78.70172248 | BM88: 78.70172248 | BN88: 78.70172248 | BO88: 0 | BP88: 0 | BQ88: 0 | BR88: 0 | BS88: 0 | BT88: 0 | BU88: 0 | BV88: 0 | BW88: 0 | BX88: 0 | BY88: =BY77 -> 0 | BZ88: 0 | CA88: 0 | CB88: 0 | CC88: 0 | CD88: 0 | CE88: 0 | CF88: 0 | CG88: 0 | CH88: 0 | CI88: 0 | CJ88: 0 | CK88: 0 | CL88: 0 | CM88: 0 | CN88: 0 | CO88: 0 | CP88: 0 | CQ88: 0 | CR88: 0 | CS88: 0 | CT88: 0 | CU88: 0 | CV88: 0 | CW88: 0 | CX88: 0 | CY88: 0 | CZ88: 0 | DA88: 0 | DB88: 0 | DC88: 0 | DD88: 0 | DE88: 0 | DF88: 0
D89: EBIT | L89: =L87-L88 -> 0 | M89: =M87-M88 -> 0 | N89: 0 | O89: 0 | P89: 0 | Q89: 0 | R89: 309.2982775 | S89: 609.2982775 | T89: 637.2582775 | U89: 715.1774775 | V89: 813.0550615 | W89: 820.8901972 | X89: 828.7820356 | Y89: 836.7307108 | Z89: 844.7363494 | AA89: 852.7990708 | AB89: 862.1140787 | AC89: 871.5222367 | AD89: 881.0244763 | AE89: 890.6217383 | AF89: 900.3149729 | AG89: 910.1051398 | AH89: 919.9932085 | AI89: 929.9801578 | AJ89: 940.0669766 | AK89: 950.2546636 | AL89: 960.5442274 | AM89: 970.9366869 | AN89: 981.433071 | AO89: 992.034419 | AP89: 1002.74178 | AQ89: 1013.556215 | AR89: 1024.478795 | AS89: 1035.5106 | AT89: 1046.652723 | AU89: 1057.906268 | AV89: 1069.272348 | AW89: 1080.752088 | AX89: 1092.346626 | AY89: 1104.05711 | AZ89: 1115.884698 | BA89: 1127.830562 | BB89: 1139.895885 | BC89: 1152.081861 | BD89: 1164.389697 | BE89: 1176.820611 | BF89: 1189.375835 | BG89: 1202.05661 | BH89: 1214.864194 | BI89: 1227.799853 | BJ89: 1240.864868 | BK89: 1254.060534 | BL89: 1267.388157 | BM89: 1280.849056 | BN89: 1294.444564 | BO89: 0 | BP89: 0 | BQ89: 0 | BR89: 0 | BS89: 0 | BT89: 0 | BU89: 0 | BV89: 0 | BW89: 0 | BX89: 0 | BY89: =BY87-BY88 -> 0 | BZ89: 0 | CA89: 0 | CB89: 0 | CC89: 0 | CD89: 0 | CE89: 0 | CF89: 0 | CG89: 0 | CH89: 0 | CI89: 0 | CJ89: 0 | CK89: 0 | CL89: 0 | CM89: 0 | CN89: 0 | CO89: 0 | CP89: 0 | CQ89: 0 | CR89: 0 | CS89: 0 | CT89: 0 | CU89: 0 | CV89: 0 | CW89: 0 | CX89: 0 | CY89: 0 | CZ89: 0 | DA89: 0 | DB89: 0 | DC89: 0 | DD89: 0 | DE89: 0 | DF89: 0
C90: Less: Interest | L90: =L60-L61 -> 0 | M90: =M60-M61 -> 0 | N90: 0 | O90: 0 | P90: 0 | Q90: 0 | R90: 249.1016315 | S90: 247.0071688 | T90: 244.7660936 | U90: 242.3681432 | V90: 239.8023362 | W90: 237.0569227 | X90: 234.1193304 | Y90: 230.9761065 | Z90: 227.612857 | AA90: 224.01418 | AB90: 220.1635956 | AC90: 216.0434703 | AD90: 211.6349362 | AE90: 206.9178048 | AF90: 201.8704741 | AG90: 196.4698303 | AH90: 190.6911415 | AI90: 184.5079444 | AJ90: 177.8919235 | AK90: 170.8127812 | AL90: 163.2380989 | AM90: 155.1331888 | AN90: 146.4609351 | AO90: 137.1816236 | AP90: 127.2527602 | AQ90: 116.6288765 | AR90: 105.2613208 | AS90: 93.0980363 | AT90: 80.08332186 | AU90: 66.15757741 | AV90: 51.25703085 | AW90: 35.31344602 | AX90: 18.25381026 | AY90: 0 | AZ90: 0 | BA90: 0 | BB90: 0 | BC90: 0 | BD90: 0 | BE90: 0 | BF90: 0 | BG90: 0 | BH90: 0 | BI90: 0 | BJ90: 0 | BK90: 0 | BL90: 0 | BM90: 0 | BN90: 0 | BO90: 0 | BP90: 0 | BQ90: 0 | BR90: 0 | BS90: 0 | BT90: 0 | BU90: 0 | BV90: 0 | BW90: 0 | BX90: 0 | BY90: =BY60-BY61 -> 0 | BZ90: 0 | CA90: 0 | CB90: 0 | CC90: 0 | CD90: 0 | CE90: 0 | CF90: 0 | CG90: 0 | CH90: 0 | CI90: 0 | CJ90: 0 | CK90: 0 | CL90: 0 | CM90: 0 | CN90: 0 | CO90: 0 | CP90: 0 | CQ90: 0 | CR90: 0 | CS90: 0 | CT90: 0 | CU90: 0 | CV90: 0 | CW90: 0 | CX90: 0 | CY90: 0 | CZ90: 0 | DA90: 0 | DB90: 0 | DC90: 0 | DD90: 0 | DE90: 0 | DF90: 0
D91: EBT | L91: =L89-L90 -> 0 | M91: =M89-M90 -> 0 | N91: 0 | O91: 0 | P91: 0 | Q91: 0 | R91: 60.19664599 | S91: 362.2911088 | T91: 392.4921839 | U91: 472.8093344 | V91: 573.2527253 | W91: 583.8332745 | X91: 594.6627052 | Y91: 605.7546043 | Z91: 617.1234925 | AA91: 628.7848908 | AB91: 641.9504831 | AC91: 655.4787664 | AD91: 669.3895401 | AE91: 683.7039335 | AF91: 698.4444988 | AG91: 713.6353095 | AH91: 729.302067 | AI91: 745.4722134 | AJ91: 762.175053 | AK91: 779.4418824 | AL91: 797.3061285 | AM91: 815.8034981 | AN91: 834.9721359 | AO91: 854.8527954 | AP91: 875.4890202 | AQ91: 896.9273389 | AR91: 919.217474 | AS91: 942.4125637 | AT91: 966.5694013 | AU91: 991.7486902 | AV91: 1018.015317 | AW91: 1045.438642 | AX91: 1074.092816 | AY91: 1104.05711 | AZ91: 1115.884698 | BA91: 1127.830562 | BB91: 1139.895885 | BC91: 1152.081861 | BD91: 1164.389697 | BE91: 1176.820611 | BF91: 1189.375835 | BG91: 1202.05661 | BH91: 1214.864194 | BI91: 1227.799853 | BJ91: 1240.864868 | BK91: 1254.060534 | BL91: 1267.388157 | BM91: 1280.849056 | BN91: 1294.444564 | BO91: 0 | BP91: 0 | BQ91: 0 | BR91: 0 | BS91: 0 | BT91: 0 | BU91: 0 | BV91: 0 | BW91: 0 | BX91: 0 | BY91: =BY89-BY90 -> 0 | BZ91: 0 | CA91: 0 | CB91: 0 | CC91: 0 | CD91: 0 | CE91: 0 | CF91: 0 | CG91: 0 | CH91: 0 | CI91: 0 | CJ91: 0 | CK91: 0 | CL91: 0 | CM91: 0 | CN91: 0 | CO91: 0 | CP91: 0 | CQ91: 0 | CR91: 0 | CS91: 0 | CT91: 0 | CU91: 0 | CV91: 0 | CW91: 0 | CX91: 0 | CY91: 0 | CZ91: 0 | DA91: 0 | DB91: 0 | DC91: 0 | DD91: 0 | DE91: 0 | DF91: 0
C92: Less: Taxes | L92: =MAX(L91*Inputs!L42,0) -> 0 | M92: =MAX(M91*Inputs!M42,0) -> 0 | N92: =MAX(N91*Inputs!N42,0) -> 0 | O92: =MAX(O91*Inputs!O42,0) -> 0 | P92: =MAX(P91*Inputs!P42,0) -> 0 | Q92: =MAX(Q91*Inputs!Q42,0) -> 0 | R92: =MAX(R91*Inputs!R42,0) -> 15.0491615 | S92: =MAX(S91*Inputs!S42,0) -> 90.57277719 | T92: =MAX(T91*Inputs!T42,0) -> 98.12304598 | U92: =MAX(U91*Inputs!U42,0) -> 118.2023336 | V92: =MAX(V91*Inputs!V42,0) -> 143.3131813 | W92: =MAX(W91*Inputs!W42,0) -> 145.9583186 | X92: =MAX(X91*Inputs!X42,0) -> 148.6656763 | Y92: =MAX(Y91*Inputs!Y42,0) -> 151.4386511 | Z92: =MAX(Z91*Inputs!Z42,0) -> 154.2808731 | AA92: =MAX(AA91*Inputs!AA42,0) -> 157.1962227 | AB92: =MAX(AB91*Inputs!AB42,0) -> 160.4876208 | AC92: =MAX(AC91*Inputs!AC42,0) -> 163.8696916 | AD92: =MAX(AD91*Inputs!AD42,0) -> 167.347385 | AE92: =MAX(AE91*Inputs!AE42,0) -> 170.9259834 | AF92: =MAX(AF91*Inputs!AF42,0) -> 174.6111247 | AG92: =MAX(AG91*Inputs!AG42,0) -> 178.4088274 | AH92: =MAX(AH91*Inputs!AH42,0) -> 182.3255167 | AI92: =MAX(AI91*Inputs!AI42,0) -> 186.3680533 | AJ92: =MAX(AJ91*Inputs!AJ42,0) -> 190.5437633 | AK92: =MAX(AK91*Inputs!AK42,0) -> 194.8604706 | AL92: =MAX(AL91*Inputs!AL42,0) -> 199.3265321 | AM92: =MAX(AM91*Inputs!AM42,0) -> 203.9508745 | AN92: =MAX(AN91*Inputs!AN42,0) -> 208.743034 | AO92: =MAX(AO91*Inputs!AO42,0) -> 213.7131989 | AP92: =MAX(AP91*Inputs!AP42,0) -> 218.872255 | AQ92: =MAX(AQ91*Inputs!AQ42,0) -> 224.2318347 | AR92: =MAX(AR91*Inputs!AR42,0) -> 229.8043685 | AS92: =MAX(AS91*Inputs!AS42,0) -> 235.6031409 | AT92: =MAX(AT91*Inputs!AT42,0) -> 241.6423503 | AU92: =MAX(AU91*Inputs!AU42,0) -> 247.9371726 | AV92: =MAX(AV91*Inputs!AV42,0) -> 254.5038292 | AW92: =MAX(AW91*Inputs!AW42,0) -> 261.3596606 | AX92: =MAX(AX91*Inputs!AX42,0) -> 268.523204 | AY92: =MAX(AY91*Inputs!AY42,0) -> 276.0142775 | AZ92: =MAX(AZ91*Inputs!AZ42,0) -> 278.9711745 | BA92: =MAX(BA91*Inputs!BA42,0) -> 281.9576406 | BB92: =MAX(BB91*Inputs!BB42,0) -> 284.9739713 | BC92: =MAX(BC91*Inputs!BC42,0) -> 288.0204653 | BD92: =MAX(BD91*Inputs!BD42,0) -> 291.0974243 | BE92: =MAX(BE91*Inputs!BE42,0) -> 294.2051528 | BF92: =MAX(BF91*Inputs!BF42,0) -> 297.3439587 | BG92: =MAX(BG91*Inputs!BG42,0) -> 300.5141526 | BH92: =MAX(BH91*Inputs!BH42,0) -> 303.7160484 | BI92: =MAX(BI91*Inputs!BI42,0) -> 306.9499632 | BJ92: =MAX(BJ91*Inputs!BJ42,0) -> 310.2162171 | BK92: =MAX(BK91*Inputs!BK42,0) -> 313.5151336 | BL92: =MAX(BL91*Inputs!BL42,0) -> 316.8470392 | BM92: =MAX(BM91*Inputs!BM42,0) -> 320.2122639 | BN92: =MAX(BN91*Inputs!BN42,0) -> 323.6111409 | BO92: =MAX(BO91*Inputs!BO42,0) -> 0 | BP92: =MAX(BP91*Inputs!BP42,0) -> 0 | BQ92: =MAX(BQ91*Inputs!BQ42,0) -> 0 | BR92: =MAX(BR91*Inputs!BR42,0) -> 0 | BS92: =MAX(BS91*Inputs!BS42,0) -> 0 | BT92: =MAX(BT91*Inputs!BT42,0) -> 0 | BU92: =MAX(BU91*Inputs!BU42,0) -> 0 | BV92: =MAX(BV91*Inputs!BV42,0) -> 0 | BW92: =MAX(BW91*Inputs!BW42,0) -> 0 | BX92: =MAX(BX91*Inputs!BX42,0) -> 0 | BY92: =MAX(BY91*Inputs!BY42,0) -> 0 | BZ92: =MAX(BZ91*Inputs!BZ42,0) -> 0 | CA92: =MAX(CA91*Inputs!CA42,0) -> 0 | CB92: =MAX(CB91*Inputs!CB42,0) -> 0 | CC92: =MAX(CC91*Inputs!CC42,0) -> 0 | CD92: =MAX(CD91*Inputs!CD42,0) -> 0 | CE92: =MAX(CE91*Inputs!CE42,0) -> 0 | CF92: =MAX(CF91*Inputs!CF42,0) -> 0 | CG92: =MAX(CG91*Inputs!CG42,0) -> 0 | CH92: =MAX(CH91*Inputs!CH42,0) -> 0 | CI92: =MAX(CI91*Inputs!CI42,0) -> 0 | CJ92: =MAX(CJ91*Inputs!CJ42,0) -> 0 | CK92: =MAX(CK91*Inputs!CK42,0) -> 0 | CL92: =MAX(CL91*Inputs!CL42,0) -> 0 | CM92: =MAX(CM91*Inputs!CM42,0) -> 0 | CN92: =MAX(CN91*Inputs!CN42,0) -> 0 | CO92: =MAX(CO91*Inputs!CO42,0) -> 0 | CP92: =MAX(CP91*Inputs!CP42,0) -> 0 | CQ92: =MAX(CQ91*Inputs!CQ42,0) -> 0 | CR92: =MAX(CR91*Inputs!CR42,0) -> 0 | CS92: =MAX(CS91*Inputs!CS42,0) -> 0 | CT92: =MAX(CT91*Inputs!CT42,0) -> 0 | CU92: =MAX(CU91*Inputs!CU42,0) -> 0 | CV92: =MAX(CV91*Inputs!CV42,0) -> 0 | CW92: =MAX(CW91*Inputs!CW42,0) -> 0 | CX92: =MAX(CX91*Inputs!CX42,0) -> 0 | CY92: =MAX(CY91*Inputs!CY42,0) -> 0 | CZ92: =MAX(CZ91*Inputs!CZ42,0) -> 0 | DA92: =MAX(DA91*Inputs!DA42,0) -> 0 | DB92: =MAX(DB91*Inputs!DB42,0) -> 0 | DC92: =MAX(DC91*Inputs!DC42,0) -> 0 | DD92: =MAX(DD91*Inputs!DD42,0) -> 0 | DE92: =MAX(DE91*Inputs!DE42,0) -> 0 | DF92: =MAX(DF91*Inputs!DF42,0) -> 0
D93: Earnings | L93: =L91-L92 -> 0 | M93: =M91-M92 -> 0 | N93: 0 | O93: 0 | P93: 0 | Q93: 0 | R93: 45.1474845 | S93: 271.7183316 | T93: 294.369138 | U93: 354.6070008 | V93: 429.939544 | W93: 437.8749558 | X93: 445.9970289 | Y93: 454.3159532 | Z93: 462.8426193 | AA93: 471.5886681 | AB93: 481.4628623 | AC93: 491.6090748 | AD93: 502.042155 | AE93: 512.7779501 | AF93: 523.8333741 | AG93: 535.2264821 | AH93: 546.9765502 | AI93: 559.10416 | AJ93: 571.6312898 | AK93: 584.5814118 | AL93: 597.9795964 | AM93: 611.8526236 | AN93: 626.229102 | AO93: 641.1395966 | AP93: 656.6167651 | AQ93: 672.6955042 | AR93: 689.4131055 | AS93: 706.8094227 | AT93: 724.927051 | AU93: 743.8115177 | AV93: 763.5114875 | AW93: 784.0789817 | AX93: 805.5696121 | AY93: 828.0428324 | AZ93: 836.9135236 | BA93: 845.8729218 | BB93: 854.9219139 | BC93: 864.061396 | BD93: 873.2922728 | BE93: 882.6154585 | BF93: 892.031876 | BG93: 901.5424577 | BH93: 911.1481452 | BI93: 920.8498895 | BJ93: 930.6486514 | BK93: 940.5454008 | BL93: 950.5411177 | BM93: 960.6367918 | BN93: 970.8334226 | BO93: 0 | BP93: 0 | BQ93: 0 | BR93: 0 | BS93: 0 | BT93: 0 | BU93: 0 | BV93: 0 | BW93: 0 | BX93: 0 | BY93: =BY91-BY92 -> 0 | BZ93: 0 | CA93: 0 | CB93: 0 | CC93: 0 | CD93: 0 | CE93: 0 | CF93: 0 | CG93: 0 | CH93: 0 | CI93: 0 | CJ93: 0 | CK93: 0 | CL93: 0 | CM93: 0 | CN93: 0 | CO93: 0 | CP93: 0 | CQ93: 0 | CR93: 0 | CS93: 0 | CT93: 0 | CU93: 0 | CV93: 0 | CW93: 0 | CX93: 0 | CY93: 0 | CZ93: 0 | DA93: 0 | DB93: 0 | DC93: 0 | DD93: 0 | DE93: 0 | DF93: 0
B95: Cash Flow
C96: EBITDA | L96: =L87 -> 0 | M96: =M87 -> 0 | N96: 0 | O96: 0 | P96: 0 | Q96: 0 | R96: 388 | S96: 688 | T96: 715.96 | U96: 793.8792 | V96: 891.756784 | W96: 899.5919197 | X96: 907.4837581 | Y96: 915.4324332 | Z96: 923.4380719 | AA96: 931.5007932 | AB96: 940.8158012 | AC96: 950.2239592 | AD96: 959.7261988 | AE96: 969.3234608 | AF96: 979.0166954 | AG96: 988.8068623 | AH96: 998.6949309 | AI96: 1008.68188 | AJ96: 1018.768699 | AK96: 1028.956386 | AL96: 1039.24595 | AM96: 1049.638409 | AN96: 1060.134794 | AO96: 1070.736141 | AP96: 1081.443503 | AQ96: 1092.257938 | AR96: 1103.180517 | AS96: 1114.212322 | AT96: 1125.354446 | AU96: 1136.60799 | AV96: 1147.97407 | AW96: 1159.453811 | AX96: 1171.048349 | AY96: 1182.758832 | AZ96: 1194.586421 | BA96: 1206.532285 | BB96: 1218.597608 | BC96: 1230.783584 | BD96: 1243.09142 | BE96: 1255.522334 | BF96: 1268.077557 | BG96: 1280.758333 | BH96: 1293.565916 | BI96: 1306.501575 | BJ96: 1319.566591 | BK96: 1332.762257 | BL96: 1346.089879 | BM96: 1359.550778 | BN96: 1373.146286 | BO96: 0 | BP96: 0 | BQ96: 0 | BR96: 0 | BS96: 0 | BT96: 0 | BU96: 0 | BV96: 0 | BW96: 0 | BX96: 0 | BY96: =BY87 -> 0 | BZ96: 0 | CA96: 0 | CB96: 0 | CC96: 0 | CD96: 0 | CE96: 0 | CF96: 0 | CG96: 0 | CH96: 0 | CI96: 0 | CJ96: 0 | CK96: 0 | CL96: 0 | CM96: 0 | CN96: 0 | CO96: 0 | CP96: 0 | CQ96: 0 | CR96: 0 | CS96: 0 | CT96: 0 | CU96: 0 | CV96: 0 | CW96: 0 | CX96: 0 | CY96: 0 | CZ96: 0 | DA96: 0 | DB96: 0 | DC96: 0 | DD96: 0 | DE96: 0 | DF96: 0
C97: Less: Taxes | L97: =L92 -> 0 | M97: =M92 -> 0 | N97: 0 | O97: 0 | P97: 0 | Q97: 0 | R97: 15.0491615 | S97: 90.57277719 | T97: 98.12304598 | U97: 118.2023336 | V97: 143.3131813 | W97: 145.9583186 | X97: 148.6656763 | Y97: 151.4386511 | Z97: 154.2808731 | AA97: 157.1962227 | AB97: 160.4876208 | AC97: 163.8696916 | AD97: 167.347385 | AE97: 170.9259834 | AF97: 174.6111247 | AG97: 178.4088274 | AH97: 182.3255167 | AI97: 186.3680533 | AJ97: 190.5437633 | AK97: 194.8604706 | AL97: 199.3265321 | AM97: 203.9508745 | AN97: 208.743034 | AO97: 213.7131989 | AP97: 218.872255 | AQ97: 224.2318347 | AR97: 229.8043685 | AS97: 235.6031409 | AT97: 241.6423503 | AU97: 247.9371726 | AV97: 254.5038292 | AW97: 261.3596606 | AX97: 268.523204 | AY97: 276.0142775 | AZ97: 278.9711745 | BA97: 281.9576406 | BB97: 284.9739713 | BC97: 288.0204653 | BD97: 291.0974243 | BE97: 294.2051528 | BF97: 297.3439587 | BG97: 300.5141526 | BH97: 303.7160484 | BI97: 306.9499632 | BJ97: 310.2162171 | BK97: 313.5151336 | BL97: 316.8470392 | BM97: 320.2122639 | BN97: 323.6111409 | BO97: 0 | BP97: 0 | BQ97: 0 | BR97: 0 | BS97: 0 | BT97: 0 | BU97: 0 | BV97: 0 | BW97: 0 | BX97: 0 | BY97: =BY92 -> 0 | BZ97: 0 | CA97: 0 | CB97: 0 | CC97: 0 | CD97: 0 | CE97: 0 | CF97: 0 | CG97: 0 | CH97: 0 | CI97: 0 | CJ97: 0 | CK97: 0 | CL97: 0 | CM97: 0 | CN97: 0 | CO97: 0 | CP97: 0 | CQ97: 0 | CR97: 0 | CS97: 0 | CT97: 0 | CU97: 0 | CV97: 0 | CW97: 0 | CX97: 0 | CY97: 0 | CZ97: 0 | DA97: 0 | DB97: 0 | DC97: 0 | DD97: 0 | DE97: 0 | DF97: 0
C98: Less: WC Change | L98: =L24 -> 387.9 | M98: =M24 -> -387.9 | N98: 0 | O98: 0 | P98: 0 | Q98: 0 | R98: 0 | S98: 0 | T98: 0 | U98: 0 | V98: 0 | W98: 0 | X98: 0 | Y98: 0 | Z98: 0 | AA98: 0 | AB98: 0 | AC98: 0 | AD98: 0 | AE98: 0 | AF98: 0 | AG98: 0 | AH98: 0 | AI98: 0 | AJ98: 0 | AK98: 0 | AL98: 0 | AM98: 0 | AN98: 0 | AO98: 0 | AP98: 0 | AQ98: 0 | AR98: 0 | AS98: 0 | AT98: 0 | AU98: 0 | AV98: 0 | AW98: 0 | AX98: 0 | AY98: 0 | AZ98: 0 | BA98: 0 | BB98: 0 | BC98: 0 | BD98: 0 | BE98: 0 | BF98: 0 | BG98: 0 | BH98: 0 | BI98: 0 | BJ98: 0 | BK98: 0 | BL98: 0 | BM98: 0 | BN98: 0 | BO98: 0 | BP98: 0 | BQ98: 0 | BR98: 0 | BS98: 0 | BT98: 0 | BU98: 0 | BV98: 0 | BW98: 0 | BX98: 0 | BY98: =BY24 -> 0 | BZ98: 0 | CA98: 0 | CB98: 0 | CC98: 0 | CD98: 0 | CE98: 0 | CF98: 0 | CG98: 0 | CH98: 0 | CI98: 0 | CJ98: 0 | CK98: 0 | CL98: 0 | CM98: 0 | CN98: 0 | CO98: 0 | CP98: 0 | CQ98: 0 | CR98: 0 | CS98: 0 | CT98: 0 | CU98: 0 | CV98: 0 | CW98: 0 | CX98: 0 | CY98: 0 | CZ98: 0 | DA98: 0 | DB98: 0 | DC98: 0 | DD98: 0 | DE98: 0 | DF98: 0
C99: Operating Cash Flow | L99: =L96-L97-L98 -> -387.9 | M99: =M96-M97-M98 -> 387.9 | N99: 0 | O99: 0 | P99: 0 | Q99: 0 | R99: 372.9508385 | S99: 597.4272228 | T99: 617.836954 | U99: 675.6768664 | V99: 748.4436027 | W99: 753.6336011 | X99: 758.8180818 | Y99: 763.9937822 | Z99: 769.1571988 | AA99: 774.3045705 | AB99: 780.3281804 | AC99: 786.3542676 | AD99: 792.3788138 | AE99: 798.3974774 | AF99: 804.4055707 | AG99: 810.3980349 | AH99: 816.3694142 | AI99: 822.3138269 | AJ99: 828.2249358 | AK99: 834.0959155 | AL99: 839.9194178 | AM99: 845.6875349 | AN99: 851.3917595 | AO99: 857.0229426 | AP99: 862.5712478 | AQ99: 868.0261031 | AR99: 873.3761488 | AS99: 878.6091815 | AT99: 883.7120953 | AU99: 888.6708176 | AV99: 893.4702408 | AW99: 898.0941502 | AX99: 902.5251448 | AY99: 906.7445549 | AZ99: 915.6152461 | BA99: 924.5746442 | BB99: 933.6236364 | BC99: 942.7631184 | BD99: 951.9939953 | BE99: 961.317181 | BF99: 970.7335985 | BG99: 980.2441801 | BH99: 989.8498676 | BI99: 999.551612 | BJ99: 1009.350374 | BK99: 1019.247123 | BL99: 1029.24284 | BM99: 1039.338514 | BN99: 1049.535145 | BO99: 0 | BP99: 0 | BQ99: 0 | BR99: 0 | BS99: 0 | BT99: 0 | BU99: 0 | BV99: 0 | BW99: 0 | BX99: 0 | BY99: =BY96-BY97-BY98 -> 0 | BZ99: 0 | CA99: 0 | CB99: 0 | CC99: 0 | CD99: 0 | CE99: 0 | CF99: 0 | CG99: 0 | CH99: 0 | CI99: 0 | CJ99: 0 | CK99: 0 | CL99: 0 | CM99: 0 | CN99: 0 | CO99: 0 | CP99: 0 | CQ99: 0 | CR99: 0 | CS99: 0 | CT99: 0 | CU99: 0 | CV99: 0 | CW99: 0 | CX99: 0 | CY99: 0 | CZ99: 0 | DA99: 0 | DB99: 0 | DC99: 0 | DD99: 0 | DE99: 0 | DF99: 0
C100: Less: Capital Expenditures | L100: =L72 -> 382.1 | M100: =M72 -> 811.9625 | N100: 811.9625 | O100: 811.9625 | P100: 811.9625 | Q100: 191.05 | R100: 0 | S100: 0 | T100: 0 | U100: 0 | V100: 0 | W100: 0 | X100: 0 | Y100: 0 | Z100: 0 | AA100: 0 | AB100: 0 | AC100: 0 | AD100: 0 | AE100: 0 | AF100: 0 | AG100: 0 | AH100: 0 | AI100: 0 | AJ100: 0 | AK100: 0 | AL100: 0 | AM100: 0 | AN100: 0 | AO100: 0 | AP100: 0 | AQ100: 0 | AR100: 0 | AS100: 0 | AT100: 0 | AU100: 0 | AV100: 0 | AW100: 0 | AX100: 0 | AY100: 0 | AZ100: 0 | BA100: 0 | BB100: 0 | BC100: 0 | BD100: 0 | BE100: 0 | BF100: 0 | BG100: 0 | BH100: 0 | BI100: 0 | BJ100: 0 | BK100: 0 | BL100: 0 | BM100: 0 | BN100: 0 | BO100: 0 | BP100: 0 | BQ100: 0 | BR100: 0 | BS100: 0 | BT100: 0 | BU100: 0 | BV100: 0 | BW100: 0 | BX100: 0 | BY100: =BY72 -> 0 | BZ100: 0 | CA100: 0 | CB100: 0 | CC100: 0 | CD100: 0 | CE100: 0 | CF100: 0 | CG100: 0 | CH100: 0 | CI100: 0 | CJ100: 0 | CK100: 0 | CL100: 0 | CM100: 0 | CN100: 0 | CO100: 0 | CP100: 0 | CQ100: 0 | CR100: 0 | CS100: 0 | CT100: 0 | CU100: 0 | CV100: 0 | CW100: 0 | CX100: 0 | CY100: 0 | CZ100: 0 | DA100: 0 | DB100: 0 | DC100: 0 | DD100: 0 | DE100: 0 | DF100: 0
C101: Less: Interest During Construction | L101: =L73 -> 0 | M101: =M73 -> 0 | N101: 30.74453125 | O101: 91.84079102 | P101: 157.3665296 | Q101: 227.6428843 | R101: 0 | S101: 0 | T101: 0 | U101: 0 | V101: 0 | W101: 0 | X101: 0 | Y101: 0 | Z101: 0 | AA101: 0 | AB101: 0 | AC101: 0 | AD101: 0 | AE101: 0 | AF101: 0 | AG101: 0 | AH101: 0 | AI101: 0 | AJ101: 0 | AK101: 0 | AL101: 0 | AM101: 0 | AN101: 0 | AO101: 0 | AP101: 0 | AQ101: 0 | AR101: 0 | AS101: 0 | AT101: 0 | AU101: 0 | AV101: 0 | AW101: 0 | AX101: 0 | AY101: 0 | AZ101: 0 | BA101: 0 | BB101: 0 | BC101: 0 | BD101: 0 | BE101: 0 | BF101: 0 | BG101: 0 | BH101: 0 | BI101: 0 | BJ101: 0 | BK101: 0 | BL101: 0 | BM101: 0 | BN101: 0 | BO101: 0 | BP101: 0 | BQ101: 0 | BR101: 0 | BS101: 0 | BT101: 0 | BU101: 0 | BV101: 0 | BW101: 0 | BX101: 0 | BY101: =BY73 -> 0 | BZ101: 0 | CA101: 0 | CB101: 0 | CC101: 0 | CD101: 0 | CE101: 0 | CF101: 0 | CG101: 0 | CH101: 0 | CI101: 0 | CJ101: 0 | CK101: 0 | CL101: 0 | CM101: 0 | CN101: 0 | CO101: 0 | CP101: 0 | CQ101: 0 | CR101: 0 | CS101: 0 | CT101: 0 | CU101: 0 | CV101: 0 | CW101: 0 | CX101: 0 | CY101: 0 | CZ101: 0 | DA101: 0 | DB101: 0 | DC101: 0 | DD101: 0 | DE101: 0 | DF101: 0
C102: Add: Equity Issues | L102: =L30 -> 770 | M102: =M30 -> 0 | N102: 0 | O102: 0 | P102: 0 | Q102: 0 | R102: 0 | S102: 0 | T102: 0 | U102: 0 | V102: 0 | W102: 0 | X102: 0 | Y102: 0 | Z102: 0 | AA102: 0 | AB102: 0 | AC102: 0 | AD102: 0 | AE102: 0 | AF102: 0 | AG102: 0 | AH102: 0 | AI102: 0 | AJ102: 0 | AK102: 0 | AL102: 0 | AM102: 0 | AN102: 0 | AO102: 0 | AP102: 0 | AQ102: 0 | AR102: 0 | AS102: 0 | AT102: 0 | AU102: 0 | AV102: 0 | AW102: 0 | AX102: 0 | AY102: 0 | AZ102: 0 | BA102: 0 | BB102: 0 | BC102: 0 | BD102: 0 | BE102: 0 | BF102: 0 | BG102: 0 | BH102: 0 | BI102: 0 | BJ102: 0 | BK102: 0 | BL102: 0 | BM102: 0 | BN102: 0 | BO102: 0 | BP102: 0 | BQ102: 0 | BR102: 0 | BS102: 0 | BT102: 0 | BU102: 0 | BV102: 0 | BW102: 0 | BX102: 0 | BY102: =BY30 -> 0 | BZ102: 0 | CA102: 0 | CB102: 0 | CC102: 0 | CD102: 0 | CE102: 0 | CF102: 0 | CG102: 0 | CH102: 0 | CI102: 0 | CJ102: 0 | CK102: 0 | CL102: 0 | CM102: 0 | CN102: 0 | CO102: 0 | CP102: 0 | CQ102: 0 | CR102: 0 | CS102: 0 | CT102: 0 | CU102: 0 | CV102: 0 | CW102: 0 | CX102: 0 | CY102: 0 | CZ102: 0 | DA102: 0 | DB102: 0 | DC102: 0 | DD102: 0 | DE102: 0 | DF102: 0
C103: Add: Debt Issues | L103: =L27 -> 0 | M103: =M27 -> 424.0625 | N103: 842.7070312 | O103: 903.803291 | P103: 969.3290296 | Q103: 418.6928843 | R103: 0 | S103: 0 | T103: 0 | U103: 0 | V103: 0 | W103: 0 | X103: 0 | Y103: 0 | Z103: 0 | AA103: 0 | AB103: 0 | AC103: 0 | AD103: 0 | AE103: 0 | AF103: 0 | AG103: 0 | AH103: 0 | AI103: 0 | AJ103: 0 | AK103: 0 | AL103: 0 | AM103: 0 | AN103: 0 | AO103: 0 | AP103: 0 | AQ103: 0 | AR103: 0 | AS103: 0 | AT103: 0 | AU103: 0 | AV103: 0 | AW103: 0 | AX103: 0 | AY103: 0 | AZ103: 0 | BA103: 0 | BB103: 0 | BC103: 0 | BD103: 0 | BE103: 0 | BF103: 0 | BG103: 0 | BH103: 0 | BI103: 0 | BJ103: 0 | BK103: 0 | BL103: 0 | BM103: 0 | BN103: 0 | BO103: 0 | BP103: 0 | BQ103: 0 | BR103: 0 | BS103: 0 | BT103: 0 | BU103: 0 | BV103: 0 | BW103: 0 | BX103: 0 | BY103: =BY27 -> 0 | BZ103: 0 | CA103: 0 | CB103: 0 | CC103: 0 | CD103: 0 | CE103: 0 | CF103: 0 | CG103: 0 | CH103: 0 | CI103: 0 | CJ103: 0 | CK103: 0 | CL103: 0 | CM103: 0 | CN103: 0 | CO103: 0 | CP103: 0 | CQ103: 0 | CR103: 0 | CS103: 0 | CT103: 0 | CU103: 0 | CV103: 0 | CW103: 0 | CX103: 0 | CY103: 0 | CZ103: 0 | DA103: 0 | DB103: 0 | DC103: 0 | DD103: 0 | DE103: 0 | DF103: 0
C104: Cash Before Interest | L104: =L99-L100-L101+L102+L103 -> 0 | M104: =M99-M100-M101+M102+M103 -> 0 | N104: 0 | O104: 0 | P104: 0 | Q104: 0 | R104: 372.9508385 | S104: 597.4272228 | T104: 617.836954 | U104: 675.6768664 | V104: 748.4436027 | W104: 753.6336011 | X104: 758.8180818 | Y104: 763.9937822 | Z104: 769.1571988 | AA104: 774.3045705 | AB104: 780.3281804 | AC104: 786.3542676 | AD104: 792.3788138 | AE104: 798.3974774 | AF104: 804.4055707 | AG104: 810.3980349 | AH104: 816.3694142 | AI104: 822.3138269 | AJ104: 828.2249358 | AK104: 834.0959155 | AL104: 839.9194178 | AM104: 845.6875349 | AN104: 851.3917595 | AO104: 857.0229426 | AP104: 862.5712478 | AQ104: 868.0261031 | AR104: 873.3761488 | AS104: 878.6091815 | AT104: 883.7120953 | AU104: 888.6708176 | AV104: 893.4702408 | AW104: 898.0941502 | AX104: 902.5251448 | AY104: 906.7445549 | AZ104: 915.6152461 | BA104: 924.5746442 | BB104: 933.6236364 | BC104: 942.7631184 | BD104: 951.9939953 | BE104: 961.317181 | BF104: 970.7335985 | BG104: 980.2441801 | BH104: 989.8498676 | BI104: 999.551612 | BJ104: 1009.350374 | BK104: 1019.247123 | BL104: 1029.24284 | BM104: 1039.338514 | BN104: 1049.535145 | BO104: 0 | BP104: 0 | BQ104: 0 | BR104: 0 | BS104: 0 | BT104: 0 | BU104: 0 | BV104: 0 | BW104: 0 | BX104: 0 | BY104: =BY99-BY100-BY101+BY102+BY103 -> 0 | BZ104: 0 | CA104: 0 | CB104: 0 | CC104: 0 | CD104: 0 | CE104: 0 | CF104: 0 | CG104: 0 | CH104: 0 | CI104: 0 | CJ104: 0 | CK104: 0 | CL104: 0 | CM104: 0 | CN104: 0 | CO104: 0 | CP104: 0 | CQ104: 0 | CR104: 0 | CS104: 0 | CT104: 0 | CU104: 0 | CV104: 0 | CW104: 0 | CX104: 0 | CY104: 0 | CZ104: 0 | DA104: 0 | DB104: 0 | DC104: 0 | DD104: 0 | DE104: 0 | DF104: 0
C105: Less: Repayment of Default | L105: =L51 -> 0 | M105: 0 | N105: 0 | O105: 0 | P105: 0 | Q105: 0 | R105: 0 | S105: 0 | T105: 0 | U105: 0 | V105: 0 | W105: 0 | X105: 0 | Y105: 0 | Z105: 0 | AA105: 0 | AB105: 0 | AC105: 0 | AD105: 0 | AE105: 0 | AF105: 0 | AG105: 0 | AH105: 0 | AI105: 0 | AJ105: 0 | AK105: 0 | AL105: 0 | AM105: 0 | AN105: 0 | AO105: 0 | AP105: 0 | AQ105: 0 | AR105: =AR51 -> 0 | AS105: 0 | AT105: 0 | AU105: 0 | AV105: 0 | AW105: 0 | AX105: 0 | AY105: 0 | AZ105: 0 | BA105: 0 | BB105: 0 | BC105: 0 | BD105: 0 | BE105: 0 | BF105: 0 | BG105: 0 | BH105: 0 | BI105: 0 | BJ105: 0 | BK105: 0 | BL105: 0 | BM105: 0 | BN105: 0 | BO105: 0 | BP105: 0 | BQ105: 0 | BR105: 0 | BS105: 0 | BT105: 0 | BU105: 0 | BV105: 0 | BW105: 0 | BX105: =BX51 -> 0 | BY105: 0 | BZ105: 0 | CA105: 0 | CB105: 0 | CC105: 0 | CD105: 0 | CE105: 0 | CF105: 0 | CG105: 0 | CH105: 0 | CI105: 0 | CJ105: 0 | CK105: 0 | CL105: 0 | CM105: 0 | CN105: 0 | CO105: 0 | CP105: 0 | CQ105: 0 | CR105: 0 | CS105: 0 | CT105: 0 | CU105: 0 | CV105: 0 | CW105: 0 | CX105: 0 | CY105: 0 | CZ105: 0 | DA105: 0 | DB105: 0 | DC105: 0 | DD105: 0 | DE105: 0 | DF105: 0
C106: Less: Interest Expense | L106: =L90 -> 0 | M106: =M90 -> 0 | N106: 0 | O106: 0 | P106: 0 | Q106: 0 | R106: 249.1016315 | S106: 247.0071688 | T106: 244.7660936 | U106: 242.3681432 | V106: 239.8023362 | W106: 237.0569227 | X106: 234.1193304 | Y106: 230.9761065 | Z106: 227.612857 | AA106: 224.01418 | AB106: 220.1635956 | AC106: 216.0434703 | AD106: 211.6349362 | AE106: 206.9178048 | AF106: 201.8704741 | AG106: 196.4698303 | AH106: 190.6911415 | AI106: 184.5079444 | AJ106: 177.8919235 | AK106: 170.8127812 | AL106: 163.2380989 | AM106: 155.1331888 | AN106: 146.4609351 | AO106: 137.1816236 | AP106: 127.2527602 | AQ106: 116.6288765 | AR106: 105.2613208 | AS106: 93.0980363 | AT106: 80.08332186 | AU106: 66.15757741 | AV106: 51.25703085 | AW106: 35.31344602 | AX106: 18.25381026 | AY106: 0 | AZ106: 0 | BA106: 0 | BB106: 0 | BC106: 0 | BD106: 0 | BE106: 0 | BF106: 0 | BG106: 0 | BH106: 0 | BI106: 0 | BJ106: 0 | BK106: 0 | BL106: 0 | BM106: 0 | BN106: 0 | BO106: 0 | BP106: 0 | BQ106: 0 | BR106: 0 | BS106: 0 | BT106: 0 | BU106: 0 | BV106: 0 | BW106: 0 | BX106: 0 | BY106: =BY90 -> 0 | BZ106: 0 | CA106: 0 | CB106: 0 | CC106: 0 | CD106: 0 | CE106: 0 | CF106: 0 | CG106: 0 | CH106: 0 | CI106: 0 | CJ106: 0 | CK106: 0 | CL106: 0 | CM106: 0 | CN106: 0 | CO106: 0 | CP106: 0 | CQ106: 0 | CR106: 0 | CS106: 0 | CT106: 0 | CU106: 0 | CV106: 0 | CW106: 0 | CX106: 0 | CY106: 0 | CZ106: 0 | DA106: 0 | DB106: 0 | DC106: 0 | DD106: 0 | DE106: 0 | DF106: 0
C107: Less: Repayment of Debt | L107: =L46 -> 0 | M107: 0 | N107: 0 | O107: 0 | P107: 0 | Q107: 0 | R107: 29.92089679 | S107: 32.01535957 | T107: 34.25643474 | U107: 36.65438517 | V107: 39.22019213 | W107: 41.96560558 | X107: 44.90319797 | Y107: 48.04642183 | Z107: 51.40967135 | AA107: 55.00834835 | AB107: 58.85893273 | AC107: 62.97905802 | AD107: 67.38759209 | AE107: 72.10472353 | AF107: 77.15205418 | AG107: 82.55269797 | AH107: 88.33138683 | AI107: 94.51458391 | AJ107: 101.1306048 | AK107: 108.2097471 | AL107: 115.7844294 | AM107: 123.8893395 | AN107: 132.5615932 | AO107: 141.8409048 | AP107: 151.7697681 | AQ107: 162.3936519 | AR107: =AR46 -> 173.7612075 | AS107: 185.924492 | AT107: 198.9392065 | AU107: 212.8649509 | AV107: 227.7654975 | AW107: 243.7090823 | AX107: 260.7687181 | AY107: 0 | AZ107: 0 | BA107: 0 | BB107: 0 | BC107: 0 | BD107: 0 | BE107: 0 | BF107: 0 | BG107: 0 | BH107: 0 | BI107: 0 | BJ107: 0 | BK107: 0 | BL107: 0 | BM107: 0 | BN107: 0 | BO107: 0 | BP107: 0 | BQ107: 0 | BR107: 0 | BS107: 0 | BT107: 0 | BU107: 0 | BV107: 0 | BW107: 0 | BX107: =BX46 -> 0 | BY107: 0 | BZ107: 0 | CA107: 0 | CB107: 0 | CC107: 0 | CD107: 0 | CE107: 0 | CF107: 0 | CG107: 0 | CH107: 0 | CI107: 0 | CJ107: 0 | CK107: 0 | CL107: 0 | CM107: 0 | CN107: 0 | CO107: 0 | CP107: 0 | CQ107: 0 | CR107: 0 | CS107: 0 | CT107: 0 | CU107: 0 | CV107: 0 | CW107: 0 | CX107: 0 | CY107: 0 | CZ107: 0 | DA107: 0 | DB107: 0 | DC107: 0 | DD107: 0 | DE107: 0 | DF107: 0
C108: Cash After Interest | L108: =L104-L106-L107-L105 -> 0 | M108: =M104-M106-M107-M105 -> 0 | N108: 0 | O108: 0 | P108: 0 | Q108: 0 | R108: 93.92831018 | S108: 318.4046945 | T108: 338.8144257 | U108: 396.6543381 | V108: 469.4210743 | W108: 474.6110727 | X108: 479.7955534 | Y108: 484.9712538 | Z108: 490.1346705 | AA108: 495.2820422 | AB108: 501.3056521 | AC108: 507.3317393 | AD108: 513.3562854 | AE108: 519.3749491 | AF108: 525.3830424 | AG108: 531.3755066 | AH108: 537.3468859 | AI108: 543.2912986 | AJ108: 549.2024075 | AK108: 555.0733871 | AL108: 560.8968895 | AM108: 566.6650066 | AN108: 572.3692312 | AO108: 578.0004143 | AP108: 583.5487195 | AQ108: 589.0035748 | AR108: 594.3536205 | AS108: 599.5866532 | AT108: 604.689567 | AU108: 609.6482892 | AV108: 614.4477125 | AW108: 619.0716218 | AX108: 623.5026165 | AY108: 906.7445549 | AZ108: 915.6152461 | BA108: 924.5746442 | BB108: 933.6236364 | BC108: 942.7631184 | BD108: 951.9939953 | BE108: 961.317181 | BF108: 970.7335985 | BG108: 980.2441801 | BH108: 989.8498676 | BI108: 999.551612 | BJ108: 1009.350374 | BK108: 1019.247123 | BL108: 1029.24284 | BM108: 1039.338514 | BN108: 1049.535145 | BO108: 0 | BP108: 0 | BQ108: 0 | BR108: 0 | BS108: 0 | BT108: 0 | BU108: 0 | BV108: 0 | BW108: 0 | BX108: 0 | BY108: =BY104-BY106-BY107-BY105 -> 0 | BZ108: 0 | CA108: 0 | CB108: 0 | CC108: 0 | CD108: 0 | CE108: 0 | CF108: 0 | CG108: 0 | CH108: 0 | CI108: 0 | CJ108: 0 | CK108: 0 | CL108: 0 | CM108: 0 | CN108: 0 | CO108: 0 | CP108: 0 | CQ108: 0 | CR108: 0 | CS108: 0 | CT108: 0 | CU108: 0 | CV108: 0 | CW108: 0 | CX108: 0 | CY108: 0 | CZ108: 0 | DA108: 0 | DB108: 0 | DC108: 0 | DD108: 0 | DE108: 0 | DF108: 0
C109: Add: Default on Debt | L109: =MAX(-L108,0) -> 0 | M109: =MAX(-M108,0) -> 0 | N109: 0 | O109: 0 | P109: 0 | Q109: 0 | R109: 0 | S109: 0 | T109: 0 | U109: 0 | V109: 0 | W109: 0 | X109: 0 | Y109: 0 | Z109: 0 | AA109: 0 | AB109: 0 | AC109: 0 | AD109: 0 | AE109: 0 | AF109: 0 | AG109: 0 | AH109: 0 | AI109: 0 | AJ109: 0 | AK109: 0 | AL109: 0 | AM109: 0 | AN109: 0 | AO109: 0 | AP109: 0 | AQ109: 0 | AR109: 0 | AS109: 0 | AT109: 0 | AU109: 0 | AV109: 0 | AW109: 0 | AX109: 0 | AY109: 0 | AZ109: 0 | BA109: 0 | BB109: 0 | BC109: 0 | BD109: 0 | BE109: 0 | BF109: 0 | BG109: 0 | BH109: 0 | BI109: 0 | BJ109: 0 | BK109: 0 | BL109: 0 | BM109: 0 | BN109: 0 | BO109: 0 | BP109: 0 | BQ109: 0 | BR109: 0 | BS109: 0 | BT109: 0 | BU109: 0 | BV109: 0 | BW109: 0 | BX109: 0 | BY109: =MAX(-BY108,0) -> 0 | BZ109: 0 | CA109: 0 | CB109: 0 | CC109: 0 | CD109: 0 | CE109: 0 | CF109: 0 | CG109: 0 | CH109: 0 | CI109: 0 | CJ109: 0 | CK109: 0 | CL109: 0 | CM109: 0 | CN109: 0 | CO109: 0 | CP109: 0 | CQ109: 0 | CR109: 0 | CS109: 0 | CT109: 0 | CU109: 0 | CV109: 0 | CW109: 0 | CX109: 0 | CY109: 0 | CZ109: 0 | DA109: 0 | DB109: 0 | DC109: 0 | DD109: 0 | DE109: 0 | DF109: 0
C110: Cash After Default | L110: =L108+L109 -> 0 | M110: =M108+M109 -> 0 | N110: 0 | O110: 0 | P110: 0 | Q110: 0 | R110: 93.92831018 | S110: 318.4046945 | T110: 338.8144257 | U110: 396.6543381 | V110: 469.4210743 | W110: 474.6110727 | X110: 479.7955534 | Y110: 484.9712538 | Z110: 490.1346705 | AA110: 495.2820422 | AB110: 501.3056521 | AC110: 507.3317393 | AD110: 513.3562854 | AE110: 519.3749491 | AF110: 525.3830424 | AG110: 531.3755066 | AH110: 537.3468859 | AI110: 543.2912986 | AJ110: 549.2024075 | AK110: 555.0733871 | AL110: 560.8968895 | AM110: 566.6650066 | AN110: 572.3692312 | AO110: 578.0004143 | AP110: 583.5487195 | AQ110: 589.0035748 | AR110: 594.3536205 | AS110: 599.5866532 | AT110: 604.689567 | AU110: 609.6482892 | AV110: 614.4477125 | AW110: 619.0716218 | AX110: 623.5026165 | AY110: 906.7445549 | AZ110: 915.6152461 | BA110: 924.5746442 | BB110: 933.6236364 | BC110: 942.7631184 | BD110: 951.9939953 | BE110: 961.317181 | BF110: 970.7335985 | BG110: 980.2441801 | BH110: 989.8498676 | BI110: 999.551612 | BJ110: 1009.350374 | BK110: 1019.247123 | BL110: 1029.24284 | BM110: 1039.338514 | BN110: 1049.535145 | BO110: 0 | BP110: 0 | BQ110: 0 | BR110: 0 | BS110: 0 | BT110: 0 | BU110: 0 | BV110: 0 | BW110: 0 | BX110: 0 | BY110: =BY108+BY109 -> 0 | BZ110: 0 | CA110: 0 | CB110: 0 | CC110: 0 | CD110: 0 | CE110: 0 | CF110: 0 | CG110: 0 | CH110: 0 | CI110: 0 | CJ110: 0 | CK110: 0 | CL110: 0 | CM110: 0 | CN110: 0 | CO110: 0 | CP110: 0 | CQ110: 0 | CR110: 0 | CS110: 0 | CT110: 0 | CU110: 0 | CV110: 0 | CW110: 0 | CX110: 0 | CY110: 0 | CZ110: 0 | DA110: 0 | DB110: 0 | DC110: 0 | DD110: 0 | DE110: 0 | DF110: 0
C111: Cash to Equity | L111: =L110 -> 0 | M111: =M110 -> 0 | N111: 0 | O111: 0 | P111: 0 | Q111: 0 | R111: 93.92831018 | S111: 318.4046945 | T111: 338.8144257 | U111: 396.6543381 | V111: 469.4210743 | W111: 474.6110727 | X111: 479.7955534 | Y111: 484.9712538 | Z111: 490.1346705 | AA111: 495.2820422 | AB111: 501.3056521 | AC111: 507.3317393 | AD111: 513.3562854 | AE111: 519.3749491 | AF111: 525.3830424 | AG111: 531.3755066 | AH111: 537.3468859 | AI111: 543.2912986 | AJ111: 549.2024075 | AK111: 555.0733871 | AL111: 560.8968895 | AM111: 566.6650066 | AN111: 572.3692312 | AO111: 578.0004143 | AP111: 583.5487195 | AQ111: 589.0035748 | AR111: 594.3536205 | AS111: 599.5866532 | AT111: 604.689567 | AU111: 609.6482892 | AV111: 614.4477125 | AW111: 619.0716218 | AX111: 623.5026165 | AY111: 906.7445549 | AZ111: 915.6152461 | BA111: 924.5746442 | BB111: 933.6236364 | BC111: 942.7631184 | BD111: 951.9939953 | BE111: 961.317181 | BF111: 970.7335985 | BG111: 980.2441801 | BH111: 989.8498676 | BI111: 999.551612 | BJ111: 1009.350374 | BK111: 1019.247123 | BL111: 1029.24284 | BM111: 1039.338514 | BN111: 1049.535145 | BO111: 0 | BP111: 0 | BQ111: 0 | BR111: 0 | BS111: 0 | BT111: 0 | BU111: 0 | BV111: 0 | BW111: 0 | BX111: 0 | BY111: =BY110 -> 0 | BZ111: 0 | CA111: 0 | CB111: 0 | CC111: 0 | CD111: 0 | CE111: 0 | CF111: 0 | CG111: 0 | CH111: 0 | CI111: 0 | CJ111: 0 | CK111: 0 | CL111: 0 | CM111: 0 | CN111: 0 | CO111: 0 | CP111: 0 | CQ111: 0 | CR111: 0 | CS111: 0 | CT111: 0 | CU111: 0 | CV111: 0 | CW111: 0 | CX111: 0 | CY111: 0 | CZ111: 0 | DA111: 0 | DB111: 0 | DC111: 0 | DD111: 0 | DE111: 0 | DF111: 0
C113: Free Cash
D114: EBITDA | L114: =L96 -> 0 | M114: =M96 -> 0 | N114: 0 | O114: 0 | P114: 0 | Q114: 0 | R114: 388 | S114: 688 | T114: 715.96 | U114: 793.8792 | V114: 891.756784 | W114: 899.5919197 | X114: 907.4837581 | Y114: 915.4324332 | Z114: 923.4380719 | AA114: 931.5007932 | AB114: 940.8158012 | AC114: 950.2239592 | AD114: 959.7261988 | AE114: 969.3234608 | AF114: 979.0166954 | AG114: 988.8068623 | AH114: 998.6949309 | AI114: 1008.68188 | AJ114: 1018.768699 | AK114: 1028.956386 | AL114: 1039.24595 | AM114: 1049.638409 | AN114: 1060.134794 | AO114: 1070.736141 | AP114: 1081.443503 | AQ114: 1092.257938 | AR114: 1103.180517 | AS114: 1114.212322 | AT114: 1125.354446 | AU114: 1136.60799 | AV114: 1147.97407 | AW114: 1159.453811 | AX114: 1171.048349 | AY114: 1182.758832 | AZ114: 1194.586421 | BA114: 1206.532285 | BB114: 1218.597608 | BC114: 1230.783584 | BD114: 1243.09142 | BE114: 1255.522334 | BF114: 1268.077557 | BG114: 1280.758333 | BH114: 1293.565916 | BI114: 1306.501575 | BJ114: 1319.566591 | BK114: 1332.762257 | BL114: 1346.089879 | BM114: 1359.550778 | BN114: 1373.146286 | BO114: 0 | BP114: 0 | BQ114: 0 | BR114: 0 | BS114: 0 | BT114: 0 | BU114: 0 | BV114: 0 | BW114: 0 | BX114: 0 | BY114: =BY96 -> 0 | BZ114: 0 | CA114: 0 | CB114: 0 | CC114: 0 | CD114: 0 | CE114: 0 | CF114: 0 | CG114: 0 | CH114: 0 | CI114: 0 | CJ114: 0 | CK114: 0 | CL114: 0 | CM114: 0 | CN114: 0 | CO114: 0 | CP114: 0 | CQ114: 0 | CR114: 0 | CS114: 0 | CT114: 0 | CU114: 0 | CV114: 0 | CW114: 0 | CX114: 0 | CY114: 0 | CZ114: 0 | DA114: 0 | DB114: 0 | DC114: 0 | DD114: 0 | DE114: 0 | DF114: 0
D115: Cap Exp | L115: =L100 -> 382.1 | M115: =M100 -> 811.9625 | N115: 811.9625 | O115: 811.9625 | P115: 811.9625 | Q115: 191.05 | R115: 0 | S115: 0 | T115: 0 | U115: 0 | V115: 0 | W115: 0 | X115: 0 | Y115: 0 | Z115: 0 | AA115: 0 | AB115: 0 | AC115: 0 | AD115: 0 | AE115: 0 | AF115: 0 | AG115: 0 | AH115: 0 | AI115: 0 | AJ115: 0 | AK115: 0 | AL115: 0 | AM115: 0 | AN115: 0 | AO115: 0 | AP115: 0 | AQ115: 0 | AR115: 0 | AS115: 0 | AT115: 0 | AU115: 0 | AV115: 0 | AW115: 0 | AX115: 0 | AY115: 0 | AZ115: 0 | BA115: 0 | BB115: 0 | BC115: 0 | BD115: 0 | BE115: 0 | BF115: 0 | BG115: 0 | BH115: 0 | BI115: 0 | BJ115: 0 | BK115: 0 | BL115: 0 | BM115: 0 | BN115: 0 | BO115: 0 | BP115: 0 | BQ115: 0 | BR115: 0 | BS115: 0 | BT115: 0 | BU115: 0 | BV115: 0 | BW115: 0 | BX115: 0 | BY115: =BY100 -> 0 | BZ115: 0 | CA115: 0 | CB115: 0 | CC115: 0 | CD115: 0 | CE115: 0 | CF115: 0 | CG115: 0 | CH115: 0 | CI115: 0 | CJ115: 0 | CK115: 0 | CL115: 0 | CM115: 0 | CN115: 0 | CO115: 0 | CP115: 0 | CQ115: 0 | CR115: 0 | CS115: 0 | CT115: 0 | CU115: 0 | CV115: 0 | CW115: 0 | CX115: 0 | CY115: 0 | CZ115: 0 | DA115: 0 | DB115: 0 | DC115: 0 | DD115: 0 | DE115: 0 | DF115: 0
D116: Taxes on EBIT | L116: =(L114-L77)*Inputs!L42 -> 0 | M116: =(M114-M77)*Inputs!M42 -> 0 | N116: =(N114-N77)*Inputs!N42 -> 0 | O116: =(O114-O77)*Inputs!O42 -> 0 | P116: =(P114-P77)*Inputs!P42 -> 0 | Q116: =(Q114-Q77)*Inputs!Q42 -> 0 | R116: =(R114-R77)*Inputs!R42 -> 77.32456938 | S116: =(S114-S77)*Inputs!S42 -> 152.3245694 | T116: =(T114-T77)*Inputs!T42 -> 159.3145694 | U116: =(U114-U77)*Inputs!U42 -> 178.7943694 | V116: =(V114-V77)*Inputs!V42 -> 203.2637654 | W116: =(W114-W77)*Inputs!W42 -> 205.2225493 | X116: =(X114-X77)*Inputs!X42 -> 207.1955089 | Y116: =(Y114-Y77)*Inputs!Y42 -> 209.1826777 | Z116: =(Z114-Z77)*Inputs!Z42 -> 211.1840874 | AA116: =(AA114-AA77)*Inputs!AA42 -> 213.1997677 | AB116: =(AB114-AB77)*Inputs!AB42 -> 215.5285197 | AC116: =(AC114-AC77)*Inputs!AC42 -> 217.8805592 | AD116: =(AD114-AD77)*Inputs!AD42 -> 220.2561191 | AE116: =(AE114-AE77)*Inputs!AE42 -> 222.6554346 | AF116: =(AF114-AF77)*Inputs!AF42 -> 225.0787432 | AG116: =(AG114-AG77)*Inputs!AG42 -> 227.526285 | AH116: =(AH114-AH77)*Inputs!AH42 -> 229.9983021 | AI116: =(AI114-AI77)*Inputs!AI42 -> 232.4950394 | AJ116: =(AJ114-AJ77)*Inputs!AJ42 -> 235.0167441 | AK116: =(AK114-AK77)*Inputs!AK42 -> 237.5636659 | AL116: =(AL114-AL77)*Inputs!AL42 -> 240.1360569 | AM116: =(AM114-AM77)*Inputs!AM42 -> 242.7341717 | AN116: =(AN114-AN77)*Inputs!AN42 -> 245.3582678 | AO116: =(AO114-AO77)*Inputs!AO42 -> 248.0086047 | AP116: =(AP114-AP77)*Inputs!AP42 -> 250.6854451 | AQ116: =(AQ114-AQ77)*Inputs!AQ42 -> 253.3890539 | AR116: =(AR114-AR77)*Inputs!AR42 -> 256.1196987 | AS116: =(AS114-AS77)*Inputs!AS42 -> 258.87765 | AT116: =(AT114-AT77)*Inputs!AT42 -> 261.6631808 | AU116: =(AU114-AU77)*Inputs!AU42 -> 264.4765669 | AV116: =(AV114-AV77)*Inputs!AV42 -> 267.3180869 | AW116: =(AW114-AW77)*Inputs!AW42 -> 270.1880221 | AX116: =(AX114-AX77)*Inputs!AX42 -> 273.0866566 | AY116: =(AY114-AY77)*Inputs!AY42 -> 276.0142775 | AZ116: =(AZ114-AZ77)*Inputs!AZ42 -> 278.9711745 | BA116: =(BA114-BA77)*Inputs!BA42 -> 281.9576406 | BB116: =(BB114-BB77)*Inputs!BB42 -> 284.9739713 | BC116: =(BC114-BC77)*Inputs!BC42 -> 288.0204653 | BD116: =(BD114-BD77)*Inputs!BD42 -> 291.0974243 | BE116: =(BE114-BE77)*Inputs!BE42 -> 294.2051528 | BF116: =(BF114-BF77)*Inputs!BF42 -> 297.3439587 | BG116: =(BG114-BG77)*Inputs!BG42 -> 300.5141526 | BH116: =(BH114-BH77)*Inputs!BH42 -> 303.7160484 | BI116: =(BI114-BI77)*Inputs!BI42 -> 306.9499632 | BJ116: =(BJ114-BJ77)*Inputs!BJ42 -> 310.2162171 | BK116: =(BK114-BK77)*Inputs!BK42 -> 313.5151336 | BL116: =(BL114-BL77)*Inputs!BL42 -> 316.8470392 | BM116: =(BM114-BM77)*Inputs!BM42 -> 320.2122639 | BN116: =(BN114-BN77)*Inputs!BN42 -> 323.6111409 | BO116: =(BO114-BO77)*Inputs!BO42 -> 0 | BP116: =(BP114-BP77)*Inputs!BP42 -> 0 | BQ116: =(BQ114-BQ77)*Inputs!BQ42 -> 0 | BR116: =(BR114-BR77)*Inputs!BR42 -> 0 | BS116: =(BS114-BS77)*Inputs!BS42 -> 0 | BT116: =(BT114-BT77)*Inputs!BT42 -> 0 | BU116: =(BU114-BU77)*Inputs!BU42 -> 0 | BV116: =(BV114-BV77)*Inputs!BV42 -> 0 | BW116: =(BW114-BW77)*Inputs!BW42 -> 0 | BX116: =(BX114-BX77)*Inputs!BX42 -> 0 | BY116: =(BY114-BY77)*Inputs!BY42 -> 0 | BZ116: =(BZ114-BZ77)*Inputs!BZ42 -> 0 | CA116: =(CA114-CA77)*Inputs!CA42 -> 0 | CB116: =(CB114-CB77)*Inputs!CB42 -> 0 | CC116: =(CC114-CC77)*Inputs!CC42 -> 0 | CD116: =(CD114-CD77)*Inputs!CD42 -> 0 | CE116: =(CE114-CE77)*Inputs!CE42 -> 0 | CF116: =(CF114-CF77)*Inputs!CF42 -> 0 | CG116: =(CG114-CG77)*Inputs!CG42 -> 0 | CH116: =(CH114-CH77)*Inputs!CH42 -> 0 | CI116: =(CI114-CI77)*Inputs!CI42 -> 0 | CJ116: =(CJ114-CJ77)*Inputs!CJ42 -> 0 | CK116: =(CK114-CK77)*Inputs!CK42 -> 0 | CL116: =(CL114-CL77)*Inputs!CL42 -> 0 | CM116: =(CM114-CM77)*Inputs!CM42 -> 0 | CN116: =(CN114-CN77)*Inputs!CN42 -> 0 | CO116: =(CO114-CO77)*Inputs!CO42 -> 0 | CP116: =(CP114-CP77)*Inputs!CP42 -> 0 | CQ116: =(CQ114-CQ77)*Inputs!CQ42 -> 0 | CR116: =(CR114-CR77)*Inputs!CR42 -> 0 | CS116: =(CS114-CS77)*Inputs!CS42 -> 0 | CT116: =(CT114-CT77)*Inputs!CT42 -> 0 | CU116: =(CU114-CU77)*Inputs!CU42 -> 0 | CV116: =(CV114-CV77)*Inputs!CV42 -> 0 | CW116: =(CW114-CW77)*Inputs!CW42 -> 0 | CX116: =(CX114-CX77)*Inputs!CX42 -> 0 | CY116: =(CY114-CY77)*Inputs!CY42 -> 0 | CZ116: =(CZ114-CZ77)*Inputs!CZ42 -> 0 | DA116: =(DA114-DA77)*Inputs!DA42 -> 0 | DB116: =(DB114-DB77)*Inputs!DB42 -> 0 | DC116: =(DC114-DC77)*Inputs!DC42 -> 0 | DD116: =(DD114-DD77)*Inputs!DD42 -> 0 | DE116: =(DE114-DE77)*Inputs!DE42 -> 0 | DF116: =(DF114-DF77)*Inputs!DF42 -> 0
E117: Free Cash Flow | L117: =L114-L115-L116 -> -382.1 | M117: =M114-M115-M116 -> -811.9625 | N117: -811.9625 | O117: -811.9625 | P117: -811.9625 | Q117: -191.05 | R117: 310.6754306 | S117: 535.6754306 | T117: 556.6454306 | U117: 615.0848306 | V117: 688.4930186 | W117: 694.3693704 | X117: 700.2882492 | Y117: 706.2497555 | Z117: 712.2539845 | AA117: 718.3010255 | AB117: 725.2872815 | AC117: 732.3434 | AD117: 739.4700797 | AE117: 746.6680262 | AF117: 753.9379521 | AG117: 761.2805774 | AH117: 768.6966288 | AI117: 776.1868408 | AJ117: 783.7519549 | AK117: 791.3927202 | AL117: 799.1098931 | AM117: 806.9042377 | AN117: 814.7765257 | AO117: 822.7275367 | AP117: 830.7580578 | AQ117: 838.868884 | AR117: 847.0608186 | AS117: 855.3346724 | AT117: 863.6912649 | AU117: 872.1314232 | AV117: 880.6559831 | AW117: 889.2657887 | AX117: 897.9616922 | AY117: 906.7445549 | AZ117: 915.6152461 | BA117: 924.5746442 | BB117: 933.6236364 | BC117: 942.7631184 | BD117: 951.9939953 | BE117: 961.317181 | BF117: 970.7335985 | BG117: 980.2441801 | BH117: 989.8498676 | BI117: 999.551612 | BJ117: 1009.350374 | BK117: 1019.247123 | BL117: 1029.24284 | BM117: 1039.338514 | BN117: 1049.535145 | BO117: 0 | BP117: 0 | BQ117: 0 | BR117: 0 | BS117: 0 | BT117: 0 | BU117: 0 | BV117: 0 | BW117: 0 | BX117: 0 | BY117: =BY114-BY115-BY116 -> 0 | BZ117: 0 | CA117: 0 | CB117: 0 | CC117: 0 | CD117: 0 | CE117: 0 | CF117: 0 | CG117: 0 | CH117: 0 | CI117: 0 | CJ117: 0 | CK117: 0 | CL117: 0 | CM117: 0 | CN117: 0 | CO117: 0 | CP117: 0 | CQ117: 0 | CR117: 0 | CS117: 0 | CT117: 0 | CU117: 0 | CV117: 0 | CW117: 0 | CX117: 0 | CY117: 0 | CZ117: 0 | DA117: 0 | DB117: 0 | DC117: 0 | DD117: 0 | DE117: 0 | DF117: 0
C119: Project IRR | I119: =IRR(L117:DF117) -> 0.1230637053
C121: Equity Cash | I121: =IRR(L121:DF121) -> 0.1985794135 | L121: =-L30+L111 -> -770 | M121: 0 | N121: 0 | O121: 0 | P121: 0 | Q121: 0 | R121: 93.92831018 | S121: 318.4046945 | T121: 338.8144257 | U121: 396.6543381 | V121: 469.4210743 | W121: 474.6110727 | X121: 479.7955534 | Y121: 484.9712538 | Z121: 490.1346705 | AA121: 495.2820422 | AB121: 501.3056521 | AC121: 507.3317393 | AD121: 513.3562854 | AE121: 519.3749491 | AF121: 525.3830424 | AG121: 531.3755066 | AH121: 537.3468859 | AI121: 543.2912986 | AJ121: 549.2024075 | AK121: 555.0733871 | AL121: 560.8968895 | AM121: 566.6650066 | AN121: 572.3692312 | AO121: 578.0004143 | AP121: 583.5487195 | AQ121: 589.0035748 | AR121: =-AR30+AR111 -> 594.3536205 | AS121: 599.5866532 | AT121: 604.689567 | AU121: 609.6482892 | AV121: 614.4477125 | AW121: 619.0716218 | AX121: 623.5026165 | AY121: 906.7445549 | AZ121: 915.6152461 | BA121: 924.5746442 | BB121: 933.6236364 | BC121: 942.7631184 | BD121: 951.9939953 | BE121: 961.317181 | BF121: 970.7335985 | BG121: 980.2441801 | BH121: 989.8498676 | BI121: 999.551612 | BJ121: 1009.350374 | BK121: 1019.247123 | BL121: 1029.24284 | BM121: 1039.338514 | BN121: 1049.535145 | BO121: 0 | BP121: 0 | BQ121: 0 | BR121: 0 | BS121: 0 | BT121: 0 | BU121: 0 | BV121: 0 | BW121: 0 | BX121: =-BX30+BX111 -> 0 | BY121: 0 | BZ121: 0 | CA121: 0 | CB121: 0 | CC121: 0 | CD121: 0 | CE121: 0 | CF121: 0 | CG121: 0 | CH121: 0 | CI121: 0 | CJ121: 0 | CK121: 0 | CL121: 0 | CM121: 0 | CN121: 0 | CO121: 0 | CP121: 0 | CQ121: 0 | CR121: 0 | CS121: 0 | CT121: 0 | CU121: 0 | CV121: 0 | CW121: 0 | CX121: 0 | CY121: 0 | CZ121: 0 | DA121: 0 | DB121: 0 | DC121: 0 | DD121: 0 | DE121: 0 | DF121: 0
R123: =R5 -> 1993 | S123: 1994 | T123: 1995 | U123: 1996 | V123: 1997 | W123: 1998 | X123: 1999 | Y123: 2000 | Z123: 2001 | AA123: 2002 | AB123: 2003 | AC123: 2004 | AD123: 2005 | AE123: 2006 | AF123: 2007 | AG123: 2008 | AH123: 2009 | AI123: 2010 | AJ123: 2011 | AK123: 2012 | AL123: 2013 | AM123: 2014 | AN123: 2015 | AO123: 2016 | AP123: 2017 | AQ123: 2018 | AR123: 2019 | AS123: 2020 | AT123: 2021 | AU123: 2022 | AV123: 2023 | AW123: 2024 | AX123: =AX5 -> 2025 | AY123: 2026 | AZ123: 2027 | BA123: 2028 | BB123: 2029 | BC123: 2030 | BD123: 2031 | BE123: 2032 | BF123: 2033 | BG123: 2034 | BH123: 2035 | BI123: 2036 | BJ123: 2037 | BK123: 2038 | BL123: 2039 | BM123: 2040 | BN123: 2041 | BO123: 2042 | BP123: 2043 | BQ123: 2044 | BR123: 2045 | BS123: 2046 | BT123: 2047 | BU123: 2048 | BV123: 2049 | BW123: 2050 | BX123: 2051 | BY123: 2052 | BZ123: 2053 | CA123: 2054 | CB123: 2055 | CC123: 2056 | CD123: =CD5 -> 2057 | CE123: 2058 | CF123: 2059 | CG123: 2060 | CH123: 2061 | CI123: 2062 | CJ123: 2063 | CK123: 2064 | CL123: 2065 | CM123: 2066 | CN123: 2067 | CO123: 2068 | CP123: 2069 | CQ123: 2070 | CR123: 2071 | CS123: 2072 | CT123: 2073 | CU123: 2074 | CV123: 2075 | CW123: 2076 | CX123: 2077 | CY123: 2078 | CZ123: 2079 | DA123: 2080 | DB123: 2081 | DC123: 2082 | DD123: 2083 | DE123: 2084 | DF123: 2085
C124: CFADS | R124: =R104 -> 372.9508385 | S124: 597.4272228 | T124: 617.836954 | U124: 675.6768664 | V124: 748.4436027 | W124: 753.6336011 | X124: 758.8180818 | Y124: 763.9937822 | Z124: 769.1571988 | AA124: 774.3045705 | AB124: 780.3281804 | AC124: 786.3542676 | AD124: 792.3788138 | AE124: 798.3974774 | AF124: 804.4055707 | AG124: 810.3980349 | AH124: 816.3694142 | AI124: 822.3138269 | AJ124: 828.2249358 | AK124: 834.0959155 | AL124: 839.9194178 | AM124: 845.6875349 | AN124: 851.3917595 | AO124: 857.0229426 | AP124: 862.5712478 | AQ124: 868.0261031 | AR124: 873.3761488 | AS124: 878.6091815 | AT124: 883.7120953 | AU124: 888.6708176 | AV124: 893.4702408 | AW124: 898.0941502 | AX124: 902.5251448 | AY124: 906.7445549 | AZ124: 915.6152461 | BA124: 924.5746442 | BB124: 933.6236364 | BC124: 942.7631184 | BD124: 951.9939953 | BE124: 961.317181 | BF124: 970.7335985 | BG124: 980.2441801 | BH124: 989.8498676 | BI124: 999.551612 | BJ124: 1009.350374 | BK124: 1019.247123 | BL124: 1029.24284 | BM124: 1039.338514 | BN124: 1049.535145 | BO124: 0 | BP124: 0 | BQ124: 0 | BR124: 0 | BS124: 0 | BT124: 0 | BU124: 0 | BV124: 0 | BW124: 0 | BX124: 0 | BY124: =BY104 -> 0 | BZ124: 0 | CA124: 0 | CB124: 0 | CC124: 0 | CD124: 0 | CE124: 0 | CF124: 0 | CG124: 0 | CH124: 0 | CI124: 0 | CJ124: 0 | CK124: 0 | CL124: 0 | CM124: 0 | CN124: 0 | CO124: 0 | CP124: 0 | CQ124: 0 | CR124: 0 | CS124: 0 | CT124: 0 | CU124: 0 | CV124: 0 | CW124: 0 | CX124: 0 | CY124: 0 | CZ124: 0 | DA124: 0 | DB124: 0 | DC124: 0 | DD124: 0 | DE124: 0 | DF124: 0
C125: Debt Service | R125: =R106+R107-R109+R105 -> 279.0225283 | S125: =S106+S107-S109+S105 -> 279.0225283 | T125: 279.0225283 | U125: 279.0225283 | V125: 279.0225283 | W125: 279.0225283 | X125: 279.0225283 | Y125: 279.0225283 | Z125: 279.0225283 | AA125: 279.0225283 | AB125: 279.0225283 | AC125: 279.0225283 | AD125: 279.0225283 | AE125: 279.0225283 | AF125: 279.0225283 | AG125: 279.0225283 | AH125: 279.0225283 | AI125: 279.0225283 | AJ125: 279.0225283 | AK125: 279.0225283 | AL125: 279.0225283 | AM125: 279.0225283 | AN125: 279.0225283 | AO125: 279.0225283 | AP125: 279.0225283 | AQ125: 279.0225283 | AR125: 279.0225283 | AS125: 279.0225283 | AT125: 279.0225283 | AU125: 279.0225283 | AV125: 279.0225283 | AW125: 279.0225283 | AX125: 279.0225283 | AY125: 0 | AZ125: 0 | BA125: 0 | BB125: 0 | BC125: 0 | BD125: 0 | BE125: 0 | BF125: 0 | BG125: 0 | BH125: 0 | BI125: 0 | BJ125: 0 | BK125: 0 | BL125: 0 | BM125: 0 | BN125: 0 | BO125: 0 | BP125: 0 | BQ125: 0 | BR125: 0 | BS125: 0 | BT125: 0 | BU125: 0 | BV125: 0 | BW125: 0 | BX125: 0 | BY125: 0 | BZ125: 0 | CA125: 0 | CB125: 0 | CC125: 0 | CD125: 0 | CE125: =CE106+CE107-CE109+CE105 -> 0 | CF125: 0 | CG125: 0 | CH125: 0 | CI125: 0 | CJ125: 0 | CK125: 0 | CL125: 0 | CM125: 0 | CN125: 0 | CO125: 0 | CP125: 0 | CQ125: 0 | CR125: 0 | CS125: 0 | CT125: 0 | CU125: 0 | CV125: 0 | CW125: 0 | CX125: 0 | CY125: 0 | CZ125: 0 | DA125: 0 | DB125: 0 | DC125: 0 | DD125: 0 | DE125: 0 | DF125: 0
C126: DSCR | I126: =MIN(R126:DF126) -> 1.336633428 | R126: =IF(R125,R124/R125) -> 1.336633428 | S126: =IF(S125,S124/S125) -> 2.141143321 | T126: 2.214290573 | U126: 2.421585348 | V126: 2.682376965 | W126: 2.700977608 | X126: 2.719558476 | Y126: 2.738107875 | Z126: 2.756613251 | AA126: 2.775061122 | AB126: 2.796649378 | AC126: 2.818246513 | AD126: 2.839838125 | AE126: 2.861408655 | AF126: 2.882941301 | AG126: 2.904417933 | AH126: 2.925818998 | AI126: 2.947123416 | AJ126: 2.968308476 | AK126: 2.989349715 | AL126: 3.010220798 | AM126: 3.030893383 | AN126: 3.051336982 | AO126: 3.071518804 | AP126: 3.091403597 | AQ126: 3.110953472 | AR126: 3.130127714 | AS126: 3.14888259 | AT126: 3.167171126 | AU126: 3.184942889 | AV126: 3.202143734 | AW126: 3.218715548 | AX126: 3.234595967 | AY126: FALSE | AZ126: FALSE | BA126: FALSE | BB126: FALSE | BC126: FALSE | BD126: FALSE | BE126: FALSE | BF126: FALSE | BG126: FALSE | BH126: FALSE | BI126: FALSE | BJ126: FALSE | BK126: FALSE | BL126: FALSE | BM126: FALSE | BN126: FALSE | BO126: FALSE | BP126: FALSE | BQ126: FALSE | BR126: FALSE | BS126: FALSE | BT126: FALSE | BU126: FALSE | BV126: FALSE | BW126: FALSE | BX126: FALSE | BY126: FALSE | BZ126: FALSE | CA126: FALSE | CB126: FALSE | CC126: FALSE | CD126: FALSE | CE126: =IF(CE125,CE124/CE125) -> FALSE | CF126: FALSE | CG126: FALSE | CH126: FALSE | CI126: FALSE | CJ126: FALSE | CK126: FALSE | CL126: FALSE | CM126: FALSE | CN126: FALSE | CO126: FALSE | CP126: FALSE | CQ126: FALSE | CR126: FALSE | CS126: FALSE | CT126: FALSE | CU126: FALSE | CV126: FALSE | CW126: FALSE | CX126: FALSE | CY126: FALSE | CZ126: FALSE | DA126: FALSE | DB126: FALSE | DC126: FALSE | DD126: FALSE | DE126: FALSE | DF126: FALSE
C128: PLCR | I128: =L58 -> 0.0725
C130: NPV | I130: =NPV(I128,R124:DF124) -> 10019.88603
C131: Loan | I131: =J27+J28+J29 -> 3558.594736
I132: =I130/I131 -> 2.815686183
C133: Debt/EBTDA | R133: =IF(R114,R54/R114) -> 9.094520205 | S133: =IF(S114,S54/S114) -> 5.082352442 | T133: 4.836027215 | U133: 4.315200171 | V133: 3.797590922 | W133: 3.717865611 | X133: 3.636052585 | Y133: 3.551995892 | Z133: 3.465530249 | AA133: 3.376480456 | AB133: 3.280488366 | AC133: 3.181730162 | AD133: 3.080012449 | AE133: 2.975130628 | AF133: 2.866868232 | AG133: 2.754996216 | AH133: 2.63927221 | AI133: 2.519439719 | AJ133: 2.395227288 | AK133: 2.266347605 | AL133: 2.132496559 | AM133: 1.993352238 | AN133: 1.848573871 | AO133: 1.697800704 | AP133: 1.540650808 | AQ133: 1.376719823 | AR133: 1.205579619 | AS133: 1.026776883 | AT133: 0.8398316214 | AU133: 0.6442355713 | AV133: 0.4394505186 | AW133: 0.2249065169 | AX133: 0 | AY133: 0 | AZ133: 0 | BA133: 0 | BB133: 0 | BC133: 0 | BD133: 0 | BE133: 0 | BF133: 0 | BG133: 0 | BH133: 0 | BI133: 0 | BJ133: 0 | BK133: 0 | BL133: 0 | BM133: 0 | BN133: 0 | BO133: FALSE | BP133: FALSE | BQ133: FALSE | BR133: FALSE | BS133: FALSE | BT133: FALSE | BU133: FALSE | BV133: FALSE | BW133: FALSE | BX133: FALSE | BY133: FALSE | BZ133: FALSE | CA133: FALSE | CB133: FALSE | CC133: FALSE | CD133: FALSE | CE133: =IF(CE114,CE54/CE114) -> FALSE | CF133: FALSE | CG133: FALSE | CH133: FALSE | CI133: FALSE | CJ133: FALSE | CK133: FALSE | CL133: FALSE | CM133: FALSE | CN133: FALSE | CO133: FALSE | CP133: FALSE | CQ133: FALSE | CR133: FALSE | CS133: FALSE | CT133: FALSE | CU133: FALSE | CV133: FALSE | CW133: FALSE | CX133: FALSE | CY133: FALSE | CZ133: FALSE | DA133: FALSE | DB133: FALSE | DC133: FALSE | DD133: FALSE | DE133: FALSE | DF133: FALSE
G146: 1
H151: 1
G156: 2
G169: 1

Sheet Databook

Sheet Capital Expenditures
B2: Data from Cases
F3: 1995
D4: Junior Bank Debt | F4: 8000
D5: Senior Bank Debt | F5: =F6-F4 -> 333.3333333
D6: Total Debt | F6: =F4/0.96 -> 8333.333333
D8: 1987 IPO | E8: 770
D10: May 1994 Financing | F10: 10100
L11: Original | M11: Final | N11: Percent Difference
K12: Tunnels | L12: 1329 | M12: 2110 | N12: =M12/L12-1 -> 0.5876598947
D13: Junior Debt | E13: 0.96 | K13: Terminals | L13: 448 | M13: 553 | N13: 0.234375
K14: Fixed Equipment | L14: 688 | M14: 1200 | N14: 0.7441860465
D15: Suspension of Interest | E15: Sept 14 1995 | K15: Rolling Stock | L15: 245 | M15: 705 | N15: 1.87755102
K16: Subtotal | L16: =SUM(L11:L15) -> 2710 | M16: =SUM(M11:M15) -> 4568 | N16: 0.6856088561
D17: Junior Debt Trading | E17: 0.43 | F17: of Face Value | K17: Corporate and Inflation | L17: =642+469 -> 1111 | M17: =1128+1146+222+72+790 -> 3358 | N17: 2.02250225
K18: Subtotal | L18: =L16+L17 -> 3821 | M18: =M16+M17 -> 7926 | N18: 1.074326093
D19: Initial Concession | E19: 55 | F19: Years | K19: Financing Costs | L19: 500 | M19: 1500 | N19: 2
D20: 1993 | E20: 65 | K20: Total | L20: =L18+L19 -> 4321 | M20: =M18+M19 -> 9426 | N20: 1.181439482
D21: 1997 | E21: 99
D24: 1987 Construction Cost Estimate | F24: 2.7
D25: Estimated Completion | F25: 1990
D27: 1990 Construction Cost Estimate | F27: 4
D30: Toll Rate per Car Estimated in 1990 | F30: 64.5
D32: Average Realized in 1996 | F32: 34.4
D34: Minimum Paynmet of Railways | F34: 25
D36: Paymemt per Passenger | E36: 1996 | F36: 12.4
D37: Per ton of Freight | E37: =E36 -> 1996 | F37: 9
D39: Interest During Construction | F39: 615
D41: Number of Shares
E42: 1986 | F42: 26520
E43: 1987 | F43: 332391
E44: 1993 | F44: 538045
E45: 1996 | F45: 919533
B61: Bozzana Book
C64: Misc Data
C66: IRR projected | E66: 0.18
C68: Original Assumptions | E68: 30 | F68: Million voyagers
E69: 15 | F69: Millions tons of freight
E70: 20 | F70: Trains in each direction each hour
C72: Actual | E72: 8 | F72: Million | H72: 3 | I72: Eurostar
H73: 5 | I73: Shuttle
F77: 7.3
G78: Billion Francs for fist year
D80: Costs
D81: Expected | E81: 1.2 | F81: Billion
D82: Actual | E82: 2.3 | F82: Billion | H82: 2300000 | I82: 374000 | J82: =H82/I82 -> 6.14973262
C84: Last Prospectus in 1994
H85: Actual
D86: 1995 | E86: Shuttle Passengers | G86: Forecast | H86: =G87*0.7 -> 5390000
D87: =D86 -> 1995 | E87: Eurostar | G87: 7700000 | H87: =G88*(1-0.7) -> 2760000
E88: Total | G88: 9200000 | H88: =H86+H87 -> 8150000
G89: =G87+G88 -> 16900000
D90: 1995 | E90: Revenues | H90: =G91*0.45 -> 2340000
G91: 5200000
E92: GBP | H92: 300000
G93: 525000
H94: =H90/H92 -> 7.8
G95: =G91/G93 -> 9.904761905
G96: =H94 -> 7.8
G97: =G91/G96 -> 666666.6667

Sheet Sources and Uses of Funds
F3: 1988 | G3: =F3+1 -> 1989 | H3: 1990 | I3: 1991 | J3: 1992 | K3: 1993 | L3: 1994 | M3: =L3+1 -> 1995 | N3: =M3+1 -> 1996 | O3: =N3+1 -> 1997 | P3: =O3+1 -> 1998 | Q3: =P3+1 -> 1999
C4: Turnover | F4: 1 | G4: 6 | H4: 5 | I4: 11 | J4: 8 | K4: 3 | L4: 31 | M4: 299 | N4: 448 | O4: 456 | P4: 618 | Q4: 627
C5: Capitalised Costs | F5: 54 | G5: 220 | H5: 506 | I5: 547 | J5: 781 | K5: 846 | L5: 716
C6: Deferred Expenses | F6: 0 | G6: 0 | H6: 0 | I6: 0 | J6: 11 | K6: 46 | L6: 51 | M6: 5 | N6: 35 | O6: 75 | P6: 48 | Q6: 27
C8: Operating Cost | F8: 82 | G8: 106 | H8: 246 | I8: 169 | J8: 177 | K8: 251 | L8: 402 | M8: 374 | N8: 379 | O8: 341 | P8: 345 | Q8: 321
C10: Depreciation | F10: 14 | G10: 54 | H10: 94 | I10: 92 | J10: 50 | K10: 47 | L10: 146 | M10: 130 | N10: 147 | O10: 126 | P10: 137 | Q10: 123
C12: Interest | F12: 41 | G12: 65 | H12: 171 | I12: 297 | J12: 575 | K12: 599 | L12: 637 | M12: 724 | N12: 642 | O12: 675 | P12: 399 | Q12: 304
C14: Issue of Capital | F14: 0 | G14: 0 | H14: 573 | I14: 3 | J14: 3 | K14: 10 | L14: 909 | M14: 56 | N14: 0 | O14: 0 | P14: 0 | Q14: 150
C15: Bank Loans | F15: 175 | G15: 887 | H15: 1278 | I15: 1140 | J15: 1604 | K15: 1672 | L15: 795 | M15: 345 | N15: -1 | O15: 0 | P15: -8 | Q15: 178
C17: Capital Expenditures | F17: 624 | G17: 1011 | H17: 1331 | I17: 1051 | J17: 1238 | K17: 843 | L17: 453 | M17: 66 | N17: 39 | O17: 28 | P17: 57 | Q17: 58
C19: Operating Cash Flow | F19: 31 | G19: 44 | H19: 165 | I19: -139 | J19: -108 | K19: -165 | L19: -333 | M19: 101 | N19: 115 | O19: 201 | P19: 356 | Q19: 315
C21: Interest | F21: 31 | G21: 38 | H21: 181 | I21: 328 | J21: 555 | K21: 670 | L21: 657 | M21: 657 | N21: 35 | O21: 135 | P21: 210 | Q21: 252
C23: Cash | F23: -387 | G23: -118 | H23: 504 | I23: -375 | J23: -294 | K23: 4 | L23: 261 | M23: -221 | N23: 40 | O23: 33 | P23: 81 | Q23: -23
B25: Eurotunnel Uses and Sources of Funds - Actutal ₤ Millions
U26: Total
E27: 1987 | F27: =F3 -> 1988 | G27: 1989 | H27: 1990 | I27: 1991 | J27: 1992 | K27: 1993 | L27: 1994 | M27: Total | N27: Percent | O27: =M3 -> 1995 | P27: =N3 -> 1996 | Q27: =O3 -> 1997 | R27: =P3 -> 1998 | S27: =Q3 -> 1999
B28: Uses
C29: =C17 -> Capital Expenditures | E29: =1175-F29 -> 551 | F29: =F17 -> 624 | G29: =G17 -> 1011 | H29: 1331 | I29: 1051 | J29: 1238 | K29: 843 | L29: 453 | M29: =SUM(E29:L29) -> 7102 | N29: =M29/$M$32 -> 0.6527573529 | O29: =M17 -> 66 | P29: =N17 -> 39 | Q29: =O17 -> 28 | R29: =P17 -> 57 | S29: =Q17 -> 58 | U29: =SUM(E29:S29) -> 14452.65276 | V29: =SUM(E29:L29) -> 7102
C30: Capitalised Costs | F30: =F5 -> 54 | G30: 220 | H30: 506 | I30: 547 | J30: 781 | K30: 846 | L30: 716 | M30: =SUM(E30:L30) -> 3670 | N30: =M30/$M$32 -> 0.3373161765 | O30: =M5 -> 0 | P30: 0 | Q30: 0 | R30: 0 | S30: 0 | U30: =SUM(E30:S30) -> 7340.337316 | V30: =SUM(E30:L30) -> 3670
C31: Deferred Expenses | F31: 0 | G31: 0 | H31: 0 | I31: 0 | J31: 11 | K31: 46 | L31: 51 | M31: =SUM(E31:L31) -> 108 | N31: =M31/$M$32 -> 0.009926470588 | O31: 5 | P31: 35 | Q31: 75 | R31: 48 | S31: 27 | U31: =SUM(E31:S31) -> 406.0099265 | V31: =SUM(E31:L31) -> 108
D32: Total | E32: =SUM(E29:E31) -> 551 | F32: =SUM(F29:F31) -> 678 | G32: =SUM(G29:G31) -> 1231 | H32: 1837 | I32: 1598 | J32: 2030 | K32: 1735 | L32: 1220 | M32: =SUM(E32:L32) -> 10880 | N32: =M32/$M$32 -> 1 | O32: 71 | P32: 74 | Q32: 103 | R32: 105 | S32: 85 | U32: 22199 | V32: =SUM(E32:L32) -> 10880
B34: Sources
C35: Bank Loans | E35: 2 | F35: =F15 -> 175 | G35: =G15 -> 887 | H35: 1278 | I35: 1140 | J35: 1604 | K35: 1672 | L35: 795 | M35: =SUM(E35:L35) -> 7553 | N35: =M35/($M$35+$M$36) -> 0.7764185855 | O35: =M15 -> 345 | P35: =N15 -> -1 | Q35: =O15 -> 0 | R35: =P15 -> -8 | S35: =Q15 -> 178 | U35: =SUM(E35:S35) -> 15620.77642 | V35: =SUM(E35:L35) -> 7553
C36: Equity Issue | E36: 770 | F36: =F14 -> 0 | G36: 0 | H36: 573 | I36: 3 | J36: 3 | K36: 10 | L36: 816 | M36: =SUM(E36:L36) -> 2175 | N36: =M36/($M$35+$M$36) -> 0.2235814145 | O36: =M14 -> 56 | P36: =N14 -> 0 | Q36: =O14 -> 0 | R36: =P14 -> 0 | S36: =Q14 -> 150 | U36: =SUM(E36:S36) -> 4556.223581 | V36: =SUM(E36:L36) -> 2175
C37: Turnover | E37: =E4 -> 0 | F37: 1 | G37: 6 | H37: 5 | I37: 11 | J37: 8 | K37: 3 | L37: 31 | M37: =SUM(E37:L37) -> 65 | O37: =M4 -> 299 | P37: =N4 -> 448 | Q37: =O4 -> 456 | R37: =P4 -> 618 | S37: =Q4 -> 627 | U37: =SUM(E37:S37) -> 2578 | V37: =SUM(E37:L37) -> 65
C38: Other | E38: =E32-E35-E36-E37 -> -221 | F38: =F32-F35-F36-F37 -> 502 | G38: 338 | H38: -19 | I38: 444 | J38: 415 | K38: 50 | L38: -422 | M38: =SUM(E38:L38) -> 1087 | O38: -629 | U38: =SUM(U35:U37) -> 22755 | V38: =SUM(E38:L38) -> 1087
D39: Total | E39: =SUM(E35:E38) -> 551 | F39: 678 | G39: 1231 | H39: 1837 | I39: 1598 | J39: 2030 | K39: 1735 | L39: 1220 | M39: =SUM(E39:L39) -> 10880 | N39: =SUM(N35:N38) -> 1
U40: =U38-U32 -> 556 | V40: =SUM(V35:V38) -> 10880
M41: =M35+M38 -> 8640
D43: S-Curve | E43: =E29/$M$29 -> 0.07758377922 | F43: 0.08786257392 | G43: 0.1423542664 | H43: 0.1874119966 | I43: 0.1479864827 | J43: 0.1743170938 | K43: 0.118698958 | L43: 0.06378484934 | M43: 1
E44: =E43 -> 0.07758377922 | F44: =E44+F43 -> 0.1654463531 | G44: 0.3078006195 | H44: 0.4952126162 | I44: 0.6431990988 | J44: 0.8175161926 | K44: 0.9362151507 | L44: 1
E46: 0.1 | F46: =0.85/4 -> 0.2125 | G46: =0.85/4 -> 0.2125 | H46: =0.85/4 -> 0.2125 | I46: =0.85/4 -> 0.2125 | J46: 0.05 | M46: =SUM(E46:J46) -> 1

Sheet Revenue Forecast and Actual
G5: Eurotunnel Prospectus Revenue Forecats (GBP Millions)
G6: Prospectus Date
E7: November | F7: November | G7: May | H7: May | J7: Nov 87 vs | K7: Dif as % of
E8: 1987 | F8: 1990 | G8: 1994 | H8: 1997 | I8: Actual | J8: Actual | K8: 87 Proj
D9: 1993 | E9: 488 | F9: 393 | G9: 0 | H9: 0 | I9: 0
D10: 1994 | E10: 762 | F10: 764 | G10: 137 | H10: 0 | I10: 82
D11: 1995 | E11: 835 | F11: 833 | G11: 525 | H11: 0 | I11: 304 | J11: =E11-I11 -> 531 | K11: =J11/E11 -> 0.6359281437
D12: 1996 | E12: 908 | F12: 904 | G12: 737 | H12: 0 | I12: 483 | J12: =E12-I12 -> 425 | K12: =J12/E12 -> 0.468061674
D13: 1997 | E13: 986 | F13: 980 | G13: 829 | H13: 567 | I13: 531 | J13: =E13-I13 -> 455 | K13: =J13/E13 -> 0.4614604462
D14: 1998 | E14: 1072 | F14: 1070 | G14: 901 | H14: 649 | I14: 666 | J14: =E14-I14 -> 406 | K14: =J14/E14 -> 0.3787313433
D15: 1999 | E15: 1158 | F15: 1165 | G15: 993 | H15: 654 | I15: 654 | J15: =E15-I15 -> 504 | K15: =J15/E15 -> 0.4352331606
D20: Eurotunnel Shuttle Services | I20: Eurostar | J20: Rail Freight (SNCF/EWS)
D21: Trucks | E21: Estimated tonnes of road freight carried (in million)2 | F21: Cars | G21: Coaches | H21: Estimated passenger number | I21: Passengers | J21: Tonnes of rail freight
H22: (in million)3 | J22: (in million)
C23: 2001 | D23: 1197771 | E23: 15.6 | F23: 2529757 | G23: 75402 | H23: 9.3 | I23: 6947135 | J23: 2.4
C24: 2002 | D24: 1231100 | E24: 16 | F24: 2335625 | G24: 71911 | H24: 8.7 | I24: 6,602 ,817 | J24: 1.5
C25: 2003 | D25: 1,284 ,875 | E25: 16.7 | F25: 2278999 | G25: 71942 | H25: 8.5 | I25: 6,314 ,795 | J25: 1.7
C26: 2004 | D26: 1281207 | E26: 16.6 | F26: 2101323 | G26: 63467 | H26: 7.8 | I26: 7, 276 ,675 | J26: 1.9
C27: 2005 | D27: 1308786 | E27: 17 | F27: 2047166 | G27: 77267 | H27: 8.2 | I27: 7, 454 ,497 | J27: 1.6
C28: 2006 | D28: 1296269 | E28: 16,9 | F28: 2021543 | G28: 67201 | H28: 7,8 | I28: 7858337 | J28: 1,6
D33: Cars | F33: 2529757 | G33: 2335625 | H33: 2278999 | I33: 2101323 | J33: 2047166 | K33: 2021543
D34: Trucks | F34: 1197771 | G34: 1231100 | H34: 1,284 ,875 | I34: 1281207 | J34: 1308786 | K34: 1296269
F35: 6947135 | G35: 6,602 ,817 | H35: 6,314 ,795 | I35: 7, 276 ,675 | J35: 7454497 | K35: 7858337
D43: Eurotunnel Prospectus Revenue Forecats (GBP Millions)
E44: Prospectus Date
E45: November | F45: November | G45: May | H45: May | J45: Nov 87 vs | K45: Dif as % of
E46: 1987 | F46: 1990 | G46: 1994 | H46: 1997 | I46: Actual | J46: Actual | K46: 87 Proj
D47: 1993 | E47: 488 | F47: 393 | G47: 0 | H47: 0 | I47: 0
D48: 1994 | E48: 762 | F48: 764 | G48: 137 | H48: 0 | I48: 82
D49: 1995 | E49: 835 | F49: 833 | G49: 525 | H49: 0 | I49: 304 | J49: =E49-I49 -> 531 | K49: =J49/E49 -> 0.6359281437
D50: 1996 | E50: 908 | F50: 904 | G50: 737 | H50: 0 | I50: 483 | J50: =E50-I50 -> 425 | K50: =J50/E50 -> 0.468061674
D51: 1997 | E51: 986 | F51: 980 | G51: 829 | H51: 567 | I51: 531 | J51: =E51-I51 -> 455 | K51: =J51/E51 -> 0.4614604462
D52: 1998 | E52: 1072 | F52: 1070 | G52: 901 | H52: 649 | I52: 666 | J52: =E52-I52 -> 406 | K52: =J52/E52 -> 0.3787313433
D53: 1999 | E53: 1158 | F53: 1165 | G53: 993 | H53: 654 | I53: 654 | J53: =E53-I53 -> 504 | K53: =J53/E53 -> 0.4352331606
E58: 2 | I58: 1
E59: =(E53/OFFSET(E53,-E58,0))^(1/E58)-1 -> 0.08371684063 | I59: =(I53/OFFSET(I53,-I58,0))^(1/I58)-1 -> -0.01801801802
E62: 1994 | F62: =E62+1 -> 1995 | G62: =F62+1 -> 1996 | H62: =G62+1 -> 1997 | I62: =H62+1 -> 1998 | J62: =I62+1 -> 1999
E64: =TRANSPOSE(E48:E53) -> 762 | F64: 835 | G64: 908 | H64: 986 | I64: 1072 | J64: 1158
E66: =TRANSPOSE(I48:I53) -> 82 | F66: 304 | G66: 483 | H66: 531 | I66: 666 | J66: 654
E68: =E64-E66 -> 680 | F68: 531 | G68: 425 | H68: 455 | I68: 406 | J68: 504
E71: ='Historic IS and BS'!J35 -> 402 | F71: ='Historic IS and BS'!K35 -> 374 | G71: ='Historic IS and BS'!L35 -> 379 | H71: ='Historic IS and BS'!M35 -> 341 | I71: ='Historic IS and BS'!N35 -> 345 | J71: ='Historic IS and BS'!O35 -> 321

Sheet Source of Historic Data
O22: 1158 | P22: 654 | Q22: =O22-P22 -> 504
O33: 508 | P33: =202 -> 202 | Q33: =O33-P33 -> 306
N39: -333
N40: 101
N41: 115
N42: 201
N43: 356
N44: 315 | O44: 935 | P44: 315 | Q44: =O44-P44 -> 620
B59: Bank Debt | C59: EIB | E59: Equity Financing
B60: 5000 | E60: 46
B61: 1800 | C61: 300 | E61: 206
B62: 693 | E62: 770
A63: 1999 | C63: 200 | E63: 566 | H63: Total Debt | J63: =B64 -> 7493
B64: =SUM(B60:B63) -> 7493 | E64: 816 | H64: Total Equity | J64: =E65 -> 2404
E65: =SUM(E59:E64) -> 2404 | H65: Total | J65: =J63+J64 -> 9897
H67: Debt to Capital | J67: =J63/J65 -> 0.7570981105
B69: 1987-11-01
B70: £ 5 billion raised through the world’s largest private-sector loan syndication (over 220 banks) and letter of credit facility.
B72: 1990-10-01
B73: £ 1.8 billion additional bank credit facilities agreed.
B75: 1994-05-01
B76: £ 693 million of Senior Debt committed.
B78: 2002-07-01
B79: £ 740 million in new Junior Debt financing raised to refinance Tier 1A debt and to finance a tender offer for subordinated debt (Resettable Advances and Stabilisation Advances).
B81: 2005-09-01
B83: Eurotunnel Board decides to convert the Resettable and Stabilisation Advances into bonds.
B85: 2006-03-01
B87: Eurotunnel Board decides to convert the Resettable and Stabilisation Advances into bonds.
B92: 1986-09-01
B93: ‘Equity One’ - Founding shareholders in the Channel Tunnel Group/France Manche (CTG/FM) subscribe initial equity of £46 million.
B95: 1986-10-01
B96: ‘Equity Two’ – a private institutional placing raises £206 million from large international investors.
B98: 1987-11-01
B99: ‘Equity Three’ – public floatation of the Group raises £770 million from private investors in Britain, France and several other countries.
B101: 1990-11-01
B102: New issue of capital (£566 million)
B104: 1994-05-01
B105: New issue of capital (£816 million)
B112: ¹ Nominal value combined @ £1= €1.459
B113: ² Excluding hedging charges and effective rate adjustments, combined @ £1 = €1.465
K114: =20/366 -> 0.05464480874
K115: =51/740 -> 0.06891891892
B116: ¹ Nominal value combined @ £1 = €1.459 . | K116: =147/3212 -> 0.04576587796
B117: ² Based on current interest rate forecasts. | K117: =16/464 -> 0.03448275862

Sheet Historic IS and BS
O25: =O26-O28 -> 504
O26: 1158
I28: =I32+I34 -> 49 | J28: 82 | K28: 304 | L28: 483 | M28: 531 | N28: 666 | O28: 654
D31: 1988 | E31: =D31+1 -> 1989 | F31: =E31+1 -> 1990 | G31: 1991 | H31: 1992 | I31: 1993 | J31: 1994 | K31: 1995 | L31: 1996 | M31: 1997 | N31: 1998 | O31: 1999
B32: Revenue | D32: 1 | E32: 6 | F32: 5 | G32: 11 | H32: 8 | I32: 3 | J32: 31 | K32: 299 | L32: 448 | M32: 456 | N32: 618 | O32: 627
B33: Capitalized | D33: 54 | E33: 220 | F33: 506 | G33: 547 | H33: 781 | I33: 846 | J33: 716 | W33: =SUM(D33:J33) -> 3670
B34: Deferred Expenses | H34: 11 | I34: 46 | J34: 51 | K34: 5 | L34: 35 | M34: 75 | N34: 48 | O34: 27
B35: Operating Costs | D35: 82 | E35: 106 | F35: 246 | G35: 169 | H35: 177 | I35: 251 | J35: 402 | K35: 374 | L35: 379 | M35: 341 | N35: 345 | O35: 321 | W35: =SUM(D35:J35) -> 1433 | X35: =W35+W33 -> 5103
B36: Depreciation | D36: 14 | E36: 54 | F36: 94 | G36: 92 | H36: 50 | I36: 47 | J36: 146 | K36: 130 | L36: 147 | M36: 126 | N36: 137 | O36: 123
B37: Interest | D37: -41 | E37: 65 | F37: 171 | G37: 297 | H37: 575 | I37: 599 | J37: 637 | K37: 724 | L37: 642 | M37: 675 | N37: 399 | O37: 304 | W37: =SUM(E37:J37) -> 2344
B39: EBITDA | D39: =D32-D35 -> -81 | E39: -100 | F39: -241 | G39: -158 | H39: -169 | I39: -248 | J39: -371 | K39: -75 | L39: 69 | M39: 115 | N39: 273 | O39: 306
D64: 1988 | E64: =D64+1 -> 1989 | F64: =E64+1 -> 1990 | G64: 1991 | H64: 1992 | I64: 1993 | J64: 1994 | K64: 1995 | L64: 1996 | M64: 1997 | N64: 1998 | O64: 1999
B65: Equity Issue | D65: 0 | E65: 0 | F65: 573 | G65: 3 | H65: 3 | I65: 10 | J65: 909 | K65: 56 | L65: 0 | M65: 0 | N65: 0 | O65: 0 | W65: =SUM(D65:O65) -> 1554
B66: Loans | D66: 175 | E66: 887 | F66: 1278 | G66: 1140 | H66: 1604 | I66: 1672 | J66: 795 | K66: 345 | L66: 0 | M66: 0 | N66: 0 | O66: 0 | W66: =SUM(D66:O66) -> 7896 | X66: =W66+W65 -> 9450
B68: Cap Exp | D68: 624 | E68: 1011 | F68: 1331 | G68: 1051 | H68: 1238 | I68: 843 | J68: 453 | K68: 66 | L68: 39 | M68: 28 | N68: 57 | O68: 58 | W68: =SUM(D68:O68) -> 6799
B69: Operating CF | D69: 31 | E69: 44 | F69: 165 | G69: -139 | H69: -108 | I69: -165 | J69: -333 | K69: 101 | L69: 115 | M69: 201 | N69: 356 | O69: 315 | W69: =SUM(D69:J69) -> -505 | X69: =X66-W69 -> 9955 | Y69: 135
Y70: =Y69/X69 -> 0.01356102461
B71: Interest | D71: -31 | E71: 38 | F71: 181 | G71: 328 | H71: 555 | I71: 670 | J71: 657 | K71: 35 | L71: 135 | M71: 210 | N71: 252 | Y71: =1/Y70 -> 73.74074074
D96: 1988 | E96: =D96+1 -> 1989 | F96: =E96+1 -> 1990 | G96: 1991 | H96: 1992 | I96: 1993 | J96: 1994 | K96: 1995 | L96: 1996 | M96: 1997 | N96: 1998 | O96: 1999 | P96: =O96+1 -> 2000 | Q96: 2001 | R96: 2002 | S96: 2003 | T96: 2004 | U96: 2005 | V96: 2006 | W96: 2007
B97: Fixed Assets | D97: 955 | E97: 1953 | F97: 3399 | G97: 4878 | H97: 6757 | I97: 8453 | J97: 9461 | K97: 9400 | L97: 9284 | M97: 9191 | N97: 9108 | O97: 9049 | P97: 9001 | Q97: 8964 | R97: 8832 | S97: 8829.9 | T97: 7424.8
B98: Current Assets | P98: 267 | Q98: 326 | R98: 946 | S98: 946 | T98: 842
B100: Loans | D100: 177 | E100: 1086 | F100: 2396 | G100: 3559 | H100: 5512 | I100: 7072 | J100: 8022 | K100: 8899 | L100: 8799 | M100: 8884 | N100: 8130 | O100: 6960 | P100: 7228 | Q100: 7297 | R100: 7308 | S100: 7307 | T100: 7098
B101: Equity | D101: 998 | E101: 997 | F101: 1587 | G101: 1556 | H101: 1241 | I101: 1367 | J101: 1740 | K101: 466 | L101: 494 | M101: 336 | N101: 1062 | O101: 2134 | P101: 1998 | Q101: 1954 | R101: 2419 | S101: 2419 | T101: 1099
B104: Cap Exp | D104: =D97 -> 955 | E104: =E97-D97 -> 998 | F104: 1446 | G104: 1479 | H104: 1879 | I104: 1696 | J104: 1008 | L104: =SUM(D104:J104) -> 9461
B106: Cap + IDC | D106: =D68+D71 -> 593 | E106: 1049 | F106: 1512 | G106: 1379 | H106: 1793 | I106: 1513 | J106: 1110
B108: Interest | D108: =D37 -> -41 | E108: 65 | F108: 171 | G108: 297 | H108: 575 | I108: 599 | J108: 637
B110: Rate | D110: =D108/D100 -> -0.2316384181 | E110: 0.05985267035 | F110: 0.07136894825 | G110: 0.08345040742 | H110: 0.104317852 | I110: 0.08470022624 | J110: 0.07940663176
D113: =D104/$L$104 -> 0.1009407039 | E113: 0.105485678 | F113: 0.1528379664 | G113: 0.1563259698 | H113: 0.1986047986 | I113: 0.1792622344 | J113: 0.1065426488
F115: =SUM(D113:F113) -> 0.3592643484
D117: =D97-C97 -> 955 | E117: 998 | F117: 1446 | G117: 1479 | H117: 1879 | I117: 1696 | J117: 1008

Sheet 2000 to 2005
E2: 2335 | F2: 2278 | G2: 2101
E3: 1231 | F3: 1284 | G3: 1281
E4: 6602 | F4: 6314 | G4: 7277
B6: EUROTUNNEL: SALES VOLUMES
C7: Year 2000 | D7: Year 2001 | E7: Year 2002 | F7: Year 2003 | G7: Year 2004 | H7: Year 2005 (Forecast)
B8: Cars | C8: 2 784 493 | D8: 2 529 757 | E8: 2 335 625 | F8: 2 278 999 | G8: 2 101 323 | H8: 2 143 350
B9: Coaches | C9: 79 460 | D9: 75 402 | E9: 71 911 | F9: 71 942 | G9: 63 467 | H9: 69 814
B10: Trucks | C10: 1 133 146 | D10: 1 197 771 | E10: 1 231 100 | F10: 1 284 875 | G10: 1 281 207 | H10: 1 319 643
B11: Eurostar (passengers) | C11: 7 130 417 | D11: 6 947 135 | E11: 6 602 817 | F11: 6 314 795 | G11: 7 276 675 | H11: 7 640 509
B12: Railfreight (tonnes) | C12: 2 947 388 | D12: 2 447 432 | E12: 1 463 580 | F12: 1 743 686 | G12: 1 889 175 | H12: 1 700 258
B16: BOOKYEAR | C16: TURNOVER | D16: EBIDTA | E16: EBIT | F16: INTEREST
B17: 2000 | C17: 977 130 000 | D17: 526 873 000 | E17: 367 689 000 | F17: 553 230 000
B18: 2001 | C18: 919 817 000 | D18: 487 047 000 | E18: 326 682 000 | F18: 555 169 000
B19: 2002 | C19: 914 143 000 | D19: 492 859 000 | E19: 325 824 000 | F19: 498 627 000
B20: 2003 | C20: 837 960 000 | D20: 421 828 000 | E20: 248 424 000 | F20: 515 868 000
B21: 2004 | C21: 813 883 000 | D21: 430 346 000 | E21: 255 588 000 | F21: 483 907 000
B22: 2005 (FORECAST) | C22: 830 160 660 | D22: 488 952 920 | E22: 320 699 760 | F22: 470 900 000
I25: -333000
I26: 101000
I27: 115000
I28: 201000
I29: 356000
I30: 315000
B31: =B17 -> 2000 | D31: =D17 -> 526 873 000 | E31: =F17 -> 553 230 000 | F31: 8899000 | G31: 526873 | H31: =F31/G31 -> 16.89021833 | I31: 553230
B32: =B18 -> 2001 | D32: =D18 -> 487 047 000 | E32: =F18 -> 555 169 000 | F32: 8899000 | G32: 487047 | H32: =F32/G32 -> 18.27133726 | I32: 555169
B33: =B19 -> 2002 | D33: =D19 -> 492 859 000 | E33: =F19 -> 498 627 000 | F33: 8899000 | G33: 492859 | H33: =F33/G33 -> 18.05587399 | I33: 489627
B34: =B20 -> 2003 | D34: =D20 -> 421 828 000 | E34: =F20 -> 515 868 000 | F34: 8899000 | G34: 421828 | H34: =F34/G34 -> 21.09627621 | I34: 515868
B35: =B21 -> 2004 | D35: =D21 -> 430 346 000 | E35: =F21 -> 483 907 000 | F35: 8899000 | G35: 430346 | H35: =F35/G35 -> 20.67870969 | I35: 483907
C39: 2006 | D39: 2007 | E39: 2008 | F39: 2009
B40: Revenue Business line Operations Shuttle Services | C40: 434 983 000 | D40: 443 683 000 | E40: 452 556 000 | F40: 461 607 120
B41: Revenue Business line Sale of Use of Track High Speed Rail Services Passenger Transport
C42: 228 221 966 | D42: 306 919 260 (2) | E42: 316 126 657 | F42: 325 610 450
B43: Revenue Business line Sale Use of Track Rail Service Goods Transport | C43: 75 000 000 | D43: 25 000 000 (3) | E43: 25 000 000 | F43: 50 000 000 (4)
B44: Revenue Non Core Business Activities | C44: 30 000 000 | D44: 30 000 000 | E44: 30 000 000 | F44: 30 000 000
B45: Financial Income | C45: 50 000 000 | D45: 50 000 000 | E45: 50 000 000 | F45: 50 000 000
B46: Available Cash from Sales and Financial Income | C46: 818 204 966 | D46: 855 602 260 | E46: 873 000 000 | F46: 917 217 570
B47: Costs of Operations inclusive Interest Payments on Loan Capital (5) | C47: 1 033 163 010 | D47: 1033 163 010 | E47: 1033 163 010 | F47: 1033163010
B48: Necessary Refinancing of Debt | C48: 5 800 000 | D48: 52 400 000 | E48: 99 200 000 | F48: 231 100 100
B49: Total Financing needs | C49: 220 758 044 | D49: 229 960 750 | E49: 259 363 010 | F49: 347 055 540
C54: 434983000 | D54: 443683000 | E54: 452556000 | F54: 461607120
C55: 228221966 | D55: 306919260 | E55: 316126657 | F55: 325610450
C56: 75000000 | D56: 25000000 | E56: 25000000 | F56: 50000000
C57: 30000000 | D57: 30000000 | E57: 30000000 | F57: 30000000
C59: =SUM(C54:C57) -> 768204966 | D59: =SUM(D54:D57) -> 805602260 | E59: =SUM(E54:E57) -> 823682657 | F59: =SUM(F54:F57) -> 867217570

Sheet Revenue Forecasts
U7: 10 | V7: 0.07 | W7: 9000 | X7: =PMT(V7,U7,,-W7) -> 651.3975245
W9: =V7*W7 -> 630
Q17: 1995 | R17: =Q17+1 -> 1996 | S17: =R17+1 -> 1997 | T17: =S17+1 -> 1998 | U17: =T17+1 -> 1999
Q18: 299 | R18: 448 | S18: 456 | T18: 618 | U18: 627
O20: 1993 | P20: =O20+1 -> 1994 | Q20: 1995 | R20: 1996 | S20: 1997 | T20: 1998 | U20: 1999 | V20: 2000 | W20: 2001 | X20: 2002 | Y20: 2003 | Z20: 2004 | AA20: 2005 | AB20: 2006 | AC20: 2007 | AD20: 2008 | AE20: 2009
N21: 1987 Forecast | O21: 488 | P21: 790 | Q21: 820 | R21: 900 | S21: 1000 | T21: 1080 | U21: 1180 | V21: 1250 | W21: 1370 | X21: 1480 | Y21: 1500 | Z21: =Y21*1.06 -> 1590 | AA21: =Z21*1.06 -> 1685.4 | AB21: =AA21*1.08 -> 1820.232
Q22: =Q21/P21-1 -> 0.03797468354 | R22: 0.09756097561 | S22: 0.1111111111 | T22: 0.08 | U22: 0.09259259259 | V22: 0.0593220339 | W22: 0.096 | X22: 0.0802919708 | Y22: 0.01351351351
N24: Actual | O24: 0 | P24: 5 | Q24: 205 | R24: 400 | S24: 550 | T24: 630 | U24: 620 | V24: 610 | W24: 600 | X24: 598 | Y24: 590
N26: Actual | O26: 0 | P26: 82 | Q26: 304 | R26: 483 | S26: 531 | T26: 666 | U26: 654
N28: 1987 Forecast | O28: 488 | P28: 762 | Q28: 835 | R28: 908 | S28: 986 | T28: 1072 | U28: 1158
O30: =O20 -> 1993 | P30: =P20 -> 1994 | Q30: =Q20 -> 1995 | R30: =R20 -> 1996 | S30: 1997 | T30: 1998 | U30: 1999 | V30: 2000 | W30: 2001 | X30: 2002 | Y30: 2003 | Z30: 2004 | AA30: 2005 | AB30: 2006 | AC30: 2007 | AD30: 2008 | AE30: 2009
N31: Revenues - Annual Reports | Q31: =Q26 -> 304 | R31: =R26 -> 483 | S31: 509 | T31: 641 | U31: 539 | V31: 599 | W31: 564 | X31: 581 | Y31: 584 | Z31: 538 | AA31: 541 | AB31: 568 | AC31: 526 | AD31: 537 | AE31: 555
N32: Projected | O32: =O21 -> 488 | P32: =P21 -> 790 | Q32: =Q21 -> 820 | R32: =R21 -> 900 | S32: 1000 | T32: 1080 | U32: 1180 | V32: 1250 | W32: 1370 | X32: 1480 | Y32: 1500 | Z32: 1590 | AA32: 1685.4 | AB32: 1820.232
R34: =R20 -> 1996 | S34: 1997 | T34: 1998 | U34: 1999 | V34: 2000 | W34: 2001 | X34: 2002 | Y34: 2003 | Z34: 2004 | AA34: 2005 | AB34: 2006
N35: Operating Costs | S35: =S39+S38-S37 -> 233 | T35: =T39+T38-T37 -> 201 | U35: 212 | V35: 186.6 | W35: 138.6 | X35: 129 | Y35: 125 | Z35: 146 | AA35: 126 | AB35: =AB36-AB37 -> 118
N36: Total | S36: =S37+S35 -> 353 | T36: =T37+T35 -> 321 | U36: =U37+U35 -> 332 | V36: 392 | W36: 381 | X36: 386 | Y36: 414 | AB36: =150+83 -> 233
N37: Depreciation | S37: 120 | T37: 120 | U37: 120 | V37: 115.4 | W37: 115.4 | X37: 119 | Y37: 124 | Z37: 120 | AA37: 114 | AB37: 115
N38: Staff | S38: 88 | T38: 86 | U38: 92 | V38: 95 | W38: 95 | X38: 102 | Y38: 105 | Z38: 104 | AA38: 83 | AB38: 98
N39: Other Operating Expenses | S39: 265 | T39: 235 | U39: 240 | V39: 207 | W39: 159 | X39: 146 | Y39: 144 | Z39: 162 | AA39: 157 | AB39: =150+115 -> 265
N40: Cash Operating Expense | S40: =S38+S39-S37 -> 233 | T40: 201 | U40: 212 | V40: 186.6 | W40: 138.6 | X40: 129 | Y40: 125 | Z40: 146 | AA40: 126 | AB40: 248
N42: Operating Profit (EBIT) | S42: 51 | T42: 174 | U42: 203 | V42: 208 | W42: 188 | X42: =X31-X35-X37 -> 333 | Y42: =Y31-Y35-Y37 -> 335 | Z42: =Z31-Z35-Z37 -> 272 | AA42: =AA31-AA35-AA37 -> 301 | AB42: =AB31-AB35-AB37 -> 335
S43: =S31-S37-S35 -> 156 | T43: 320 | U43: 207 | V43: 297 | W43: 310 | X43: =X31-X37-X35 -> 333 | Y43: 335 | Z43: 272 | AA43: 301 | AB43: 335
S45: =S30 -> 1997 | T45: 1998 | U45: 1999 | V45: 2000 | W45: 2001 | X45: 2002 | Y45: 2003 | Z45: 2004 | AA45: 2005 | AB45: 2006
R46: EBITDA | S46: =S37+S43 -> 276 | T46: =T37+T43 -> 440 | U46: 327 | V46: 412.4 | W46: 425.4 | X46: 452 | Y46: 459 | Z46: 392 | AA46: 415 | AB46: 450
R47: Debt | S47: 8333 | T47: 8333 | U47: 8333 | V47: 8333 | W47: 8333 | X47: 8333 | Y47: 8333 | Z47: 8333 | AA47: 8333 | AB47: 8333
R48: Debt/EBITDA | S48: =S47/S46 -> 30.19202899 | T48: 18.93863636 | U48: 25.48318043 | V48: 20.20611057 | W48: 19.58862247 | X48: 18.43584071 | Y48: 18.1546841 | Z48: 21.25765306 | AA48: 20.07951807 | AB48: 18.51777778
S52: 1997 | T52: =S52+1 -> 1998 | U52: 1999 | V52: 2000 | W52: 2001 | X52: 2002 | Y52: 2003 | Z52: 2004 | AA52: 2005 | AB52: 2006
R53: Truck Traffic | S53: 255 | T53: 705 | U53: 839 | V53: 1133 | W53: 1197 | X53: 1231 | Y53: 1284 | Z53: 1281 | AA53: 1308.786 | AB53: 1308.786
R54: Car Traffic | S54: 2139 | T54: 3351 | U54: 3260 | V54: 2784 | W54: 2530 | X54: 2335 | Y54: 2278 | Z54: 2101 | AA54: 2047 | AB54: 2021
R55: Eurostar | S55: 6004 | T55: 6308 | U55: 6593 | V55: 7130 | W55: 6947 | X55: 6602 | Y55: 6314 | Z55: 7277 | AA55: 7454.497 | AB55: 7858.337
R56: Per Passenger | S56: 12.4
S57: =S55*S56 -> 74449.6
S60: 2.52 | T60: =S60 -> 2.52 | U60: =T60 -> 2.52 | V60: 2.52 | W60: 2.52 | X60: 2.52 | Y60: 2.52 | Z60: 2.52 | AA60: 2.52 | AB60: 2.52
R61: Car Traffic | S61: =S60*S54 -> 5390.28 | T61: =T60*T54 -> 8444.52 | U61: 8215.2 | V61: 7015.68 | W61: 6375.6 | X61: 5884.2 | Y61: 5740.56 | Z61: 5294.52 | AA61: 5158.44 | AB61: 5092.92
R62: Eurostar | S62: =S55 -> 6004 | T62: =T55 -> 6308 | U62: 6593 | V62: 7130 | W62: 6947 | X62: 6602 | Y62: 6314 | Z62: 7277 | AA62: 7454.497 | AB62: 7858.337
P64: =P20 -> 1994 | Q64: =Q20 -> 1995 | R64: 1996 | S64: 1997 | T64: 1998 | U64: 1999 | V64: 2000 | W64: 2001 | X64: 2002 | Y64: 2003 | Z64: 2004 | AA64: 2005 | AB64: 2006
O65: Actual | S65: =S61+S62 -> 11394.28 | T65: 14752.52 | U65: 14808.2 | V65: 14145.68 | W65: 13322.6 | X65: 12486.2 | Y65: 12054.56 | Z65: 12571.52 | AA65: 12612.937 | AB65: 12951.257
O66: Projected | P66: 30000 | Q66: =P66*1.03 -> 30900 | R66: =Q66*1.03 -> 31827 | S66: 32781.81 | T66: 33765.2643 | U66: 34778.22223 | V66: 35821.5689 | W66: 36896.21596 | X66: 38003.10244 | Y66: 39143.19551 | Z66: 40317.49138 | AA66: 41527.01612 | AB66: 42772.82661
V73: Eurotunnel Prospectus Revenue Forecats (GBP Millions)
W74: Prospectus Date
W75: November | X75: November | Y75: May | Z75: May | AB75: Nov 87 vs | AC75: Dif as % of
W76: 1987 | X76: 1990 | Y76: 1994 | Z76: 1997 | AA76: Actual | AB76: Actual | AC76: 87 Proj
V77: 1993 | W77: 488 | X77: 393 | Y77: 0 | Z77: 0 | AA77: 0
V78: 1994 | W78: 762 | X78: 764 | Y78: 137 | Z78: 0 | AA78: 82
V79: 1995 | W79: 835 | X79: 833 | Y79: 525 | Z79: 0 | AA79: 304 | AB79: =W79-AA79 -> 531 | AC79: =AB79/W79 -> 0.6359281437
V80: 1996 | W80: 908 | X80: 904 | Y80: 737 | Z80: 0 | AA80: 483 | AB80: =W80-AA80 -> 425 | AC80: =AB80/W80 -> 0.468061674
V81: 1997 | W81: 986 | X81: 980 | Y81: 829 | Z81: 567 | AA81: 531 | AB81: =W81-AA81 -> 455 | AC81: =AB81/W81 -> 0.4614604462
V82: 1998 | W82: 1072 | X82: 1070 | Y82: 901 | Z82: 649 | AA82: 666 | AB82: =W82-AA82 -> 406 | AC82: =AB82/W82 -> 0.3787313433
V83: 1999 | W83: 1158 | X83: 1165 | Y83: 993 | Z83: 654 | AA83: 654 | AB83: =W83-AA83 -> 504 | AC83: =AB83/W83 -> 0.4352331606

Sheet Share Price

Sheet Sheet3

Sheet EBITDA to Debt
D2: Rate | F2: 0.07
D4: Term | F4: 15
D6: Total Debt | F6: =F23*F13 -> 1000
H7: ="Ability to Pay Back Debt -- Debt Service Coverage -- with Different Terms at "&TEXT(F2,"0.00%")&" Interest Rate" -> Ability to Pay Back Debt -- Debt Service Coverage -- with Different Terms at 7.00% Interest Rate
D8: Interest | F8: =F6*F2 -> 70
J9: Debt/EBITDA
D10: Pmt | F10: =F6/F4 -> 66.66666667 | I10: =F17 -> 1.463414634 | J10: 2 | K10: =J10+2 -> 4 | L10: =K10+2 -> 6 | M10: 8 | N10: 10 | O10: 12 | P10: 14 | Q10: 16 | R10: 18 | S10: 20
H11: Term of Debt (Yrs) | I11: 50 | J11: 5.555555556 | K11: 2.777777778 | L11: 1.851851852 | M11: 1.388888889 | N11: 1.111111111 | O11: 0.9259259259 | P11: 0.7936507937 | Q11: 0.6944444444 | R11: 0.6172839506 | S11: 0.5555555556
I12: =I11-5 -> 45 | J12: 5.421686747 | K12: 2.710843373 | L12: 1.807228916 | M12: 1.355421687 | N12: 1.084337349 | O12: 0.9036144578 | P12: 0.7745266781 | Q12: 0.6777108434 | R12: 0.6024096386 | S12: 0.5421686747
D13: EBITDA | F13: 200 | I13: 40 | J13: 5.263157895 | K13: 2.631578947 | L13: 1.754385965 | M13: 1.315789474 | N13: 1.052631579 | O13: 0.8771929825 | P13: 0.7518796992 | Q13: 0.6578947368 | R13: 0.5847953216 | S13: 0.5263157895
D14: Interest | F14: =F8 -> 70 | I14: 35 | J14: 5.072463768 | K14: 2.536231884 | L14: 1.690821256 | M14: 1.268115942 | N14: 1.014492754 | O14: 0.845410628 | P14: 0.7246376812 | Q14: 0.634057971 | R14: 0.5636070853 | S14: 0.5072463768
D15: Pmt | F15: =F10 -> 66.66666667 | I15: 30 | J15: 4.838709677 | K15: 2.419354839 | L15: 1.612903226 | M15: 1.209677419 | N15: 0.9677419355 | O15: 0.8064516129 | P15: 0.6912442396 | Q15: 0.6048387097 | R15: 0.5376344086 | S15: 0.4838709677
D16: Remainder | F16: =F13-F14-F15 -> 63.33333333 | I16: 25 | J16: 4.545454545 | K16: 2.272727273 | L16: 1.515151515 | M16: 1.136363636 | N16: 0.9090909091 | O16: 0.7575757576 | P16: 0.6493506494 | Q16: 0.5681818182 | R16: 0.5050505051 | S16: 0.4545454545
D17: Coverage | F17: =F13/(F14+F15) -> 1.463414634 | I17: 20 | J17: 4.166666667 | K17: 2.083333333 | L17: 1.388888889 | M17: 1.041666667 | N17: 0.8333333333 | O17: 0.6944444444 | P17: 0.5952380952 | Q17: 0.5208333333 | R17: 0.462962963 | S17: 0.4166666667
I18: 15 | J18: 3.658536585 | K18: 1.829268293 | L18: 1.219512195 | M18: 0.9146341463 | N18: 0.7317073171 | O18: 0.6097560976 | P18: 0.5226480836 | Q18: 0.4573170732 | R18: 0.406504065 | S18: 0.3658536585
D19: Remainder | F19: =F13-F14 -> 130 | I19: 10 | J19: 2.941176471 | K19: 1.470588235 | L19: 0.9803921569 | M19: 0.7352941176 | N19: 0.5882352941 | O19: 0.4901960784 | P19: 0.4201680672 | Q19: 0.3676470588 | R19: 0.3267973856 | S19: 0.2941176471
I20: 5 | J20: 1.851851852 | K20: 0.9259259259 | L20: 0.6172839506 | M20: 0.462962963 | N20: 0.3703703704 | O20: 0.3086419753 | P20: 0.2645502646 | Q20: 0.2314814815 | R20: 0.2057613169 | S20: 0.1851851852
D23: Debt/EBITDA | F23: 5
